Workbook

Sheet Blank Template
A1: Blank Template
A2: Abbreviation/Category | B2: Desig | C2: Title | D2: Cred Hrs | E2: Compl Fact | F2: How Derived
A3: Essential IT Domains
A4: ITE-CSP (Cybersecurity) | E4: =IF(D4 >= 6, 1, D4/6) -> 0 | F4: .5 if ≈3; 1 if ≈6
A5: ITE-IMA (Information Management) | E5: 0 | F5: .5 if ≈3; 1 if ≈6
A6: ITE-NET (Networking) | E6: 0 | F6: .5 if ≈3; 1 if ≈6
A7: ITE-SPA (System Paradigms) | E7: 0 | F7: .5 if ≈3; 1 if ≈6
A8: ITE-UXD (User Experience) | E8: =IF(D8 >=3, 1, D8/3) -> 0 | F8: 1 if ≈3
A9: ITE-GPP (Global Professional Practice) | E9: 0 | F9: 1 if ≈3
A10: ITE-IST (Integrated Systems Technology) | E10: 0 | F10: 1 if ≈3
A11: ITE-PFT (Platform Technologies) | E11: =IF(D11 >=2, 1, D11/2) -> 0 | F11: 1 if ≈2
A12: ITE-SWF (Software Fundamentals) | E12: =IF(D12 >=5, 1, D12/5) -> 0 | F12: 1 if ≈5
A13: ITE-WMS (Web and Mobile Systems) | E13: =IF(D13 >=3, 1, D13/3) -> 0 | F13: 1 if ≈3
C16: (Essential) Scaled Score: | D16: =SUM(E4:E13)/10*2 -> 0 | F16: (2 maximum)
A17: Supplemental IT Domains
C18: Total Hours: | D18: 0 | F18: Required Hrs/24
A19: Additional Notes:
C21: (Supplemental) Scaled Score: | D21: =IF(D18/24 >= 1, 1, D18/24) -> 0
A22: Related IT Essential Mathematics
A23: ITM-DSC (Discrete Structures)
A25: Related IT Supplemental Mathematics
A26: ITM-SUP (Stats, Lin Alg, Calculus, etc)
C29: (Math) Scaled Score: | D29: =IF(SUM(D23,D26,D27,D28) >= 7, 0.5, 0.5 * SUM(D23,D26,D27,D28)/7) + IF(SUM(D23,D24) >= 3, 0.5, 0.5*D23/3) -> 0 | F29: 1 if >= 7 Sem Cr Hrs
A30: Capstone
A31: Capstone Project (Senior Year)
C33: (Capstone) Scaled Score: | D33: =IF(D31 >= 3, 1, D31/3) -> 0 | F33: 1 if ≥3
C35: Final Compliance Factor: | D35: =ROUND(SUM(D16,D21,D29,D33),2) -> 0

Sheet List of Schools
A1: Institution Name | B1: Compliance Factor | C1: College | D1: Department | E1: Program Name | F1: Program Requirements URL | G1: Course Descriptions URL | H1: Notes | I1: Title | J1: Last Name | K1: First Name | L1: Email | M1: Phone Number | N1: Website
A2: Abilene Christian University | B2: No IT Program | C2: School of IT and Computing | E2: Information Technology | F2: http://catalog.acu.edu/preview_program.php?catoid=2&poid=452&returnto=63n | H2: Not offered anymore | I2: Director | J2: Homer | K2: John | L2: jdh08a@acu.edu | M2: 325-674-6603 | N2: https://www.acu.edu/community/coba/departments-and-schools/sitc/faculty/faculty-profile.html?facultyId=jdh08a
A3: Academy College | B3: 4.14 | E3: Computer Science | F3: https://www.academycollege.edu/wp-content/uploads/2018/11/AC-Catalog29-10-22-2018-FINAL-digital.pdf | H3: Scored | I3: Coordinator | J3: Pharmer | K3: Darrell | L3: dpharmer@academycollege.edu | N3: https://www.academycollege.edu/contact/staff-directory/
A4: Adelphi University | B4: Not an IT program | E4: Information Systems | F4: No program | G4: No program | H4: No longer offered. Wasn't an IT program before, very business focused, hardly any pillars | I4: Not applicable | J4: Not applicable | K4: Not applicable | L4: Not applicable | M4: Not applicable | N4: Not applicable
A5: Alabama A & M University | B5: Not an IT program | C5: College of Engineering, Technology & Physical Sciences | D5: Electrical Engineering and Computer Science | E5: Computer Science | F5: http://www.aamu.edu/Academics/engineering-technology/EE/Pages/Program-in-Computer-Science.aspx | H5: No longer a bachelor's program (according to 2018-2019 catalog). Previous computer science program was very programming heavy and lacked IT pillars such as Cybersecurity, networking, information management | I5: Department Chair | J5: Heidary | K5: Kaveh | L5: kaveh.heidary@aamu.edu | N5: http://www.aamu.edu/academics/engineering-technology/ee/pages/people.aspx
A6: Albany State University | B6: Not an IT program | C6: College of Business | E6: Management Information Systems & Technology | F6: https://catalog.asurams.edu/undergraduate/business/bs-management-information-systems-technology/#programofstudytext | G6: https://catalog.asurams.edu/undergraduate/business/bs-management-information-systems-technology/#programofstudytext | H6: Requires a lot of business courses, missing pillars such as Cybersecurity, Software Fundamentals, Web and Mobile Systems, Networking
A7: Albright College | B7: Not an IT program | C7: School of Professional Studies | E7: Computer Information Systems | F7: https://www.albright.edu/school-professional-studies/undergraduate-degrees-and-certificates/computer-information-systems-cis/ | H7: Data Mining, Visualization, business courses, missing cybersecurity, networking, web and mobile systems
A8: Alcorn State University | B8: 3.13 | C8: School of Agriculture and Applied Sciences | D8: Advanced Technologies | E8: Computer Networking and Information Technology | F8: https://www.alcorn.edu/uploaded/files/oaa/schools/nursing/ASU_Undergrad_Catalog_2016_2018.pdf | G8: Page 121 of catalog | H8: Scored. Look into thesis | I8: Interim Department Chair | J8: Billa | K8: Jeremiah | L8: billa@alcorn.edu | M8: 601-877-6484 | N8: https://alcornedu.finalsite.com/uploaded/files/oaa/schools/agappliedsci/adtech/Ag_Advanced_Technologies_Faculty_Sheet1.pdf
A9: Altierus Career College-Tampa | B9: Not an IT program | E9: Computer Information Technology | F9: https://www.altierus.edu/program/technology/computer-technology | H9: Not enough credits, just a 12-month program
A10: Alverno College | B10: Not an IT program | E10: No program | F10: Not applicable | H10: No program offered
A11: American InterContinental University | B11: 3.74 | C11: Houston/Online | E11: Information Technology | F11: https://www.aiuniv.edu/degrees/information-technology/bachelors-general | G11: http://aiuniv.smartcatalogiq.com/en/2019/Catalog/Course-Descriptions | H11: Scored | I11: None available
A12: American National Universiyty | B12: 2.51 | E12: Cyber Security | F12: https://www.an.edu/documents-library/about/Catalog.pdf | G12: Page 152 of catalog | H12: Scored | I12: Director | J12: Baez | K12: Felix
A13: American Public University System | B13: 2.98 | E13: Information Technology: General Concentration | F13: https://catalog.apus.edu/undergraduate/academic-programs/bachelors/bachelor-science-information-technology/?_ga=2.53354144.963992636.1547696852-1476322107.1547696852#requirementstext | G13: https://catalog.apus.edu/undergraduate/academic-programs/bachelors/bachelor-science-information-technology/?_ga=2.53354144.963992636.1547696852-1476322107.1547696852#requirementstext | H13: Scored. No Math and lacks some supplemental, but a strong IT essential domain
A14: American Sentinel University | B14: No IT program | E14: No program | F14: No program | H14: No applicable program offered
A15: Anderson University | B15: 2.14 | C15: School of Science & Engineering | D15: Political Science | E15: Cyber Security | F15: https://www.anderson.edu/uploads/advising/information-security-advising.pdf | G15: https://www.anderson.edu/registrar/catalog/ | H15: Scored | I15: Department Chair | J15: Coy | K15: Jennifer | L15: jjcoy@anderson.edu | M15: 765-641-4312 | N15: https://www.anderson.edu/staff/dr-jennifer-coy/
A16: Andrews University | B16: Not an IT Program | C16: School of Business Administration | D16: Computing | E16: Information Systems | F16: https://bulletin.andrews.edu/preview_program.php?catoid=16&poid=12773&returnto=3372 | G16: https://bulletin.andrews.edu/preview_program.php?catoid=16&poid=12773&returnto=3372 | H16: Many business coruses required, missing multiple pillars | I16: Department Chair | J16: Wolfer | K16: William | L16: wolferb@andrews.edu | M16: 269-471-6879 | N16: https://www.andrews.edu/sba/computing/
A17: Angelo State University | B17: Not an IT Program | E17: Computer Science OR Information Systems | F17: https://www.angelo.edu/dept/computer_science/computer_science.php | G17: https://www.angelo.edu/dept/computer_science/courses.php | H17: Requires computer science theory, lacking in multiple pillars such as cybersecurity and networking
A18: Aquinas College | B18: 3.02 | C18: Business | D18: Computer Information Systems | E18: Computer Information Systems | F18: https://www.aquinas.edu/computer-information-systems/degrees/computer-information-systems-major-bs | G18: https://www.aquinas.edu/computer-information-systems/degrees/computer-information-systems-major-bs | H18: Scored | I18: Department Chair | J18: Latimer | K18: Richard | L18: rsl001@aquinas.edu | M18: 616-632-2425 | N18: https://www.aquinas.edu/people/richard-s-latimer-ms
A19: Arcadia University | B19: Not an IT Program | E19: Computing Technology | F19: http://catalog.arcadia.edu/preview_program.php?catoid=9&poid=1324&returnto=295#requirements | G19: http://catalog.arcadia.edu/preview_program.php?catoid=9&poid=1324&returnto=295#requirements | H19: Required art and design courses, missing cybersecurity, networking, platform technologies
A20: Argosy University-Atlanta | B20: Closed | C20: College of Arts and Sciences | E20: Information Technology | F20: https://www.argosy.edu/locations/atlanta/arts-and-sciences/bachelor-of-science-in-information-technology/course-requirements | H20: Closed within the last 2 months
A21: Argosy University-Chicago | B21: Closed | C21: College of Arts and Sciences | E21: Information Technology | F21: https://www.argosy.edu/locations/chicago-downtown/arts-and-sciences/bachelor-of-science-in-information-technology/course-requirements | H21: Closed within the last 2 months
A22: Argosy University-Dallas | B22: Closed | C22: College of Arts and Sciences | E22: Information Technology | F22: https://www.argosy.edu/locations/dallas/arts-and-sciences/bachelor-of-science-in-information-technology/course-requirements | H22: Closed within the last 2 months
A23: Argosy University-Denver | B23: Closed | H23: Closed within the last 2 months
A24: Argosy University-Hawaii | B24: Closed | C24: College of Arts and Sciences | E24: Information Technology | F24: https://www.argosy.edu/locations/atlanta/arts-and-sciences/bachelor-of-science-in-information-technology/course-requirements | H24: Closed within the last 2 months
A25: Argosy University-Inland Empire | B25: Closed | H25: Closed within the last 2 months
A26: Argosy University-Los Angeles | B26: Closed | C26: College of Arts and Sciences | E26: Information Technology | F26: https://www.argosy.edu/locations/los-angeles/arts-and-sciences/bachelor-of-science-in-information-technology/course-requirements | H26: Closed within the last 2 months
A27: Argosy University-Nashville | B27: Closed | H27: Closed within the last 2 months
A28: Argosy University-Northern Virginia | B28: Closed | C28: College of Arts and Sciences | E28: Information Technology | F28: https://www.argosy.edu/locations/northern-virginia/arts-and-sciences/bachelor-of-science-in-information-technology/course-requirements | H28: Closed within the last 2 months
A29: Argosy University-Orange County | B29: Closed | C29: College of Arts and Sciences | E29: Information Technology | F29: https://www.argosy.edu/locations/los-angeles-orange-county/arts-and-sciences/bachelor-of-science-in-information-technology/course-requirements | H29: Closed within the last 2 months
A30: Argosy University-Phoenix | B30: Closed | C30: College of Arts and Sciences | E30: Information Technology | F30: https://www.argosy.edu/locations/phoenix/arts-and-sciences/bachelor-of-science-in-information-technology/course-requirements | H30: Closed within the last 2 months
A31: Argosy University-Phoenix Online Division | B31: Closed | C31: College of Arts and Sciences | E31: Information Technology | F31: https://www.argosy.edu/locations/phoenix/arts-and-sciences/bachelor-of-science-in-information-technology/course-requirements | H31: Closed within the last 2 months
A32: Argosy University-Salt Lake City | B32: Closed | C32: College of Arts and Sciences | E32: Information Technology | F32: https://www.argosy.edu/locations/salt-lake-city/arts-and-sciences/bachelor-of-science-in-information-technology/course-requirements | H32: Closed within the last 2 months
A33: Argosy University-San Diego | B33: Closed | H33: Closed within the last 2 months
A34: Argosy University-San Francisco Bay Area | B34: Closed | C34: College of Arts and Sciences | E34: Information Technology | F34: https://www.argosy.edu/locations/san-francisco/arts-and-sciences/bachelor-of-science-in-information-technology/course-requirements | H34: Closed within the last 2 months
A35: Argosy University-Sarasota | B35: Closed | H35: Closed within the last 2 months
A36: Argosy University-Seattle | B36: Closed | H36: Closed within the last 2 months
A37: Argosy University-Tampa | B37: Closed | C37: College of Arts and Sciences | E37: Information Technology | F37: https://www.argosy.edu/locations/tampa/arts-and-sciences/bachelor-of-science-in-information-technology/course-requirements | H37: Closed within the last 2 months
A38: Argosy University-Twin Cities | B38: Closed | C38: College of Arts and Sciences | E38: Information Technology | F38: https://www.argosy.edu/locations/twin-cities/arts-and-sciences/bachelor-of-science-in-information-technology/course-requirements | H38: Closed within the last 2 months
A39: Arizona State University-Tempe | B39: 4.4 | C39: Ira A. Fulton Schools of Engineering | D39: The Polytechnic School | E39: Information Technology | F39: https://webapp4.asu.edu/programs/t5/roadmaps/ASU00/TSIFTBS/null/ALL/2018 | G39: https://webapp4.asu.edu/programs/t5/roadmaps/ASU00/TSIFTBS/null/ALL/2018 | H39: Scored | I39: Director | J39: McKenna | K39: Ann | L39: ann.mckenna@asu.edu | M39: 480-727-5121 | N39: https://isearch.asu.edu/profile/1625915
A40: Arkansas State University-Main Campus | B40: 2.43 | C40: Neil Griffin College of Business | D40: Computer & Information Technology | E40: Computer & Information Technology | F40: https://www.astate.edu/dotAsset/f4ea5e9e-5a85-4005-98bd-160ea71b4afd | G40: http://www.astate.edu/dotAsset/6fa88e5e-a970-484f-a725-a09313865be9.pdf | H40: Scored. Course Descriptions on pg 442 of catalog, Requires 39 business credits, Scored | I40: Department Chair | J40: Doering | K40: James | L40: jdoering@astate.edu | M40: 870-972-2806 | N40: https://www.astate.edu/college/business/faculty-staff/computer-information-technology/people-details.dot?pid=c6637a44-4189-42a2-a1ac-1b06dfb6dbf4
A41: Arkansas Tech University | B41: 4.14 | C41: College of Engineering & Applied Sciences | D41: Computer & Information Science | E41: Information Technology | F41: https://www.atu.edu/catalog/undergraduate/colleges/applied_sciences/comp_info_sci/info_tech.php | G41: https://www.atu.edu/catalog/undergraduate/colleges/applied_sciences/comp_info_sci/info_tech.php | H41: Scored | I41: Department Head | J41: Wahsheh | K41: Luay | L41: lwahsheh@atu.edu | M41: 479-964-0876 | N41: https://www.atu.edu/profiles.php?name=lwahsheh&menu=cis
A42: Armstrong State University | B42: See Georgia Southern University | C42: See Georgia Southern University | D42: See Georgia Southern University | E42: See Georgia Southern University | F42: See Georgia Southern University | G42: See Georgia Southern University | H42: See Georgia Southern University | I42: See Georgia Southern University | J42: See Georgia Southern University | K42: See Georgia Southern University | L42: See Georgia Southern University | M42: See Georgia Southern University | N42: See Georgia Southern University
A43: Athens State University | B43: 3.825 | C43: College of Arts and Sciences | E43: Information Technology | F43: http://www.athens.edu/arts-sciences/programs/information-technology/ | H43: Scored | J43: Rimes | K43: Brady | L43: brady.rimes@athens.edu | M43: 256-233-6511 | N43: http://www.athens.edu/team/brady-rimes/
A44: Auburn University | B44: Not an IT program | C44: Samuel Ginn College of Engineering | D44: Computer Science and Software Engineering | E44: Computer Science | F44: http://bulletin.auburn.edu/undergraduate/samuelginncollegeofengineering/departmentofcomputerscienceandsoftwareengineering/computerscience_major/ | H44: Computer Science classes, algorithms, software modeling design. Missing pillars such as cybersecurity, Web and Mobile Systems
A45: Auburn University at Montgomery | B45: Not an IT program | D45: Mathematics and Computer Science | E45: Computer Science | F45: http://www.cas.aum.edu/docs/default-source/default-document-library/csstudyplan_v4-1080630ac25ee6bcd9a70ff0000ade150.pdf?sfvrsn=0 | G45: http://www.aum.edu/computer-science-0 | H45: Computer Science classes, algorithms, software design, etc. Missing cybersecurity, web and mobile systems, system paradigms
A46: Augusta University | B46: 3.01 | C46: School of Computer and Cyber Sciences | D46: Information Technology | E46: Information Technology | F46: http://catalog.augusta.edu/preview_program.php?catoid=32&poid=5375 | G46: http://catalog.augusta.edu/preview_program.php?catoid=32&poid=5375 | H46: Scored. Range Given | I46: Program Director | J46: Schultz | K46: Todd | M46: 706-667-4534 | N46: https://www.augusta.edu/faculty/directory/search.php
A47: Augustana University | B47: Not an IT program | D47: Computer Science and Software Engineering | E47: Computer Information Systems | F47: http://augie.smartcatalogiq.com/en/2017-2018/2017-2018-Undergraduate-General-Catalog/Academic-Program/Computer-Information-Systems/Computer-Information-Systems-Major | G47: http://augie.smartcatalogiq.com/en/2017-2018/2017-2018-Undergraduate-General-Catalog/Academic-Program/Computer-Information-Systems/Computer-Information-Systems-Major | H47: Requires business and analytic classes while missing essential IT pillars | I47: Department Chair | J47: Entwistle | K47: Marcia | L47: marcia.entwistle@augie.edu | M47: 605-274-5495 | N47: http://www.augie.edu/faculty-23
A48: Austin Peay State University | B48: 1.89 | E48: Computer Information Technology | F48: http://www.apsu.edu/csci/doc/APSU_CSIT_BS_Information_Sheets_web.pdf | G48: http://catalog.apsu.edu/content.php?filter%5B27%5D=CSCI&filter%5B29%5D=&filter%5Bcourse_type%5D=-1&filter%5Bkeyword%5D=&filter%5B32%5D=1&filter%5Bcpage%5D=1&cur_cat_oid=32&expand=&navoid=1332&search_database=Filter#acalog_template_course_filter | H48: Scored. Only 16 required core credits. Has 3 concentrations, but would count for supplemental only. No math or capstone, so wouldn't reach a 3. Range given
A49: Avila University | B49: Not an IT program | E49: Computer Science | F49: https://www.avila.edu/academics/schools-colleges/school-of-science-health/computer-science/concentrations-certs | H49: Computer Science classes, algorithms, software design, etc.
A50: Azusa Pacific University | B50: 2.72 | C50: College of Liberal Arts and Sciences | D50: Engineering and Computer Science | E50: Computer Information Systems | F50: http://catalog.apu.edu/undergraduate/liberal-arts-sciences/computer-science/computer-information-systems-major/#text | G50: http://catalog.apu.edu/undergraduate/liberal-arts-sciences/computer-science/computer-information-systems-major/#text | H50: Scored. Proportion used to score the supplemental rather than a range. See score sheet.
A51: Baker College | B51: 2.43 | C51: College of Information Technology | D51: Computer Technology | E51: Information Technology and Security - Concentration in Information Assurance and Cyber Security | F51: https://www.baker.edu/academics/undergraduate-studies/college-of-information-technology/computer-technologies/information-technology-and-security-concentration-in-information-assurance-and-cyber-security/curriculum | G51: https://www.baker.edu/academics/undergraduate-studies/college-of-information-technology/computer-technologies/information-technology-and-security-concentration-in-information-assurance-and-cyber-security/curriculum | H51: Scored
A52: Ball State University | B52: 3.37 | C52: College of Applied Sciences and Technology | D52: Information Systems and Operations Management | E52: Computer Technology | F52: https://www.bsu.edu/academics/undergraduatestudy/catalog/current-year/collegesdeptprog/mcob/isom | G52: https://www.bsu.edu/-/media/www/departmentalcontent/academicsystems/2018-2019/2018-2019%20undergraduate%20catalog%201-23-2019.pdf | H52: Scored. Course descriptions on pg 105 of catalog | I52: Department Chair | J52: Gu | K52: Chan | L52: qgu@bsu.edu | M52: 765-285-5302 | N52: https://www.bsu.edu/academics/collegesanddepartments/isom/about-us/faculty-and-staff/guqiannong
A53: Barnard College | B53: Not an IT program | E53: Computer Science | F53: http://catalog.barnard.edu/barnard-college/courses-instruction/computer-science/#requirementstext | G53: http://catalog.barnard.edu/barnard-college/courses-instruction/computer-science/#requirementstext | H53: Computer Science Theory taught, missing multiple pillars
A54: Barry University | B54: 2.73 | C54: School of Professional and Career Education | E54: Information Technology: Network and Systems Engineering Specialization Option | F54: https://www.barry.edu/information-technology/about/degree-curriculum.html | G54: https://www.barry.edu/information-technology/about/course-descriptions.html | H54: Scored
A55: Bay Path University | B55: Not an IT program | E55: Computer Security | F55: https://www.baypath.edu/academics/undergraduate-programs/computer-security/course-requirements/ | H55: Automata, data science, and just cybersecurity. Missing IT pillars
A56: Bay State College | B56: 2.73 | E56: Information Technology | F56: https://www.baystate.edu/files/resources/flowsheet-it-bs.pdf | G56: https://www.baystate.edu/files/resources/bsccoursecatalog_201617.pdf | H56: Scored
A57: Baylor University | B57: Not an IT program | E57: Computer Science | F57: https://www.ecs.baylor.edu/doc.php/245373.pdf | H57: Computer Science classes, algorithms, software design, etc.
A58: Beacon College | B58: Not an IT program | E58: Computer Informational Systems | F58: https://www.beaconcollege.edu/wp-content/uploads/2018/08/Beacon-College-Catalog-2018-2019.pdf | H58: More business oriented than IT
A59: Becker College | B59: Not an IT program | E59: Business Administration - Computer Information Systems | F59: https://www.becker.edu/academic/academic-programs/design-technology/bachelor-science-business-administration/computer-information-systems/ | H59: More business oriented than IT
A60: Bellarmine University | B60: Not an IT program | D60: Computer Science | E60: Computer Science | F60: https://catalog.bellarmine.edu/2018-2019/requirements-major-computer-science | G60: https://catalog.bellarmine.edu/2018-2019/dept/cs/courses | H60: More of a Computer Science Major, not IT | I60: Department Department Chair | J60: Ali | K60: Muzaffar | L60: muzaffar.ali@bellarmine.edu | M60: 502-272-8410 | N60: https://catalog.bellarmine.edu/2018-2019/dept/cs
A61: Bellevue University | B61: 1.89 | C61: College of Science and Technology | E61: Information Technology | F61: http://www.bellevue.edu/degrees/bachelor/information-technology-bs/ | H61: Scored
A62: Belmont University | B62: Not an IT program | C62: College of Sciences and Mathematics | D62: Math and Computer Science | E62: Computer Science | F62: http://catalog.belmont.edu/preview_program.php?catoid=3&poid=485&returnto=117 | G62: http://catalog.belmont.edu/preview_program.php?catoid=3&poid=485&returnto=117 | H62: More focused on programming, not really focused on IT. Additionally, easy to see that not enough credits are offered | I62: Department Department Chair | J62: Miller | K62: Andrew | L62: andrew.miller@belmont.edu | M62: 615-460-5615 | N62: https://mycampusapps.belmont.edu/teledirectory/index.cfm?dept=630&mode=listPeople
A63: Benedict College | B63: Not an IT program | C63: School of Science, Technology, and Engineering | E63: Cybersecurity | F63: https://www.benedict.edu/wp-content/uploads/2018/08/benedict_college_2018_2020_programs_of_study.pdf | H63: Missing many of the Essential pillars
A64: Bennett College | B64: Not an IT Program | D64: Mathematics and Computer Science | E64: Computer Science | F64: http://www.bennett.edu/wp-content/uploads/2018/06/2017-2020_Bennett_College_Catalog_FINAL.pdf | H64: Page 78 of Catalog has the Degree requirements. Not very IT focused (no Cyber Security, Information Management, Systems Paradigms, etc.). Lots of Algorithm and Programming courses
A65: Bennington College | B65: Not an IT Program | F65: https://www.bennington.edu/academics/areas-of-study-curriculum/science-mathematics/computer-science | H65: Pretty obvious that it's not an IT program.
A66: Bentley University | B66: Not enough credits | C66: Smith Academic Technology Center | D66: Computer Information Systems | E66: Computer Information Systems | F66: https://www.bentley.edu/undergraduate/academics/computer-information-systems-degree/curriculum | G66: https://www.bentley.edu/academics/departments/computer-information-systems/undergraduate-courses | H66: Hard to find an exact curriculum of what classes are required and that are supplemental. No required math or capstone found | I66: Department Department Chair | J66: Cooprider | K66: Jay | L66: jcooprider@bentley.edu | M66: 781-891-2852 | N66: https://www.bentley.edu/academics/departments/computer-information-systems/contact
A67: Berea College | B67: Not an IT program | D67: Computer Science | E67: Computer and Information Science: Information Systems Concentration | F67: http://catalog.berea.edu/en/Current/Catalog/Departments-of-Study/Computer-Science/Information-Systems-Optional-Concentration | G67: http://catalog.berea.edu/en/Current/Catalog/Departments-of-Study/Computer-Science/Information-Systems-Optional-Concentration | H67: Requires a lot of algorithm design & business classes, doesn't place much emphasis on IT Essential courses by having them chosen from variety of courses instead of making it required to get the degree | I67: Department Department Chair | J67: Pearce | K67: Jan | L67: jan_pearce@berea.edu | M67: 859-985-3569 | N67: https://www.berea.edu/csc/faculty-and-staff/dr-jan-pearce/
A68: Bethel University | B68: 2.33 | C68: College of Arts & Sciences | D68: Math & Computer Science | E68: Computer Science | F68: http://catalog.bethel.edu/arts-sciences/academic-programs-departments/computer-science/computer-science-bs/ | G68: http://catalog.bethel.edu/arts-sciences/academic-programs-departments/computer-science/computer-science-bs/ | H68: Scored | I68: Department Department Chair | J68: Gossett | K68: Nathan | L68: gosnat@bethel.edu | N68: https://www.bethel.edu/academics/faculty/gossett-nathan
A69: Bethesda University | B69: 3.5 | D69: Information Technology | E69: Information Technology | F69: http://www.buc.edu/web2/pdf/catalog/Catalog_2018-2019.pdf | G69: http://www.buc.edu/web2/pdf/catalog/Catalog_2018-2019.pdf | H69: Scored | I69: Department Department Chair | J69: Rah | K69: Benjamin | L69: benjaminrah@buc.edu | M69: 714-517-1945
A70: Binghamton University | B70: Not an IT program | C70: Thomas J. Watson School of Engineering and Applied Science | D70: Computer Science | E70: Computer Science | F70: https://www.binghamton.edu/watson/student-services/advising/requirements/cs18.html | G70: https://www.binghamton.edu/watson/student-services/advising/coursedescriptions.html | H70: Missing most of essential pillars | I70: Department Department Chair | J70: Meng | K70: Weiyi | L70: meng@cs.binghamton.edu | M70: 607-777-4311 | N70: https://www.binghamton.edu/computer-science/contact/
A71: Bloomfield College | B71: 3.06 | C71: Business | E71: Computer Science | F71: https://bloomfield.edu/sites/default/files/bc_catalog_2018-2019.pdf | G71: Page 166 of catalog | H71: Scored. Requirements on pg 81 of catalog | I71: Department Chair | J71: Kreutzer | K71: Steven | L71: steven_kreutzer@bloomfield.edu | M71: 973-748-9000 | N71: https://www.bloomfield.edu/academics/undergraduate-programs/business/computer-science
A72: Bluefield State College | B72: 2.3 | C72: School of Engineering Technology and Computer Science | D72: Computer Science | E72: Computer Science | F72: https://bluefieldstate.edu/academics/degrees/bs-computer-science | G72: https://bluefieldstate.edu/academics/degrees/bs-computer-science | H72: Scored. | I72: Department Head | J72: Bennett | K72: William | L72: bbennett@bluefieldstate.edu | M72: 304-327-4408 | N72: https://bluefieldstate.edu/contacts/william-bennett
A73: Bluffton University | B73: 1.35 | D73: Business | E73: Information Technology | F73: https://www.bluffton.edu/catalog/courses/tech/index.aspx#itmajor | G73: https://www.bluffton.edu/catalog/courses/index.aspx#tec105 | H73: Scored
A74: Bob Jones University | B74: 1.84 | E74: Information Technology | F74: https://www.bju.edu/academics/programs/information-technology/ | G74: https://www.bju.edu/academics/programs/information-technology/ | H74: Scored
A75: Boise State University | B75: 3.73 | D75: Computer Science | E75: Computer Science - Cybersecurity emphasis | F75: https://registrar.boisestate.edu/undergraduate/program-list/p-compsci/ | G75: https://registrar.boisestate.edu/undergraduate/course-catalog/cs/ | H75: Scored | I75: Department Chair | J75: Jain | K75: Amit | L75: ajain@boisestate.edu | M75: 208-426-3821
A76: Bowie State University | B76: 3.1 | C76: College of Arts & Sciences | D76: Technology & Security | E76: Computer Technology: Computer Network and Security Track | F76: https://www.bowiestate.edu/files/resources/ctec-degree-requirements.pdf | G76: https://www.bowiestate.edu/files/resources/catalog-undergraduate-2017-2019-2.pdf | H76: Page 388 of catalog has course descriptions. Higher concentration scored | I76: Department Chair | J76: Jackson | K76: Lethia | L76: ljackson@bowiestate.edu | M76: 301-860-3970 | N76: https://www.bowiestate.edu/academics-research/colleges/college-arts-sciences/departments/technology-security/faculty-staff/
A77: Bowling Green State University-Main Campus | B77: Not an IT program | E77: Computer Science | F77: http://www.bgsu.edu/content/dam/BGSU/catalog/Fall-2018/arts-and-sciences/Computer-Science-BS.pdf | H77: More computer science than IT (algorithms, theory, etc.)
A78: Brandman University | B78: 1.96 | C78: Business & Professional Studies | E78: Computing Technology, Information Technology | F78: https://www.brandman.edu/academic-programs/business-and-professional-studies/bs-in-computing-technology-information-technology | G78: http://catalog.brandman.edu/course-descriptions/#c300215 | H78: Scored
A79: Brescia University | B79: Not an IT program | E79: Computer Science | F79: https://www.brescia.edu/wp-content/uploads/2018-2019-Catalog-1.pdf | G79: See page 91 of catalog | H79: More computer science than IT (algorithms, theory, etc.)
A80: Brewton-Parker College | B80: Not an IT program | E80: Business Administration - Information Systems | F80: http://bpc.edu/academics/programs-of-study/business-administration | H80: Business program
A81: Briarcliffe College | B81: Closed | F81: http://www.briarcliffe.edu/ | H81: The school closed in 2018
A82: Brigham Young University-Hawaii | B82: 4.4 | D82: Math and Computing | E82: Information Technology | F82: https://catalog.byuh.edu/sites/catalog.byuh.edu/files/IT_MRS_12-13-18.pdf | G82: https://catalog.byuh.edu/content/information-technology-it | H82: Scored | I82: Dean | J82: Lee | K82: James | L82: james.lee@byuh.edu | N82: https://catalog.byuh.edu/Department_Contact_Info.html
A83: Brigham Young University-Idaho | B83: 3.24 | D83: Computer Information Technology | E83: Computer Information Technology | F83: http://www.byui.edu/catalog/#/programs/4kglXX-3i-?bc=true&bcCurrent=Computer%20Information%20Technology&bcGroup=Department%20of%20Computer%20Information%20Technology&bcItemType=programs | G83: http://www.byui.edu/computer-information-technology/courses | H83: Scored | I83: Department Chair | J83: Godfrey | K83: Kory | L83: godfreyko@byui.edu | M83: 208-496-3770 | N83: http://www.byui.edu/computer-information-technology/faculty
A84: Brigham Young University-Provo | B84: 4.49 | C84: Ira A. Fulton College of Engineering | D84: School of Technology | E84: Information Technology | F84: https://catalog.byu.edu/engineering-and-technology/school-of-technology/information-technology-bs | G84: https://catalog.byu.edu/engineering-and-technology/school-of-technology/information-technology-bs | H84: Scored | I84: Director | J84: Lunt | K84: Barry | L84: luntb@byu.edu | M84: 801-422-2264 | N84: http://it.et.byu.edu/people.html
A85: Broadview University-West Jordan | B85: Not an IT Program | F85: https://broadviewuniversity.edu/ | H85: Vetinary school
A86: Broward College | B86: 1.55 | E86: Information Technology | F86: http://www.broward.edu/academics/programs/ProgramMaps20182019/STEM/AS%20Computer%20Information%20Technology%202149.pdf | G86: http://www.broward.edu/zext/ext/DepartmentCourseList.jsp?Name=COP | H86: Scored
A87: Brown University | B87: Not an IT program | E87: Computer Science | F87: https://cs.brown.edu/degrees/undergrad/new-concentration-requirements/pathways-scb-and-ab-concentrations/ | H87: More of a computer science program than IT.
A88: Bryant University | B88: Not an IT program | C88: College of Business | D88: Information Systems and Analytics | E88: Information Systems | F88: https://catalog.bryant.edu/undergraduate/collegeofbusiness/informationsystemsandanalyticsdepartment/infosysandanalyticsconcentration/ | G88: https://catalog.bryant.edu/undergraduate/collegeofbusiness/informationsystemsandanalyticsdepartment/infosysandanalyticsconcentration/ | H88: More of a business program than IT
A89: Bucknell University | B89: Not an IT program | C89: College of Engineering | D89: Computer Science | E89: Computer Science and Engineering | F89: https://coursecatalog.bucknell.edu/collegeofengineeringcurricula/areasofstudy/computersciencecsci/#majortext | G89: https://coursecatalog.bucknell.edu/collegeofengineeringcurricula/areasofstudy/computersciencecsci/#majortext | H89: Programming and Computer Science heavy
A90: Buena Vista University | B90: 3.63 | C90: School of Science | E90: Computer Science: Information Technology Track | F90: https://www.bvu.edu/academics/programs/computer-science | G90: https://www.bvu.edu/sites/default/files/2018-07/catalog1819.pdf | H90: Scored. See page 218 of catalog for course descriptions | I90: Assoc. Professor | J90: Backman | K90: Nathan | L90: backman@bvu.edu | M90: 712-749-2019
A91: Butler University | B91: Not an IT program | E91: Computer Science | F91: https://www.butler.edu/computer-science/programs/computer-science | H91: More of a computer science program than IT.
A92: Cabrini University | B92: 3.79 | C92: School of Natural Sciences and Allied Health | D92: Computer and Information Sciences | E92: Computer and Information Sciences | F92: https://www.cabrini.edu/about/departments/academic-departments/school-of-natural-sciences-and-allied-health/computer-and-information-sciences/computer-systems-track | G92: https://www.cabrini.edu/globalassets/pdfs-website/academic-affairs/catalogs/undergraduate-catalog-2018-19.pdf | H92: Scored | I92: Department Chair | J92: Albrecht | K92: Thomas | L92: thomas.albrecht@cabrini.edu | M92: 610-902-1072 | N92: https://www.cabrini.edu/about/departments/academic-departments/school-of-natural-sciences-and-allied-health/computer-and-information-sciences/faculty/albrecht
A93: Caldwell University | B93: 2.13 | E93: Computer Information Systems: Concentration in Information Technology | F93: https://www.caldwell.edu/academics/majors-minors/business/bs-cis | H93: Scored. Range Given
A94: California Baptist University | B94: Not an IT program | E94: Computer Science | F94: https://calbaptist.edu/programs/bachelor-of-science-computer-science/courses | H94: More computer science than IT (theory of computation, engineering, development, intelligent systems, etc.)
A95: California State University-Channel Islands | B95: 3.92 | D95: Computer Science | E95: Information Technology | F95: https://compsci.csuci.edu/degrees/bsit-chart.pdf | G95: https://ciapps.csuci.edu/ScheduleOfClasses/SOC/index/Spring-2019 | H95: Scored | I95: Department Chair | J95: Soltys | K95: Michael | L95: cs@csuci.edu | M95: 805-437-3713 | N95: https://compsci.csuci.edu/about/faculty.htm
A96: California State University-Chico | B96: 3.37 | C96: College of Engineering, Computer Science & Construction Management | D96: Computer Science | E96: Computer Information Systems | F96: http://catalog.csuchico.edu/viewer/18/CSCI/CINSNONEBS.html | G96: http://catalog.csuchico.edu/viewer/18/CSCI/CINSNONEBS.html | H96: Scored | I96: Department Chair | J96: Henry | K96: Tyson | L96: trhenry@csuchico.edu | M96: 530-898-5709 | N96: https://www.csuchico.edu/csci/faculty-staff/henry-tyson.shtml
A97: California State University-Los Angeles | B97: Not an IT Program | C97: College of Engineering, Computer Science & Technology | D97: Computer Science | E97: Computer Science | F97: http://www.calstatela.edu/ecst/cs/major-requirements | G97: http://ecatalog.calstatela.edu/content.php?filter%5B27%5D=CIS&filter%5B29%5D=&filter%5Bcourse_type%5D=-1&filter%5Bkeyword%5D=&filter%5B32%5D=1&filter%5Bcpage%5D=1&cur_cat_oid=25&expand=&navoid=2604&search_database=Filter#acalog_template_course_filter | H97: Missing essential IT pillars
A98: California State University, Northridge | B98: 4.13 | C98: College of Engineering and Computer Science | D98: Computer Science | E98: Computer Information Technology | F98: https://catalog.csun.edu/academics/comp/programs/bs-computer-information-technology/ | G98: https://catalog.csun.edu/academics/comp/programs/bs-computer-information-technology/ | H98: No email found. Range given because of flexible domain emphasis (3.34-4.13). Scored | I98: Department Chair | J98: Covington | K98: Richard | M98: 818-677-3398 | N98: https://catalog.csun.edu/academics/comp/faculty/
A99: California State University-San Bernardino | B99: 2.6 | C99: College of Business and Public Administration | D99: Information and Decision Sciences | E99: Information Systems and Technology | F99: http://bulletin.csusb.edu/colleges-schools-departments/business-public-administration/information-decision-sciences/information-systems-technology-bs/ | H99: Scored. Range
A100: California State University-Stanislaus | B100: Not an IT Program | C100: College of Business Administration | E100: Computer Information Systems | F100: http://catalog.csustan.edu/preview_program.php?catoid=22&poid=3370&hl=%22Computer+Information+Systems%22&returnto=search | G100: http://catalog.csustan.edu/preview_program.php?catoid=22&poid=3370&hl=%22Computer+Information+Systems%22&returnto=search | H100: More business focused, missing IT essential pillars
A101: California University of Pennsylvania | B101: 3.51 | D101: Mathematics, Computer Science and Information Systems | E101: Computer Information Systems | F101: https://www.calu.edu/academics/undergraduate/bachelors/computer-information-systems/index.aspx | G101: https://www.calu.edu/catalog/current/undergraduate/courses/cis-st-courses.aspx | H101: Scored | I101: Department Chair | J101: Benbourenane | K101: Mohamed | L101: benbourenane@calu.edu | M101: 724-938-4114 | N101: https://www.calu.edu/inside/faculty-staff/profiles/mohamed-benbourenane.aspx
A102: Calumet College of Saint Joseph | B102: No IT program found | F102: https://www.ccsj.edu/academics/#undergraduate | H102: No IT Program found, or anything related
A103: Cameron University | B103: 3.47 | C103: School of Arts and Sciences | D103: Computing and Technology | E103: Information Technology: Cybersecurity and Information Assurance Option | F103: https://www.cameron.edu/catalog/science/technology.html#major414 | G103: https://banner02.cameron.edu/prod/bwckctlg.p_display_courses | H103: Scored | I103: Department Chair | J103: Javed | K103: Muhammad | L103: mjaved@cameron.edu | M103: 580-581-2335 | N103: https://www.cameron.edu/comptech/faculty.html
A104: Campbell University | B104: 1.75 | C104: College of Arts and Sciences | D104: Mathematics and Information Technology and Security | E104: Information Technology & Security: Security Concentration | F104: http://courses.campbell.edu/preview_program.php?catoid=3&poid=524&returnto=184 | G104: http://courses.campbell.edu/content.php?filter%5B27%5D=ITS&filter%5B29%5D=&filter%5Bcourse_type%5D=-1&filter%5Bkeyword%5D=&filter%5B32%5D=1&filter%5Bcpage%5D=1&cur_cat_oid=3&expand=&navoid=156&search_database=Filter&filter%5Bexact_match%5D=1#acalog_template_course_filter | H104: Scored | I104: Department Chair | J104: Williams | K104: Meredith | L104: williamst@campbell.edu | M104: 910-893-1662 | N104: https://cas.campbell.edu/academic-programs/information-technology-security/faculty/
A105: Campbellsville University | B105: Not an IT program | E105: Business Administration: Information Technology or Computer Information Systems Concentrations | F105: https://www.campbellsville.edu/academics/programs/business-administration/degrees/bachelor-business-administration/business-administration-area-computer-information-system-emphasis/ | H105: Lots of business classes, missing pillars
A106: Capella University | B106: 4.08 | F106: https://www.capella.edu/online-degrees/bachelors-information-technology/courses/ | H106: Scored. Online so no colleges or faculty info given
A107: Capitol Technology University | B107: 4.3 | C107: Critical Infrastructures and Cyber Protection Center | D107: Cybe and Information Security | E107: Cyber and Information Security | F107: https://www.captechu.edu/degrees-and-programs/bachelors-degrees/cyber-and-information-security-bs | G107: https://www.captechu.edu/degrees-and-programs/bachelors-degrees/cyber-and-information-security-bs | H107: Scored | I107: Department Chair | J107: Butler | K107: William | L107: whbutler@captechu.edu | M107: 240-965-2458 | N107: https://www.captechu.edu/faculty-staff/william-butler
A108: Carnegie Mellon University | B108: Not an IT Program | E108: Computer Science | F108: https://www.cmu.edu/interdisciplinary/assets/bcsa-cs.pdf | H108: Computer Science focus, missing pillars
A109: Carroll University | B109: 2.07 | E109: Information Technology | F109: http://catalog.carrollu.edu/contentm/blueprints/blueprint_display.php?bp_listing_id=154&blueprint_id=270&sid=26&menu_id=6137 | H109: Scored
A110: Carson-Newman University | B110: Not an IT program | E110: Computer Science | F110: http://www.cn.edu/libraries/tiny_mce/tiny_mce/plugins/filemanager/files/REGISTRARS_OFFICE/2017-2018_Undergraduate_Catalog.pdf | G110: page 69 of catalog | H110: More Computer Science or business focused, depending on the emphasis
A111: Carthage College | B111: Not an IT program | E111: Computer Science | F111: https://www.carthage.edu/computer-science/requirements/ | H111: Missing pillars, computer science focus
A112: Catawba College | B112: Not an IT program | E112: Computer Science OR Information Systems | F112: https://catawba.edu/academics/programs/undergraduate/computer-science/ | H112: Computer science is more math focused, IS is more business focused. Both missing pillars
A113: Catholic University of America | B113: 2.13 | E113: Information Technology | F113: https://metro.catholic.edu/academics/bachelors/information-technology/requirements/index.html | H113: Scored
A114: Cedar Crest College | B114: No IT Program offered | F114: https://www.cedarcrest.edu/academics/index.shtm | H114: No IT program offered or anything related
A115: Central Connecticut State University | B115: 3 | C115: School of Engineering, Science and Technology | D115: Computer Science AND Computer Electronics & Graphics Technology | E115: Cybersecurity: Cyber Defense Concentration | F115: http://www2.ccsu.edu/program/Cybersecurity_BS/curriculum | G115: http://www2.ccsu.edu/program/Cybersecurity_BS/curriculum | H115: Scored | I115: Department Chair | J115: Kurkovsky | K115: Stanislav | L115: kurkovsky@ccsu.edu | M115: 860-832-2720 | N115: http://www.ccsu.edu/cs/faculty.html
A116: Central Michigan University | B116: 1.88 | C116: College of Science and Engineering | D116: Computer Science | E116: Information Technology | F116: http://cmich.smartcatalogiq.com/en/2018-2019/Undergraduate-Bulletin/Colleges-and-Departments/College-of-Science-and-Engineering/Computer-Science-CPS-ITC/Majors/Information-Technology-B-A-B-S | G116: http://cmich.smartcatalogiq.com/en/2018-2019/Undergraduate-Bulletin/Colleges-and-Departments/College-of-Science-and-Engineering/Computer-Science-CPS-ITC/Majors/Information-Technology-B-A-B-S | H116: Scored
A117: Central Washington University | B117: 2.55 | C117: College of Education and Professional Studies | D117: Information Technology and Administrative Management | E117: Information Technology: Cybersecurity | F117: http://www.cwu.edu/it-management/cyber-spec | H117: Scored
A118: Chaminade University of Honolulu | B118: No IT program offered | F118: https://admissions.chaminade.edu/degree-programs/ | H118: No IT program offered or anything related
A119: Champlain College | B119: 3.53 | C119: Information Technology and Sciences | E119: Computer Networking and Cybersecurity | F119: https://www.champlain.edu/technology-degrees/computer-networking-and-information-security/curriculum | G119: https://www.champlain.edu/technology-degrees/computer-networking-and-information-security/curriculum | H119: Scored | I119: Dean | J119: Stevens | K119: Scott | L119: stevens@champlain.edu | N119: https://www.champlain.edu/academics/academic-divisions/division-of-information-technology-and-sciences/faculty-its-div
A120: Chapman University | B120: Not an IT program | E120: Computer Science | F120: https://www.chapman.edu/catalog/oc/current/ug/content/8174.htm#o4197 | H120: Missing pillars, computer science focus
A121: Charleston Southern University | B121: 2.93 | C121: College of Science and Mathematics | D121: Computer Science | E121: Cybersecurity | F121: https://www.charlestonsouthern.edu/computerscience/docs/bs-checklist-ybersecurity.pdf | G121: http://catalog.csuniv.edu/content.php?filter%5B27%5D=CSCI&filter%5B29%5D=&filter%5Bcourse_type%5D=-1&filter%5Bkeyword%5D=&filter%5B32%5D=1&filter%5Bcpage%5D=1&cur_cat_oid=21&expand=&navoid=516&search_database=Filter#acalog_template_course_filter | H121: Scored | I121: Department Chair | J121: Sessions | K121: Valerie | L121: vsessions@csuniv.edu | M121: 843-863-7529 | N121: http://www.charlestonsouthern.edu/directory/computerscience/vsessions.php
A122: Charter College | B122: 2.25 | E122: Computer Information Systems | F122: https://www.chartercollege.edu/sites/default/files/Charter%20College%20Catalog%20and%20Student%20Handbook%2002.12.2018%20-%2003.17.2019.pdf | H122: Scored. Requirements found on page 95 of catalog.
A123: Charter Oak State College | B123: 1.5 | E123: Cybersecurity | F123: https://www.charteroak.edu/cybersecurity/ | H123: Scored. Mainly just cybersecurity courses
A124: Chestnut Hill College | B124: 2.44 | C124: No college | D124: Computer Science and Information Technology | E124: Computer and Information Sciences | F124: https://www.chc.edu/sites/default/files/Uploads/Documents/SUSRequirements_Courses/SUSRequirements-Computer_IT.pdf | G124: https://www.chc.edu/sites/default/files/Uploads/Documents/Catalogs/2017-2018-SUS-Catalog.pdf | H124: Scored | I124: Department Chair | J124: Olivieri | K124: Lisa | L124: lolivier@chc.edu | M124: 215-248-7092 | N124: https://www.chc.edu/faculty
A125: Cheyney University of Pennsylvania | B125: Not an IT program | D125: Natural and Applied Sciences | E125: Computer and Information Science | F125: https://www.cheyney.edu/natural-applied-sciences/documents/ComputerScienceCurriculumWorksheet2018-2019.pdf | H125: Missing pillars, computer science focus
A126: Citadel Military College of South Carolina | B126: Not an IT program | E126: Computer Science | F126: http://www.citadel.edu/root/ccs-programs/bs-computer-science | G126: http://www.citadel.edu/root/ccs-courses/372-academics/schools/ssm/cyber-and-computer-sciences/21145-undergraduate-computer-science-courses | H126: Missing pillars, computer science focus
A127: City University of Seattle | B127: 3.04 | C127: Technology Institute | D127: None | E127: Information Technology | F127: https://www.cityu.edu/programs-overview/bachelor-science-information-technology/ | G127: https://www.cityu.edu/programs-overview/bachelor-science-information-technology/ | H127: Scored | I127: None given | L127: No contact info
A128: Clarion University of Pennsylvania | B128: Not an IT program | C128: College of Business Administration and Information Sciences | E128: Computer Science | F128: http://www.clarion.edu/academics/degrees-programs/requirements/bs-computer-science.pdf | H128: Missing pillars, computer science focus
A129: Clark Atlanta University | B129: 3.63 | C129: School of Arts and Sciences | D129: Division of Natural Sciences and Mathematics: Computer and Information Science | E129: Computer Science | F129: http://www.cau.edu/registrar/_includes/files/UNDERGRADUATE-CATALOG-2016-2018-Revised0917.pdf | G129: http://www.cau.edu/registrar/_includes/files/cau-ugrad-catalog-2016-2018-course-descriptions.pdf | H129: Scored.Page 258 of catalog - degree requirements | I129: Department Chair | J129: George | K129: Roy | L129: rgeorge@cau.edu | M129: 404-880-6945 | N129: http://www.cau.edu/department-of-computer-and-information-science/computer-and-information-science-faculty-and-staff.html
A130: Clarke University | B130: 3.62 | D130: Computer Information Systems | E130: Computer Information Systems | F130: https://www.clarke.edu/wp-content/uploads/AA_Curriculum-Computer-Informtion-Systems.pdf | G130: https://www.clarke.edu/wp-content/uploads/AA_2016-17-Catalog_TOPRINT_forweb1.pdf | H130: Scored | I130: Asst. Prof | J130: Dempewolf | K130: Michael | L130: mike.dempewolf@clarke.edu | M130: 563-588-6401 | N130: https://www.clarke.edu/person/?dept=397
A131: Clayton State University | B131: 3.02 | D131: Computer Science and Information Technology | E131: Information Technology | F131: http://www.clayton.edu/cims/computer-science-and-information-technology/bit | G131: https://apps.clayton.edu/courses/schedule/201902/subject/I | H131: Scored | I131: Department Chair | J131: Kongmunvattana | K131: Angkul | L131: angkulkongmunvattana@clayton.edu | M131: 678-466-4405 | N131: http://www.clayton.edu/cims/computer-science-and-information-technology/contact
A132: Clemson University | B132: 2.95 | E132: Computer Information Systems | F132: http://catalog.clemson.edu/preview_program.php?catoid=18&poid=4401&returnto=553 | G132: http://catalog.clemson.edu/preview_program.php?catoid=18&poid=4401&returnto=553 | H132: Scored
A133: Cleveland State University | B133: Not an IT program | C133: Washkewicz College of Engineering | E133: Computer Science | F133: https://www.csuohio.edu/engineering/sites/csuohio.edu.engineering/files/BSCSmap.pdf | H133: Heavy on Programming, engineering courses, missing pillars
A134: Coastal Carolina University | B134: 2.56 | C134: College of Science | D134: Computing Sciences | E134: Information Technology | F134: http://catalog.coastal.edu/preview_program.php?catoid=5&poid=602 | H134: Scored | I134: Department Chair | J134: French | K134: Jean | L134: jennis@coastal.edu | M134: 843-234-3430
A135: Coleman University | B135: Closed | F135: https://coleman.edu/ | H135: School Closed
A136: College of Charleston | B136: 3.68 | C136: School of Sciences and Mathematics | D136: Computer Science | E136: Computer Information Systems | F136: http://catalog.cofc.edu/preview_program.php?catoid=12&poid=2462 | G136: http://catalog.cofc.edu/preview_program.php?catoid=12&poid=2462 | H136: Scored | I136: Department Chair | J136: Van Delden | K136: Sebastian | L136: vandeldensa@cofc.edu | M136: 846-953-6905 | N136: http://compsci.cofc.edu/about/faculty-staff-listing/index.php
A137: College of Our Lady of the Elms | B137: 2.37 | E137: Computer Information Technology and Security | F137: https://www.elms.edu/undergraduate-admission/computer-information-technology/curriculum-and-courses/ | G137: https://www.elms.edu/wp-content/uploads/Files/course-catalogs/Undergraduate-Course-Catalog-17-19.pdf | H137: Scored
A138: College of the Ozarks | B138: Not an IT Program | E138: Computer Information Science | F138: http://catalog.cofo.edu/preview_program.php?catoid=11&poid=2278&returnto=530 | H138: Missing pillars
A139: Colorado Christian University | B139: Not an IT Program | E139: Computer Information Science | F139: http://catalog.ccu.edu/preview_program.php?catoid=28&poid=6697 | H139: Business degree
A140: Colorado Mesa University | B140: Not an IT program | E140: Computer Science | F140: https://www.coloradomesa.edu/academic-program-sheets/documents/1819/bs-compscience-1819.pdf | H140: Missing pillars
A141: Colorado State University-Fort Collins | B141: Not an IT program | E141: Computer Science | F141: http://catalog.colostate.edu/general-catalog/colleges/natural-sciences/computer-science/computer-science-major/computer-science-concentration/#requirementstext | H141: Doesn't require some of the pillars, can be electives though
A142: Colorado State University-Global Campus | B142: 1.8 | E142: Information Technology | F142: https://csuglobal.edu/undergraduate/bachelors-degrees/information-technology | G142: https://csuglobal.edu/undergraduate/bachelors-degrees/information-technology | H142: Scored
A143: Colorado Technical University-Colorado Springs | B143: 2.34 | E143: Information Technology | F143: https://www.coloradotech.edu/degrees/bachelors/it | H143: Scored
A144: Columbia Basin College | B144: 3.44 | C144: College of Business and Computer Science | D144: The Lockheed Martin Department of Information Science and Technology | E144: Information Technology | F144: http://www.columbiabasin.edu/Modules/ShowDocument.aspx?documentid=5860 | G144: https://www.columbiabasin.edu/Modules/ShowDocument.aspx?documentid=5966#page=178 | H144: Scored | I144: Dean | J144: Meadows | K144: Deborah | L144: dmeadows@columbiabasin.edu | M144: 509-542-4863 | N144: https://www.columbiabasin.edu/index.aspx?page=2457
A145: Columbia College | B145: Not an IT program | D145: Computer and Mathematical Sciences | E145: Computer Science | F145: https://www.ccis.edu/degrees/bscs.aspx | H145: Missing pillars, computer science algorithms and programming heavy
A146: Columbia Southern University | B146: 3.23 | E146: Information Technology | F146: https://www.columbiasouthern.edu/online-degree/safety-emer-services/information-technology/bs-it#curriculum | G146: https://www.columbiasouthern.edu/online-degree/safety-emer-services/information-technology/bs-it#curriculum | H146: Scored. Online. | J146: Online program | L146: Online Program
A147: Columbus State University | B147: 3.93 | C147: D. Abbott Turner College of Business | D147: TSYS School of Computer Science | E147: Information Technology | F147: https://academics.columbusstate.edu/catalogs/current/reqs/cobcs_bsit.php#progstudy | G147: https://academics.columbusstate.edu/catalogs/2017-2018/course_description.php?CPSC | H147: Scored | I147: Department Chair | J147: Summers | K147: Wayne | L147: summers_wayne@columbusstate.edu | M147: 706-507-8193 | N147: https://cs.columbusstate.edu/facstaff/directory.php
A148: Concordia University-Chicago | B148: Not an IT Program | E148: Computer Information Systems | F148: https://www.cuchicago.edu/globalassets/documents/catalogs/2018-2019/cuc-ug-catalog-2018-2019-final.pdf | H148: Missing main pillars/does not require
A149: Cornell University | B149: Not an IT Program | E149: Information Science, Systems, and Technology | F149: https://infosci.cornell.edu/undergraduate/info-sci-majors/bs-information-science-systems-and-technology/degree-requirements | H149: Missing pillars, more business
A150: Covenant College | B150: 2.6 | E150: Computer Science: Cybersecurity Concentration | F150: http://catalog.covenant.edu/preview_program.php?catoid=14&poid=974 | G150: http://catalog.covenant.edu/preview_program.php?catoid=14&poid=974 | H150: Scored
A151: Creighton University | B151: Not an IT program | E151: Computer Science and Informatics: computer Science Track | F151: http://catalog.creighton.edu/undergraduate/arts-sciences/journalism/computer-science-informatics-computing-science-track-bs/ | H151: Computer Science focus, missing pillars
A152: Cumberland University | B152: 3.11 | C152: Edward A. Labry School of Science, Technology, and Business | D152: Technology | E152: Information Technology | F152: http://cumberland.smartcatalogiq.com/en/Current-Catalog/Current-Catalog/Edward-A-Labry-School-of-Science-Technology-and-Business/Information-Technology | G152: http://cumberland.smartcatalogiq.com/en/Current-Catalog/Current-Catalog/Edward-A-Labry-School-of-Science-Technology-and-Business/Information-Technology | H152: Scored | J152: No contact info given
A153: CUNY Brooklyn College | B153: Not an IT Program | E153: Computer Science | F153: http://www.brooklyn.cuny.edu/courses/acad/program_info.jsp?major=025&div=U&dept_code=22&dept_id=109#025 | H153: Computer Science focused. Missing pillars. Information Systems requires lots of business
A154: CUNY Hunter College | B154: Not an IT Program | E154: Computer Science | F154: http://catalog.hunter.cuny.edu/preview_program.php?catoid=16&poid=2196&returnto=1543 | G154: http://catalog.hunter.cuny.edu/content.php?catoid=16&navoid=1543 | H154: Computer Theory, Computer Architecture, missing pillars
A155: CUNY John Jay College of Criminal Justice | B155: 3.4 | C155: No college | D155: Mathematics and Computer Science | E155: Computer Science and Information Security | F155: http://jjay.smartcatalogiq.com/en/2018-2019/Undergraduate-Bulletin/Majors/Computer-Science-and-Information-Security-Bachelor-of-Science | H155: Scored | I155: Professor | J155: Ahmad | K155: Aftab | L155: aahmad@jjay.cuny.edu | M155: 212-393-6314 | N155: http://www.jjay.cuny.edu/faculty-fulltime/mathematics-computer-science
A156: CUNY York College | B156: Not an IT program | E156: Computer Science | F156: https://www.york.cuny.edu/produce-and-print/contents/bulletin/school-of-arts-and-sciences/mathematics-and-computer-science/computer-science-bs | G156: https://www.york.cuny.edu/produce-and-print/contents/bulletin/school-of-arts-and-sciences/mathematics-and-computer-science/computer-science-bs | H156: Computer Science focused. Automata, heavy programming, missing pillars
A157: Curry College | B157: 3.11 | D157: Applied Technology | E157: Information Technology | F157: https://www.curry.edu/academics/undergraduate-degrees-and-programs/applied-technology-degrees-and-programs/information-technology-degree-major-and-minor | G157: https://www.curry.edu/assets/Documents/Academics/Course-Catalog.pdf | H157: Course descriptions on page 158. Scored. | I157: Professor (chair not found) | J157: Gallant | K157: Maryann | L157: mgallant@curry.edu | M157: 617-333-2162 | N157: https://www.curry.edu/academics/undergraduate-degrees-and-programs/applied-technology-degrees-and-programs
A158: Dakota State University | B158: 2.71 | C158: The Beacom College of Computer and Cyber Sciences | D158: None | E158: Cyber Operations | F158: https://catalog.dsu.edu/preview_program.php?catoid=27&poid=1959 | G158: https://catalog.dsu.edu/preview_program.php?catoid=27&poid=1959 | H158: Scored | I158: Dean | J158: Hanson | K158: Richard | L158: richard.hanson@dsu.edu | M158: 605-256-5798 | N158: https://dsu.edu/about-dsu/directory
A159: Dallas Baptist University | B159: 3.55 | C159: College of Natural Sciences & Mathematics | E159: Cybersecurity (Available Fall 2019) | F159: http://www3.dbu.edu/math_science/cybersecurity_cr.asp | G159: http://www3.dbu.edu/math_science/cybersecurity_cr.asp | H159: Scored (Available in Fall 2019) | I159: Associate Dean | J159: Wei | K159: Han-Chieh
A160: Davenport University | B160: 2.98 | C160: College of Technology | D160: Networking, Cyber Defense and MSIA | E160: Cyber Defense | F160: https://www.davenport.edu/programs/technology/bachelors-degree/cyber-defense-bs | G160: https://www.davenport.edu/programs/technology/bachelors-degree/cyber-defense-bs | H160: Scored | I160: Department Chair | J160: Decker | K160: Lonnie | L160: lonnie.decker@davenport.edu | N160: https://www.davenport.edu/college-of-technology
A161: Davidson College | B161: Not an IT Program | D161: Mathematics and Computer Science | E161: Computer Science | F161: http://catalog.davidson.edu/preview_program.php?catoid=20&poid=1280&returnto=874 | G161: http://catalog.davidson.edu/preview_program.php?catoid=20&poid=1280&returnto=874 | H161: Very few core courses, programming heavy, missing pillars and cybersecurity, pillars they do have aren't required
A162: Daytona State College | B162: 2.85 | C162: College of Business, Engineering & Technology | D162: School of Engineering | E162: Information Technology | F162: http://daytonastate.smartcatalogiq.com/en/2017-2018/College-Catalog/Program-Guides/BS-Degree/Information-Technology-BSIT-B-S-Degree | G162: http://daytonastate.smartcatalogiq.com/en/2017-2018/College-Catalog/Program-Guides/BS-Degree/Information-Technology-BSIT-B-S-Degree | H162: Scored | I162: Department Chair | J162: Eaglin | K162: Ronald | L162: eaglinr@daytonastate.edu | M162: 386-506-4176 | N162: http://daytonastate.smartcatalogiq.com/en/2017-2018/College-Catalog/Program-Guides/BS-Degree/Information-Technology-BSIT-B-S-Degree
A163: Defiance College | B163: 2.08 | D163: Natural Science, Applied Science, and Mathematics | E163: Computer Science | F163: http://www.defiance.edu/registrar/documents/dc-undergrad-catalog-18-19.pdf | H163: Requirements on page 89 of catalog. Scored
A164: DePaul University | B164: 3.36 | C164: College of Computing and Digital Media | D164: School of Computing | E164: Information Technology | F164: https://courses.depaul.edu/university-catalog/degree-requirements/undergraduate/cdm/information-technology-bs/Pages/major-requirements.aspx | G164: https://courses.depaul.edu/university-catalog/degree-requirements/undergraduate/cdm/information-technology-bs/Pages/major-requirements.aspx | H164: Quarter Credits. Scored | I164: Director | J164: Furst | K164: Jacob | L164: jfurst@cdm.depaul.edu | M164: 312-362-5158 | N164: https://www.cdm.depaul.edu/Faculty-and-Staff/Pages/Administration.aspx
A165: DeSales University | B165: 2.2 | C165: Division of Sciences & Mathematics | D165: Mathematics & Computer Science | E165: Computer Science | F165: https://www.desales.edu/docs/default-source/graduation-requirements/computer-science-5-year-bs-to-msisa81b36c6cd0568828f7cff0000a3869d.pdf?sfvrsn=378b4b60_2 | G165: https://www.desales.edu/docs/default-source/academic-catalogs/desales-undergrad-catalog.pdf?sfvrsn=e7c21f15_13 | H165: Scored. Supplemental could be a range or proportion. CS or Math courses as electives | I165: Department Chair | J165: Houck | K165: Annmarie | L165: annmarie.houck@desales.edu | M165: 610-282-1100 | N165: https://www.desales.edu/academics/academic-divisions-departments/division-of-sciences-mathematics/department-of-mathematics-computer-science/our-faculty
A166: DeVry University | B166: 3.7 | E166: Information Technology and Networking: Cyber Security specialization | F166: https://www.devry.edu/d/information-technology-and-networking-cybersecurity-guide.pdf | G166: https://www.devry.edu/d/US_Catalog.pdf | H166: Scored. Multiple campuses, No department information given
A167: Dickinson College | B167: Not an IT program | D167: Computer Science | E167: Computer Science | F167: https://www.dickinson.edu/homepage/402/computer_science_curriculum | H167: Heavy programming and computer theory. Missing multiple pillars and cybersecurity | I167: Department Chair | J167: Braught | K167: Grant | L167: braught@dickinson.edu | M167: 717-245-1413 | N167: https://www.dickinson.edu/homepage/529/computer_science_department_faculty
A168: Dickinson State University | B168: Not an IT program | D168: Mathematics & Computer Science | E168: Computer Science | F168: http://dickinsonstate.smartcatalogiq.com/en/2018-2019/Catalog/Mathematics-and-Computer-Science-Department/Computer-Science/Bachelor-of-Science-Degree-Computer-Science | G168: http://dickinsonstate.smartcatalogiq.com/en/2018-2019/Catalog/Mathematics-and-Computer-Science-Department/Computer-Science/Bachelor-of-Science-Degree-Computer-Science | H168: Requires Software Engineering and algorithm analysis and theory, Heavy operating systems and programming, missing some pillars and cybersecurity | I168: Department Chair | J168: Harris | K168: Billy | L168: billy.harris@dickinsonstate.edu | M168: 701-483-2107 | N168: https://dickinsonstate.edu/about/directory/#dept-of-mathematics-and-computer-science
A169: Dillard University | B169: Not an IT program | C169: College of Arts and Sciences | D169: School of Science, Technology, Engineering and Mathematics | E169: Computer Science | F169: http://dillard.catalog.acalog.com/preview_program.php?catoid=4&poid=123&returnto=99 | G169: http://dillard.catalog.acalog.com/preview_program.php?catoid=4&poid=123&returnto=99 | H169: Requires Artificial Intelligence, Computer Graphics, Design and Analysis of Computer Algorithms. Heavy programming and operating systems, missing some pillars and cybersecurity | I169: Department Chair | J169: Agwaramgbo | K169: Lovell | L169: lagwaramgbo@dillard.edu | M169: 504-816-4489 | N169: http://www.dillard.edu/_academics/faculty-directory.php
A170: Dixie State University | B170: Not an IT program | C170: College of Science and Technology | D170: Computing and Design | E170: Computer and Information Technology | F170: https://catalog.dixie.edu/programs/computerinformationtechnology/bachelor_of_science_in_computer__information_technology/ | G170: https://catalog.dixie.edu/programs/computerinformationtechnology/bachelor_of_science_in_computer__information_technology/ | H170: Requires Software Engineering, Design courses, heavy web and mobile application development and programming, missing some pillars (Information Management, Cybersecurity) | I170: Department Chair | J170: Ross | K170: Russ | N170: https://catalog.dixie.edu/programs/computerinformationtechnology/#faculty
A171: Dominican College of Blauvelt | B171: Not an IT program | C171: Division of Business Administration | E171: Computer Information Systems | F171: https://www.dc.edu/wp-content/uploads/2018/09/Catalog-2018-2019-01.pdf | H171: Page 49 of catalog has requirements. Only 18 credits of IT domain courses required. 27 credits of Business core required. Has a little bit of an IT flavor, but not enough to score.
A172: Dominican University | B172: Not an IT program | C172: Rosary College of Arts and Sciences | D172: Computer Science | E172: Computer Science | F172: http://bulletin.dom.edu/preview_program.php?catoid=11&poid=1619&returnto=1999 | G172: http://bulletin.dom.edu/preview_program.php?catoid=11&poid=1619&returnto=1999 | H172: Heavy programming and computer theory. Missing multiple pillars and cybersecurity | I172: Department Chair | J172: Grant | K172: Cyrus | L172: grantcn@dom.edu | M172: 708-524-6759 | N172: https://m.dom.edu/default/directory/search?search=Search&filter=Computer+Science+
A173: Donnelly College | B173: Not an IT program | E173: Information Systems | F173: https://www.donnelly.edu/academics/bach-info-sys/courses | H173: Practically no IT courses. All business
A174: Dordt College | B174: Not an IT program | E174: Computer Science | F174: https://www.dordt.edu/sites/default/files/catalog_0.pdf | H174: Page 69 of catalog has requirements. Required courses are mainly programming, operating systems and networking. Missing cybersecurity, capstone, user experience design | I174: Department Chair | J174: Sandouka | K174: Kari | L174: kari.sandouka@dordt.edu | M174: 712-722-6252 | N174: https://www.dordt.edu/academics/undergraduate-programs/4-year-programs/computer-science
A175: Drake University | B175: Not an IT program | D175: Computer Science | E175: Computer Science | F175: https://www.drake.edu/catalog/undergrad/current/collegeofartsandsciences/areas/cs/#BSCS | H175: Heavy programming, theory of computation, missing multiple pillars and cybersecurity in core courses | I175: Department Chair | J175: Urness | K175: Tim | L175: timothy.urness@drake.edu | M175: 515-271-2118 | N175: https://www.drake.edu/cs/faculty/
A176: Drexel University | B176: Not an IT program | F176: http://catalog.drexel.edu/undergraduate/collegeofcomputingandinformatics/computingandsecuritytechnology/#degreerequirementstext | H176: Not offered anymore | I176: Department Head | J176: Salvucci | K176: Dario | L176: salvucci@drexel.edu | M176: 215-895-2674 | N176: https://drexel.edu/cci/about/directory/S/Salvucci-Dario/
A177: Duquesne University | B177: Not an IT program | C177: McAnulty College and Graduate School of Liberal Arts | E177: Computer Systems Technology | F177: https://www.duq.edu/academics/schools/liberal-arts/departments-and-programs/online-degrees/computer-systems-technology/curriculum | H177: Only 4 required courses. Lacking in IT pillars
A178: D'Youville College | B178: No IT Program offered | F178: http://www.dyc.edu/ | H178: No relevant program found
A179: East Carolina University | B179: 3.33 | C179: College of Engineering and Technology | D179: Technology Systems | E179: Information and Computer Technology | F179: http://catalog.ecu.edu/preview_program.php?catoid=14&poid=3498&returnto=1122 | G179: http://catalog.ecu.edu/preview_program.php?catoid=14&poid=3498&returnto=1122 | H179: Scored | I179: Program Coordinator | J179: Lunsford | K179: Philip | L179: lunsfordp@ecu.edu | M179: 252-328-9670
A180: East Central University | B180: Not an IT program | C180: College of Health and Sciences | D180: Mathematics and Computer Science | E180: Computer Science | F180: https://www.ecok.edu/sites/default/files/website_files/Academics/Academic_Affairs/Degree-Requirements/2018-2019/0510%20-%20UG18%20%28Computer%20Science%29.pdf | H180: Heavy programming, operating systems, lacking in cybersecurity, networking, web and mobile systems for required courses | I180: Department Chair | J180: Ferdinand | K180: Robert | L180: rferdand@ecok.edu | M180: 580-559-5493 | N180: https://www.ecok.edu/academics/colleges-and-schools/college-health-and-sciences/department-mathematics-and-computer
A181: East Stroudsburg University of Pennsylvania | B181: 2.79 | C181: College of Arts and Sciences | D181: Computer Science | E181: Computer Security | F181: http://esu.cmsiq.com/2018-2019/Undergraduate-Catalog/Academic-Programs-and-Courses/Computer-Science/Computer-Security/Computer-Security-B-S | G181: http://esu.cmsiq.com/2018-2019/Undergraduate-Catalog/Academic-Programs-and-Courses/Computer-Science/Computer-Security/Computer-Security-B-S | H181: Scored.No capstone hurt this one | I181: Department Chair | J181: Hofmeister | K181: Christine | L181: chofmeister@esu.edu | M181: 570-422-3327 | N181: https://www.esu.edu/academics/departments/computer_science/index.cfm
A182: East Tennessee State University | B182: 4.73 | C182: Business and Technology | D182: Computer and Information Systems | E182: Computing (Information Technology Concentration) | F182: https://catalog.etsu.edu/preview_program.php?catoid=6&poid=1044&returnto=176 | G182: https://catalog.etsu.edu/preview_program.php?catoid=6&poid=1044&returnto=176 | H182: Scored. ABET. | I182: Department Chair | J182: Pittarese | K182: Tony | L182: pittares@etsu.edu | M182: 423-439-5328 | N182: https://www.etsu.edu/cbat/computing/facstaff/
A183: Eastern Connecticut State University | B183: Not an IT program | C183: College of Arts and Sciences | D183: Computer Science | E183: Computer Science | F183: http://www.easternct.edu/computerscience/computer-science-core-fall2017/ | H183: Requires Software Engineering, algorithm design and analysis, heavy programming and math. Missing cybersecurity, web and mobile systems, human computer interaction, global professional practice, in required courses | I183: Department Chair | J183: Tasneem | K183: Sarah | L183: tasneems@easternct.edu | M183: 860-465-0389 | N183: http://www.easternct.edu/computerscience/faculty/
A184: Eastern Kentucky University | B184: 3.16 | D184: Computer Science | E184: Computer Science: Computer Technology Concentration | F184: https://science.eku.edu/sites/science.eku.edu/files/files/curriculum_planners/CSC/BS_CSC(Tech_opt).pdf#_ga=2.197602863.1084853120.1551219421-1248390504.1551219421 | H184: Scored | I184: Department Chair | J184: Wong | K184: Ka-Wing | L184: ka-wing.wong@eku.edu | M184: 859-622-2398 | N184: https://computerscience.eku.edu/people
A185: Eastern Michigan University | B185: 3.51 | C185: College of Technology | D185: Information Security and Applied Computing | E185: Information Assurance & Cyber Defense | F185: https://catalog.emich.edu/preview_program.php?catoid=25&poid=11779 | G185: https://catalog.emich.edu/preview_program.php?catoid=25&poid=11779 | H185: Scored | I185: Interim Director | J185: Ashur | K185: Suleiman | L185: sashur@emich.edu | M185: 734-487-2490 | N185: https://www.emich.edu/cot/faculty/index.php
A186: Eastern New Mexico University-Main Campus | B186: Not an IT program | E186: Information Systems | F186: https://www.enmu.edu/academics/degrees-programs/undergraduate-degree/bachelor/bachelor-applied-arts-sciences-baas/baas-concentrations/information-systems | H186: Missing multiple pillars, few credits required | I186: BAAS Coordinator | J186: Miller | K186: Cindy | L186: cindy.miller@enum.edu | M186: 575-562-4124
A187: Eastern Oregon University | B187: Not an IT program | C187: College of STM and Health Sciences | E187: Computer Science | F187: https://www.eou.edu/academics/files/2016/03/Computer-Science-2016.pdf | G187: https://www.eou.edu/computer-science/ | H187: 2016 Requirements used. Heavy programming and computer science, missing pillars and cybersecurity
A188: Eastern Washington University | B188: Not an IT program | C188: College of Science, Technology, Engineering and Mathematics | D188: Computer Science | E188: Computer Science | F188: https://www2.ewu.edu/cstem/departments/computer-science/cs-degrees-learning-outcomes-statistics/bscs | G188: https://www2.ewu.edu/cstem/departments/computer-science/cs-degrees-learning-outcomes-statistics/bscs | H188: Heavy programming and computer science, missing pillars and cybersecurity
A189: East-West University | B189: 2.59 | D189: Computer and Information Science | E189: Computer and Information Science: Cybersecurity Concentration | F189: https://www.eastwest.edu/media/files/cis-bs-cyber-security-program-sheet-92-0c49.pdf | H189: Scored. Website is kind of broken making it hard to find contact information
A190: ECPI University | B190: 3.15 | C190: College of Technology | E190: Cybersecurity | F190: https://www.ecpi.edu/programs/cybersecurity-bachelor-degree | G190: https://www.ecpi.edu/programs/cybersecurity-bachelor-degree | H190: Scored. Multiple campuses, No department information given. Capstone or externship, how should it be scored
A191: Edgewood College | B191: 2.61 | C191: School of Arts and Sciences | D191: Computing and Information Sciences | E191: Computer Information Systems | F191: https://cis.edgewood.edu/Academics/CIS-Majors/Computer-Info-Systems | G191: https://cis.edgewood.edu/Academics/Courses | H191: Scored. | I191: Department Chair | J191: Alexandrian | K191: Greg | L191: alexand@edgewood.edu | M191: 608-663-2869 | N191: https://cis.edgewood.edu/Faculty/Alexander-Garbuz
A192: Edinboro University of Pennsylvania | B192: 2.8 | C192: College of Science and Health Professions | D192: Mathematics and Computer Science | E192: Computer Science: Network & Systems Administration | F192: http://www.edinboro.edu/contentAsset/raw-data/ad98f268-2caa-43a4-b009-87728f597553/fileAsset | G192: http://www.edinboro.edu/academics/academic-resources/catalogs/catalogs/Edinboro%20Undergraduate%20Catalog%2018-20.pdf | H192: Scored
A193: Elizabethtown College | B193: 1.52 | D193: Computer Science | E193: Information Systems | F193: https://catalog.etown.edu/preview_program.php?catoid=15&poid=1346&hl | G193: https://catalog.etown.edu/preview_program.php?catoid=15&poid=1346&hl | H193: Scored
A194: Elmhurst College | B194: 1.64 | E194: Information Systems | F194: https://www.elmhurst.edu/academics/departments/computer-science-information-systems/programs/information-systems-major/ | H194: Scored
A195: Emmaus Bible College | B195: Not an IT program | E195: Computer Information Systems | F195: https://www.emmaus.edu/the-bachelor-of-science-in-bibletheology-and-computer-information-systems | H195: Very few required credits and no discrete math, but has an IT flavor
A196: Emporia State University | B196: 2.19 | C196: School of Business | E196: Computer Science | F196: https://www.emporia.edu/business/programs/computer-science/ | H196: Scored
A197: Eureka College | B197: Not an IT Program | E197: No Program | F197: https://www.eureka.edu/academics/find-your-major/ | H197: No program offered
A198: Evangel University | B198: Not an IT Program | C198: Natural and Applied Sciences | E198: Computer Information Systems OR Computer Science | F198: https://www.evangel.edu/wp-content/uploads/2011/11/SciTech-CIS-10-16-15.pdf | G198: https://www.evangel.edu/wp-content/uploads/2011/11/SciTech-CSPC-10-16-15.pdf | H198: IT flavor, but not enough in both programs. If they combined the two programs, then perhaps it could be considered IT. Information Systems requires a lot of business and is lacking in some pillars, while computer Science focuses too much on programming and operating systems.
A199: Everest University-Brandon | B199: Not an IT Program | H199: No website found for this school
A200: Everest University-South Orlando | B200: Not an IT Program | H200: No website found for this school
... 663 more rows

Sheet Academy
A1: Academy College
A2: Abbreviation/Category | B2: Desig | C2: Title | D2: Qtr Hrs | E2: Cred Hrs | F2: Compl Fact | G2: How Derived
A3: Essential IT Domains
A4: ITE-CSP (Cybersecurity) | B4: CS5005 | C4: Network Security & Cybercrime | D4: 6 | E4: =D4*(2/3) -> 4 | F4: =IF(E4 >= 6, 1, E4/6) -> 0.6666666667 | G4: .5 if ≈3; 1 if ≈6
A5: ITE-IMA (Information Management) | B5: CS5004 | C5: Database Design | D5: 6 | E5: 4 | F5: 0.6666666667 | G5: .5 if ≈3; 1 if ≈6
A6: ITE-NET (Networking) | B6: CS2125,3221 | C6: TCP/IP, Network + | D6: 12 | E6: 8 | F6: 1 | G6: .5 if ≈3; 1 if ≈6
A7: ITE-SPA (System Paradigms) | B7: CS5010 | C7: Systems Analysis | D7: 6 | E7: 4 | F7: 0.6666666667 | G7: .5 if ≈3; 1 if ≈6
A8: ITE-UXD (User Experience) | E8: 0 | F8: =IF(E8 >=3, 1, E8/3) -> 0 | G8: 1 if ≈3
A9: ITE-GPP (Global Professional Practice) | E9: 0 | F9: 0 | G9: 1 if ≈3
A10: ITE-IST (Integrated Systems Technology) | E10: 0 | F10: =IF(E10 >=2, 1, E10/3) -> 0 | G10: 1 if ≈2
A11: ITE-PFT (Platform Technologies) | B11: CS2112 | C11: Operating Systems | D11: 6 | E11: 4 | F11: =IF(E11 >=3, 1, E11/3) -> 1 | G11: 1 if ≈3
A12: ITE-SWF (Software Fundamentals) | B12: CP2301 | C12: Programming Concepts | D12: 6 | E12: 4 | F12: =IF(E12 >=5, 1, E12/5) -> 0.8 | G12: 1 if ≈3
A13: ITE-WMS (Web and Mobile Systems) | B13: CP5101 | C13: .NET Development | D13: 6 | E13: 4 | F13: =IF(E13 >=3, 1, E13/3) -> 1 | G13: 1 if ≈3
C16: (Essential) Scaled Score: | E16: =SUM(F4:F13)/10*2 -> 1.16 | G16: (2 maximum)
A17: Supplemental IT Domains
C18: Total Hours: | D18: 36 | E18: =D18*(2/3) -> 24 | G18: Required Hrs/24
A19: Additional Notes: | B19: Requires 36 Qtr credits in a CS and CP Concentration
C21: (Supplemental) Scaled Score: | E21: =E18/24 -> 1
A22: Related IT Essential Mathematics
A23: ITM-DSC (Discrete Structures) | B23: GM3016 | C23: Discrete Math | D23: 5 | E23: =D23*(2/3) -> 3.333333333
A25: Related IT Supplemental Mathematics
A26: ITM-SUP (Stats, Lin Alg, Calculus, etc) | B26: GC2112 | C26: College Algebra | D26: 5 | E26: =D26*(2/3) -> 3.333333333
C29: (Math) Scaled Score: | E29: =IF(SUM(E23,E26,E27,E28) >= 7, 0.5, 0.5 * SUM(E23,E26,E27,E28)/7) + IF(SUM(E23,E24) >= 3, 0.5, 0.5*E23/3) -> 0.9761904762 | G29: 1 if >7 Sem Cr Hrs
A30: Capstone
A31: Capstone Project (Senior Year) | B31: CS5107 | C31: Computer Science - Senior Project | D31: 6 | E31: =D31*(2/3) -> 4
C33: (Capstone) Scaled Score: | E33: =IF(E31 >= 3, 1, E31/3) -> 1 | G33: 1 if ≥3
C35: Final Compliance Factor: | E35: =SUM(E16,E21,E29,E33) -> 4.136190476

Sheet Alcorn
A1: Alcorn State University
A2: Abbreviation/Category | B2: Desig | C2: Title | D2: Cred Hrs | E2: Compl Fact | F2: How Derived
A3: Essential IT Domains
A4: ITE-CSP (Cybersecurity) | E4: =IF(D4 >= 6, 1, D4/6) -> 0 | F4: .5 if ≈3; 1 if ≈6
A5: ITE-IMA (Information Management) | B5: IT 375, 376 | C5: Database Management Systems/Database Server Administration | D5: 6 | E5: 1 | F5: .5 if ≈3; 1 if ≈6
A6: ITE-NET (Networking) | B6: IT 261, 262, 471, 362, 466, 473 | C6: Routing and Switching Basics, Introduction to WAN, System Analysis and Design, Advanced Routing, Network Security, Wireless Technologies | D6: 18 | E6: 1 | F6: .5 if ≈3; 1 if ≈6
A7: ITE-SPA (System Paradigms) | C7: IT Essentials | D7: 3 | E7: 0.5 | F7: .5 if ≈3; 1 if ≈6
A8: ITE-UXD (User Experience) | E8: =IF(D8 >=3, 1, D8/3) -> 0 | F8: 1 if ≈3
A9: ITE-GPP (Global Professional Practice) | B9: IT 101, TY 438 | C9: Project Management | D9: 3 | E9: 1 | F9: 1 if ≈3
A10: ITE-IST (Integrated Systems Technology) | B10: IT 364 | C10: Intro to UNIX | D10: 3 | E10: =IF(D10 >=2, 1, D10/3) -> 1 | F10: 1 if ≈2
A11: ITE-PFT (Platform Technologies) | B11: IT 365 | C11: Server Configuration and Administration | D11: 3 | E11: =IF(D11 >=3, 1, D11/3) -> 1 | F11: 1 if ≈3
A12: ITE-SWF (Software Fundamentals) | E12: 0 | F12: 1 if ≈3
A13: ITE-WMS (Web and Mobile Systems) | B13: IT 374 | C13: Internet Programming | D13: 3 | E13: 1 | F13: 1 if ≈3
C16: (Essential) Scaled Score: | D16: =SUM(E4:E13)/10*2 -> 1.3 | F16: (2 maximum)
A17: Supplemental IT Domains
C18: Total Hours: | D18: 20 | F18: Required Hrs/24
A19: Additional Notes: | B19: Supplemental Electives (8) + Essential IT Domains: Networking (12)
C21: (Supplemental) Scaled Score: | D21: =D18/24 -> 0.8333333333
A22: Related IT Essential Mathematics
A23: ITM-DSC (Discrete Structures)
A25: Related IT Supplemental Mathematics
A26: ITM-SUP (Stats, Lin Alg, Calculus, etc) | B26: EG 377 | C26: Engineering Statistics | D26: 3
B27: MA 121 | C27: College Algebra | D27: 3
B28: MA 181 | C28: Calculus I | D28: 4
C29: Math Scaled Score | D29: =IF(SUM(D23,D26,D27,D28) > 6, 0.5, 0.5 * SUM(D23,D26,D27,D28)/7) + IF(SUM(D23,D24) > 2, 0.5, 0.5*D23/3) -> 0.5 | F29: 1 if >7 Sem Cr Hrs
A30: Capstone
A31: Capstone Project (Senior Year) | B31: IT 494, 495 | C31: Thesis | D31: 1.5
C32: Half credit for thesis that isn't teamwork, but required
C33: (Capstone) Scaled Score: | D33: 0.5 | F33: 1 if ≥3
C35: Final Compliance Factor: | D35: =SUM(D16,D21,D29,D33) -> 3.133333333

Sheet American InterCon
A1: American InterContinental University
A2: Abbreviation/Category | B2: Desig | C2: Title | D2: Qtr Hrs | E2: Cred Hrs | F2: Compl Fact | G2: How Derived
A3: Essential IT Domains
A4: ITE-CSP (Cybersecurity) | B4: ITCO 361 | C4: Information Technology Security | D4: 4.5 | E4: =D4*(2/3) -> 3 | F4: =IF(E4 >= 6, 1, E4/6) -> 0.5 | G4: .5 if ≈3; 1 if ≈6
A5: ITE-IMA (Information Management) | B5: ITCO 231 | C5: Introduction to Databases | D5: 4.5 | E5: 3 | F5: 0.5 | G5: .5 if ≈3; 1 if ≈6
A6: ITE-NET (Networking) | B6: ITCO 251 | C6: Network Infrastructure Basics | D6: 4.5 | E6: 3 | F6: 0.5 | G6: .5 if ≈3; 1 if ≈6
A7: ITE-SPA (System Paradigms) | B7: ITCO 101 | C7: Discovering IT | D7: 4.5 | E7: 3 | F7: 0.5 | G7: .5 if ≈3; 1 if ≈6
A8: ITE-UXD (User Experience) | B8: ITCO 391 | C8: Human/Computer Interfaces and Interactions | D8: 4.5 | E8: 3 | F8: =IF(E8 >=3, 1, E8/3) -> 1 | G8: 1 if ≈3
A9: ITE-GPP (Global Professional Practice) | B9: MGMT 412 | C9: Project Management | D9: 4.5 | E9: 3 | F9: 1 | G9: 1 if ≈3
A10: ITE-IST (Integrated Systems Technology) | B10: ITCO 103 | C10: Intro to Computer and Network Hardware | D10: 4.5 | E10: 3 | F10: =IF(E10 >=2, 1, E10/3) -> 1 | G10: 1 if ≈2
A11: ITE-PFT (Platform Technologies) | B11: ITCO 211 | C11: Intro to Operating Systems | D11: 4.5 | E11: 3 | F11: =IF(E11 >=3, 1, E11/3) -> 1 | G11: 1 if ≈3
A12: ITE-SWF (Software Fundamentals) | B12: ITCO 221 | C12: Fundamentals of Programming and Logic | D12: 4.5 | E12: 3 | F12: =IF(E12 >=5, 1, E12/5) -> 0.6 | G12: 1 if ≈3
A13: ITE-WMS (Web and Mobile Systems) | B13: ITCO 381, 427 | C13: Introduction to Web Systems and Media, Mobile Technology | D13: 9 | E13: 6 | F13: =IF(E13 >=3, 1, E13/3) -> 1 | G13: 1 if ≈3
C16: (Essential) Scaled Score: | E16: =SUM(F4:F13)/10*2 -> 1.52 | G16: (2 maximum)
A17: Supplemental IT Domains
C18: Total Hours: | D18: 22.5 | E18: =D18*(2/3) + 4 -> 19 | G18: Required Hrs/24
A19: Additional Notes: | B19: Supplemental: 22.5 Quarter hours + Essential IT Domains: Web and Mobile Systems (3 sem), Platform technologies (1 sem)
C21: (Supplemental) Scaled Score: | E21: =E18/24 -> 0.7916666667
A22: Related IT Essential Mathematics
A23: ITM-DSC (Discrete Structures) | C23: No Discrete Math
A25: Related IT Supplemental Mathematics
A26: ITM-SUP (Stats, Lin Alg, Calculus, etc) | B26: MATH 133 | C26: College Algebra | D26: 4.5 | E26: =D26*(2/3) -> 3
B27: MATH 125 | C27: General College Mathematics | D27: 4.5 | E27: 3
C29: (Math) Scaled Score: | E29: =IF(SUM(E23,E26,E27,E28) >= 7, 0.5, 0.5 * SUM(E23,E26,E27,E28)/7) + IF(SUM(E23,E24) >= 3, 0.5, 0.5*E23/3) -> 0.4285714286 | G29: 1 if >7 Sem Cr Hrs
A30: Capstone
A31: Capstone Project (Senior Year) | B31: ITCO 498 | C31: Program Capstone for IT | D31: 4.5 | E31: =D31*(2/3) -> 3
C33: (Capstone) Scaled Score: | E33: =IF(E31 >= 3, 1, E31/3) -> 1 | G33: 1 if ≥3
C35: Final Compliance Factor: | E35: =SUM(E16,E21,E29,E33) -> 3.740238095

Sheet American National
A1: American National Universiyty
A2: Abbreviation/Category | B2: Desig | C2: Title | D2: Qtr Hrs | E2: Cred Hrs | F2: Compl Fact | G2: How Derived
A3: Essential IT Domains
A4: ITE-CSP (Cybersecurity) | B4: CY200, 300, 320, 350, 375, 410 | C4: Security+, Physical & Technical Security, Cyber Security Law & Ethics, Information Security Fundamentals, Computer Forensics, Ethical Hacking & Network Defense | D4: 24 | E4: =D4*(2/3) -> 16 | F4: =IF(E4 >= 6, 1, E4/6) -> 1 | G4: .5 if ≈3; 1 if ≈6
A5: ITE-IMA (Information Management) | B5: CS105 | C5: Intro to Relational Database Management Systems | D5: 4 | E5: 2.666666667 | F5: 0.4444444444 | G5: .5 if ≈3; 1 if ≈6
A6: ITE-NET (Networking) | B6: IT110, 111, 220, 221, NET227, 228 | C6: Network I & II, CISCO I & II, Network Server Installation and Configuration, Network Server Core Services | D6: 24 | E6: 16 | F6: 1 | G6: .5 if ≈3; 1 if ≈6
A7: ITE-SPA (System Paradigms) | B7: CS250 | C7: Systems Analysis & Design I | D7: 4 | E7: 2.666666667 | F7: 0.4444444444 | G7: .5 if ≈3; 1 if ≈6
A8: ITE-UXD (User Experience) | E8: 0 | F8: =IF(E8 >=3, 1, E8/3) -> 0 | G8: 1 if ≈3
A9: ITE-GPP (Global Professional Practice) | B9: IT330 | C9: Project Management for IT Professionals | D9: 4 | E9: 2.666666667 | F9: 0.8888888889 | G9: 1 if ≈3
A10: ITE-IST (Integrated Systems Technology) | B10: IT300 | C10: Linux Operations I | D10: 4 | E10: 2.666666667 | F10: =IF(E10 >=2, 1, E10/3) -> 1 | G10: 1 if ≈2
A11: ITE-PFT (Platform Technologies) | B11: IT102 | C11: Computer Hardware Technology | D11: 4 | E11: 2.666666667 | F11: =IF(E11 >=3, 1, E11/3) -> 0.8888888889 | G11: 1 if ≈3
A12: ITE-SWF (Software Fundamentals) | E12: 0 | F12: 0 | G12: 1 if ≈3
A13: ITE-WMS (Web and Mobile Systems) | E13: 0 | F13: 0 | G13: 1 if ≈3
C16: (Essential) Scaled Score: | E16: =SUM(F4:F13)/10*2 -> 1.133333333 | G16: (2 maximum)
A17: Supplemental IT Domains
C18: Total Hours: | D18: 16 | E18: =D18*(2/3)+20 -> 30.66666667 | G18: Required Hrs/24
A19: Additional Notes: | B19: Supplemental Electives: 16 Quarter Credits + Essential IT Domains: Cybersecurity (10), Networking(10)
C21: (Supplemental) Scaled Score: | E21: =IF(E18/24 > 1, 1, E18/24) -> 1
A22: Related IT Essential Mathematics
A23: ITM-DSC (Discrete Structures)
A25: Related IT Supplemental Mathematics
A26: ITM-SUP (Stats, Lin Alg, Calculus, etc) | B26: MAT419 | C26: Introduction to Statistics | D26: 4 | E26: =D26*(2/3) -> 2.666666667
B27: MAT214 | C27: Algebra | D27: 4 | E27: 2.666666667
C29: (Math) Scaled Score: | E29: =IF(SUM(E23,E26,E27,E28) >= 7, 0.5, 0.5 * SUM(E23,E26,E27,E28)/7) + IF(SUM(E23,E24) >= 3, 0.5, 0.5*E23/3) -> 0.380952381 | G29: 1 if >7 Sem Cr Hrs
A30: Capstone
A31: Capstone Project (Senior Year) | C31: No Capstone
C33: (Capstone) Scaled Score: | E33: =IF(E31 >= 3, 1, E31/3) -> 0 | G33: 1 if ≥3
C35: Final Compliance Factor: | E35: =SUM(E16,E21,E29,E33) -> 2.514285714

Sheet APUS
A1: American Public University System
A2: Abbreviation/Category | B2: Desig | C2: Title | D2: Cred Hrs | E2: Compl Fact | F2: How Derived
A3: Essential IT Domains
A4: ITE-CSP (Cybersecurity) | B4: ISSC411, 431, 422 | C4: Application Security, Database Systems Security, Information Security | D4: 9 | E4: =IF(D4 >= 6, 1, D4/6) -> 1 | F4: .5 if ≈3; 1 if ≈6
A5: ITE-IMA (Information Management) | B5: INFO321 | C5: Database Management Systems | D5: 3 | E5: 0.5 | F5: .5 if ≈3; 1 if ≈6
A6: ITE-NET (Networking) | B6: ISSC341 | C6: Introduction to Networking | D6: 3 | E6: 0.5 | F6: .5 if ≈3; 1 if ≈6
A7: ITE-SPA (System Paradigms) | B7: ITCC121, INFO 331, ENTD311 | C7: Intro to Computer Science, Management Information Systems, Analysis and Design of Information Systems | D7: 9 | E7: 1 | F7: .5 if ≈3; 1 if ≈6
A8: ITE-UXD (User Experience) | E8: =IF(D8 >=3, 1, D8/3) -> 0 | F8: 1 if ≈3
A9: ITE-GPP (Global Professional Practice) | B9: HRMT101 | C9: Human Relations Communication | D9: 3 | E9: 1 | F9: 1 if ≈3
A10: ITE-IST (Integrated Systems Technology) | E10: =IF(D10 >=2, 1, D10/3) -> 0 | F10: 1 if ≈2
A11: ITE-PFT (Platform Technologies) | B11: ISSC321 | C11: Computer Systems Organization: Intermediate | D11: 3 | E11: =IF(D11 >=3, 1, D11/3) -> 1 | F11: 1 if ≈3
A12: ITE-SWF (Software Fundamentals) | B12: ENTD220, 321 | C12: Introduction to Python, Object Oriented Programming and UML | D12: 6 | E12: 1 | F12: 1 if ≈5
A13: ITE-WMS (Web and Mobile Systems) | B13: WEBD121, 221, 241 | C13: Web Development Fundamentals, Intermediate Web Dev, Web Dev using JavaScript | D13: 9 | E13: 1 | F13: 1 if ≈3
C16: (Essential) Scaled Score: | D16: =SUM(E4:E13)/10*2 -> 1.4 | F16: (2 maximum)
A17: Supplemental IT Domains
C18: Total Hours: | D18: 14 | F18: Required Hrs/24
A19: Additional Notes: | B19: Essential IT Domains: Software Fundamentals (1), Web and Mobile Systems (6), Platform Technologies (1), System Paradigms (3), Cybersecurity (3)
C21: (Supplemental) Scaled Score: | D21: =D18/24 -> 0.5833333333
A22: Related IT Essential Mathematics
A23: ITM-DSC (Discrete Structures)
A25: Related IT Supplemental Mathematics
A26: ITM-SUP (Stats, Lin Alg, Calculus, etc)
C29: (Math) Scaled Score: | D29: =IF(SUM(D23,D26,D27,D28) > 6, 0.5, 0.5 * SUM(D23,D26,D27,D28)/7) + IF(SUM(D23,D24) > 2, 0.5, 0.5*D23/3) -> 0 | F29: 1 if >7 Sem Cr Hrs
A30: Capstone
A31: Capstone Project (Senior Year) | B31: INFO498 | C31: IT Capstone | D31: 3
C33: (Capstone) Scaled Score: | D33: =IF(D31 >= 3, 1, D31/3) -> 1 | F33: 1 if ≥3
C35: Final Compliance Factor: | D35: =SUM(D16,D21,D29,D33) -> 2.983333333

Sheet Anderson
A1: Anderson University
A2: Abbreviation/Category | B2: Desig | C2: Title | D2: Cred Hrs | E2: Compl Fact | F2: How Derived
A3: Essential IT Domains
A4: ITE-CSP (Cybersecurity) | B4: CPSC 3310 | C4: Cybersecurity + Lab | D4: 4 | E4: =IF(D4 >= 6, 1, D4/6) -> 0.6666666667 | F4: .5 if ≈3; 1 if ≈6
A5: ITE-IMA (Information Management) | B5: CPSC2100 | C5: Database Programming | D5: 4 | E5: 0.6666666667 | F5: .5 if ≈3; 1 if ≈6
A6: ITE-NET (Networking) | E6: 0 | F6: .5 if ≈3; 1 if ≈6
A7: ITE-SPA (System Paradigms) | B7: CPSC3410 | C7: Computer Networks | D7: 3 | E7: 0.5 | F7: .5 if ≈3; 1 if ≈6
A8: ITE-UXD (User Experience) | E8: =IF(D8 >=3, 1, D8/3) -> 0 | F8: 1 if ≈3
A9: ITE-GPP (Global Professional Practice) | B9: PHIL/RLGN3250 | C9: Ethics & Morality for Professionals | D9: 3 | E9: 1 | F9: 1 if ≈3
A10: ITE-IST (Integrated Systems Technology) | E10: =IF(D10 >=2, 1, D10/3) -> 0 | F10: 1 if ≈2
A11: ITE-PFT (Platform Technologies) | E11: =IF(D11 >=3, 1, D11/3) -> 0 | F11: 1 if ≈3
A12: ITE-SWF (Software Fundamentals) | B12: CPSC 1400,1500, 2500 | C12: Computer Science I & II, Data Structures and Algorithms | D12: 12 | E12: 1 | F12: 1 if ≈3
A13: ITE-WMS (Web and Mobile Systems) | E13: 0 | F13: 1 if ≈3
C16: (Essential) Scaled Score: | D16: =SUM(E4:E13)/10*2 -> 0.7666666667 | F16: (2 maximum)
A17: Supplemental IT Domains
C18: Total Hours: | D18: 6 | F18: Required Hrs/24
A19: Additional Notes: | B19: Supplemental Electives: (3/6 * 6 = 3) + Essential IT Domains: Software Fundamentals (3)
C21: (Supplemental) Scaled Score: | D21: =D18/24 -> 0.25
A22: Related IT Essential Mathematics
A23: ITM-DSC (Discrete Structures) | B23: MATH2200 | C23: DIscrete Mathematical Structures | D23: 4
A25: Related IT Supplemental Mathematics
A26: ITM-SUP (Stats, Lin Alg, Calculus, etc)
C29: (Math) Scaled Score: | D29: =IF(SUM(D23,D26,D27,D28) > 6, 0.5, 0.5 * SUM(D23,D26,D27,D28)/7) + IF(SUM(D23,D24) > 2, 0.5, 0.5*D23/3) -> 0.7857142857 | F29: 1 if >7 Sem Cr Hrs
A30: Capstone
A31: Capstone Project (Senior Year) | B31: POSC 4930 | C31: Senior Capstone | D31: 1
C33: (Capstone) Scaled Score: | D33: =IF(D31 >= 3, 1, D31/3) -> 0.3333333333 | F33: 1 if ≥3
C35: Final Compliance Factor: | D35: =SUM(D16,D21,D29,D33) -> 2.135714286

Sheet Aquinas
A1: Aquinas College
A2: Abbreviation/Category | B2: Desig | C2: Title | D2: Cred Hrs | E2: Compl Fact | F2: How Derived
A3: Essential IT Domains
A4: ITE-CSP (Cybersecurity) | B4: CS338 | C4: Designing Security in a Windows-Based Network Environment | D4: 3 | E4: =IF(D4 >= 6, 1, D4/6) -> 0.5 | F4: .5 if ≈3; 1 if ≈6
A5: ITE-IMA (Information Management) | B5: CS242 | C5: Database Theory | D5: 3 | E5: 0.5 | F5: .5 if ≈3; 1 if ≈6
A6: ITE-NET (Networking) | B6: CS334, 336 | C6: Managing and Maintaining a Windows Server Environment, Implementing Managing and Maintaining a Windows Server Network Infrastructure | D6: 6 | E6: 1 | F6: .5 if ≈3; 1 if ≈6
A7: ITE-SPA (System Paradigms) | B7: CS300, 302 | C7: Management Information Systems, Systems Analysis, Systems Design | D7: 9 | E7: 1 | F7: .5 if ≈3; 1 if ≈6
A8: ITE-UXD (User Experience) | E8: =IF(D8 >=3, 1, D8/3) -> 0 | F8: 1 if ≈3
A9: ITE-GPP (Global Professional Practice) | B9: CS308 | C9: Project Management | D9: 3 | E9: 1 | F9: 1 if ≈3
A10: ITE-IST (Integrated Systems Technology) | E10: =IF(D10 >=2, 1, D10/3) -> 0 | F10: 1 if ≈2
A11: ITE-PFT (Platform Technologies) | B11: CS170 | C11: Principles of Operating Systems | D11: 3 | E11: =IF(D11 >=3, 1, D11/3) -> 1 | F11: 1 if ≈3
A12: ITE-SWF (Software Fundamentals) | B12: CS180, 182, 220 | C12: Structure and Logic, Data Structures with C#, Survey of Programming Languages | D12: 11 | E12: 1 | F12: 1 if ≈3
A13: ITE-WMS (Web and Mobile Systems) | B13: CS244 | C13: Web Programming with Databases | D13: 4 | E13: 1 | F13: 1 if ≈3
C16: (Essential) Scaled Score: | D16: =SUM(E4:E13)/10*2 -> 1.4 | F16: (2 maximum)
A17: Supplemental IT Domains
C18: Total Hours: | D18: 8 | F18: Required Hrs/24
A19: Additional Notes: | B19: Essentla IT Domains: Web and Mobile Systems (1), Software Fundamentals (3), System Paradigms (3), Platform Technologies (1)
C21: (Supplemental) Scaled Score: | D21: =D18/24 -> 0.3333333333
A22: Related IT Essential Mathematics
A23: ITM-DSC (Discrete Structures)
A25: Related IT Supplemental Mathematics
A26: ITM-SUP (Stats, Lin Alg, Calculus, etc) | B26: MS121 | C26: Calculus I | D26: 4
C29: (Math) Scaled Score: | D29: =IF(SUM(D23,D26,D27,D28) > 6, 0.5, 0.5 * SUM(D23,D26,D27,D28)/7) + IF(SUM(D23,D24) > 2, 0.5, 0.5*D23/3) -> 0.2857142857 | F29: 1 if >7 Sem Cr Hrs
A30: Capstone
A31: Capstone Project (Senior Year) | B31: CS460 | C31: Practicum in IT | D31: 3
C33: (Capstone) Scaled Score: | D33: =IF(D31 >= 3, 1, D31/3) -> 1 | F33: 1 if ≥3
C35: Final Compliance Factor: | D35: =SUM(D16,D21,D29,D33) -> 3.019047619

Sheet ASU
A1: Arizona State University - Tempe
A2: Abbreviation/Category | B2: Desig | C2: Title | D2: Cred Hrs | E2: Compl Fact | F2: How Derived
A3: Essential IT Domains
A4: ITE-CSP (Cybersecurity) | B4: IFT 302 | C4: Foundations of Information and Computer System Security | D4: 3 | E4: =IF(D4 >= 6, 1, D4/6) -> 0.5 | F4: .5 if ≈3; 1 if ≈6
A5: ITE-IMA (Information Management) | B5: IFT 200 | C5: Information Modeling, Storage and Retrieval | D5: 3 | E5: 0.5 | F5: .5 if ≈3; 1 if ≈6
A6: ITE-NET (Networking) | B6: IFT 220; IFT 259; IFT 358; IFT 372 | C6: Managing Configurations and Active Directory; Intro to Internet Networking; Network Information Communication Technology | D6: 12 | E6: 1 | F6: .5 if ≈3; 1 if ≈6
A7: ITE-SPA (System Paradigms) | E7: 0 | F7: .5 if ≈3; 1 if ≈6
A8: ITE-UXD (User Experience) | B8: IFT 301 | C8: Web Programming for Human Computer Interface | D8: 3 | E8: =IF(D8 >=3, 1, D8/3) -> 1 | F8: 1 if ≈3
A9: ITE-GPP (Global Professional Practice) | B9: TMC 330; TMC 470 | C9: Leading the Enterprise; Enterprise Planning and Implementation | D9: 6 | E9: 1 | F9: 1 if ≈3
A10: ITE-IST (Integrated Systems Technology) | B10: IFT 250, 383 | C10: Introduction to UNIX Utilities, Shell and Script Programming with UNIX | D10: 6 | E10: =IF(D10 >=2, 1, D10/3) -> 1 | F10: 1 if ≈2
A11: ITE-PFT (Platform Technologies) | B11: IFT 201 | C11: Computer and Network Systems: Organization and Administration | D11: 3 | E11: =IF(D11 >=3, 1, D11/3) -> 1 | F11: 1 if ≈3
A12: ITE-SWF (Software Fundamentals) | B12: IFT 102 | C12: Intro to Java Technologies | D12: 3 | E12: 1 | F12: 1 if ≈3
A13: ITE-WMS (Web and Mobile Systems) | E13: 0 | F13: 1 if ≈3
C16: (Essential) Scaled Score: | D16: =SUM(E4:E13)/10*2 -> 1.4 | F16: (2 maximum)
A17: Supplemental IT Domains
C18: Total Hours: | D18: 24 | F18: Required Hrs/24
A19: Additional Notes: | B19: Supplemental Electives (12) + Essential IT Domains: Networking (6), Integrated Systems (4), Global Professional Practice (3)
C21: (Supplemental) Scaled Score: | D21: =D18/24 -> 1
A22: Related IT Essential Mathematics
A23: ITM-DSC (Discrete Structures) | B23: MAT 243 | C23: Discrete Mathematical Structures | D23: 3
A25: Related IT Supplemental Mathematics
A26: ITM-SUP (Stats, Lin Alg, Calculus, etc) | B26: MAT 210 | C26: Brief Calculus | D26: 3
B27: PSY 230 | C27: Intro to Statistics | D27: 3
C29: (Math) Scaled Score: | D29: =IF(SUM(D23,D26,D27,D28) > 6, 0.5, 0.5 * SUM(D23,D26,D27,D28)/7) + IF(SUM(D23,D24) > 2, 0.5, 0.5*D23/3) -> 1 | F29: 1 if >7 Sem Cr Hrs
A30: Capstone
A31: Capstone Project (Senior Year) | B31: IFT 401 & 402 | C31: IT Capstone Project | D31: 6
C33: (Capstone) Scaled Score: | D33: =IF(D31 >= 3, 1, D31/3) -> 1 | F33: 1 if ≥3
C35: Final Compliance Factor: | D35: =SUM(D16,D21,D29,D33) -> 4.4

Sheet Arkansas St
A1: Arkansas State University
A2: Abbreviation/Category | B2: Desig | C2: Title | D2: Cred Hrs | E2: Compl Fact | F2: How Derived
A3: Essential IT Domains
A4: ITE-CSP (Cybersecurity) | B4: CIT 4623 | C4: Computer Security | D4: 3 | E4: =IF(D4 >= 6, 1, D4/6) -> 0.5 | F4: .5 if ≈3; 1 if ≈6
A5: ITE-IMA (Information Management) | B5: CIT 3403, 3413 | C5: Database Management, Advanced Database Management | D5: 6 | E5: 1 | F5: .5 if ≈3; 1 if ≈6
A6: ITE-NET (Networking) | B6: CIT 2523,4523 | C6: Telecommunications and Networking Essentials, Advanced Network Telecommunications | D6: 6 | E6: 1 | F6: .5 if ≈3; 1 if ≈6
A7: ITE-SPA (System Paradigms) | B7: CIT 3013, 3603 | C7: Management Information Systems, Systems Analysis and Design | D7: 6 | E7: 1 | F7: .5 if ≈3; 1 if ≈6
A8: ITE-UXD (User Experience) | E8: =IF(D8 >=3, 1, D8/3) -> 0 | F8: 1 if ≈3
A9: ITE-GPP (Global Professional Practice) | E9: 0 | F9: 1 if ≈3
A10: ITE-IST (Integrated Systems Technology) | E10: =IF(D10 >=2, 1, D10/3) -> 0 | F10: 1 if ≈2
A11: ITE-PFT (Platform Technologies) | E11: =IF(D11 >=3, 1, D11/3) -> 0 | F11: 1 if ≈3
A12: ITE-SWF (Software Fundamentals) | B12: CIT 2033, 3033 | C12: Programming Fundamentals, Intermediate Programming | D12: 6 | E12: 1 | F12: 1 if ≈5
A13: ITE-WMS (Web and Mobile Systems) | B13: CIT 3353 | C13: Mobile and Web Applications Development | D13: 3 | E13: 1 | F13: 1 if ≈3
C16: (Essential) Scaled Score: | D16: =SUM(E4:E13)/10*2 -> 1.1 | F16: (2 maximum)
A17: Supplemental IT Domains
C18: Total Hours: | D18: 1 | F18: Required Hrs/24
A19: Additional Notes: | B19: Essential IT Domains: Software Fundamentals (1)
C21: (Supplemental) Scaled Score: | D21: =D18/24 -> 0.04166666667
A22: Related IT Essential Mathematics
A23: ITM-DSC (Discrete Structures)
A25: Related IT Supplemental Mathematics
A26: ITM-SUP (Stats, Lin Alg, Calculus, etc) | B26: MATH 2204 | C26: Calculus I | D26: 4
C29: (Math) Scaled Score: | D29: =IF(SUM(D23,D26,D27,D28) > 6, 0.5, 0.5 * SUM(D23,D26,D27,D28)/7) + IF(SUM(D23,D24) > 2, 0.5, 0.5*D23/3) -> 0.2857142857 | F29: 1 if >7 Sem Cr Hrs
A30: Capstone
A31: Capstone Project (Senior Year) | B31: CIT 4853 | C31: IT Project Management | D31: 3
C33: (Capstone) Scaled Score: | D33: =IF(D31 >= 3, 1, D31/3) -> 1 | F33: 1 if ≥3
C35: Final Compliance Factor: | D35: =SUM(D16,D21,D29,D33) -> 2.427380952

Sheet Arkansas Tech
A1: Arkansas Tech University
A2: Abbreviation/Category | B2: Desig | C2: Title | D2: Cred Hrs | E2: Compl Fact | F2: How Derived
A3: Essential IT Domains
A4: ITE-CSP (Cybersecurity) | B4: COMS 2733 | C4: Intro to Computer Forensics and Security | D4: 3 | E4: =IF(D4 >= 6, 1, D4/6) -> 0.5 | F4: .5 if ≈3; 1 if ≈6
A5: ITE-IMA (Information Management) | B5: COMS 3233, 4213 | C5: Database Design and Implementation, Database Administration | D5: 6 | E5: 1 | F5: .5 if ≈3; 1 if ≈6
A6: ITE-NET (Networking) | B6: COMS 2703, 4703, 4713 | C6: Computer Networks and Architecture, Data Communications & Networks, Heterogeneous Networks | D6: 9 | E6: 1 | F6: .5 if ≈3; 1 if ≈6
A7: ITE-SPA (System Paradigms) | B7: COMS 4033, 4043 | C7: Systems Analysis & Design I | D7: 3 | E7: 0.5 | F7: .5 if ≈3; 1 if ≈6
A8: ITE-UXD (User Experience) | B8: COMS 3523 | C8: Human Factors in Information Technology | D8: 3 | E8: =IF(D8 >=3, 1, D8/3) -> 1 | F8: 1 if ≈3
A9: ITE-GPP (Global Professional Practice) | B9: COMS 3053, 4063 | C9: Implications of Technology on Society, IT project Administration | D9: 6 | E9: 1 | F9: 1 if ≈3
A10: ITE-IST (Integrated Systems Technology) | B10: COMS 2163 | C10: Scripting Languages | D10: 3 | E10: =IF(D10 >=2, 1, D10/3) -> 1 | F10: 1 if ≈2
A11: ITE-PFT (Platform Technologies) | B11: COMS 2713, 3903 | C11: Survey of Operating Systems, Systems Software & Architecture | D11: 6 | E11: =IF(D11 >=3, 1, D11/3) -> 1 | F11: 1 if ≈3
A12: ITE-SWF (Software Fundamentals) | B12: COMS 2104, 2203, 2213 | C12: Foundations of Computer Programming I & II, Data Structures | D12: 10 | E12: 1 | F12: 1 if ≈3
A13: ITE-WMS (Web and Mobile Systems) | E13: 0 | F13: 1 if ≈3
C16: (Essential) Scaled Score: | D16: =SUM(E4:E13)/10*2 -> 1.6 | F16: (2 maximum)
A17: Supplemental IT Domains
C18: Total Hours: | D18: 13 | F18: Required Hrs/24
A19: Additional Notes: | B19: Supplemental Electives (3) + Essential IT Domains: Software Fundamentals (1), Global Professional Practice (3), Networking (3), Platform Technologies (3)
C21: (Supplemental) Scaled Score: | D21: =D18/24 -> 0.5416666667
A22: Related IT Essential Mathematics
A23: ITM-DSC (Discrete Structures) | B23: COMS 2903 | C23: Discrete Structures for Technical Majors | D23: 3
A25: Related IT Supplemental Mathematics
A26: ITM-SUP (Stats, Lin Alg, Calculus, etc) | B26: MATH 2243 | C26: Calculus for Business & Economics | D26: 3
B27: BUAD 2053 | C27: Business Statistics | D27: 3
C29: (Math) Scaled Score: | D29: =IF(SUM(D23,D26,D27,D28) > 6, 0.5, 0.5 * SUM(D23,D26,D27,D28)/7) + IF(SUM(D23,D24) > 2, 0.5, 0.5*D23/3) -> 1 | F29: 1 if >7 Sem Cr Hrs
A30: Capstone
A31: Capstone Project (Senior Year) | B31: COMS 4043 | C31: Systems Analysis & Design II | D31: 3
C33: (Capstone) Scaled Score: | D33: =IF(D31 >= 3, 1, D31/3) -> 1 | F33: 1 if ≥3
C35: Final Compliance Factor: | D35: =SUM(D16,D21,D29,D33) -> 4.141666667

Sheet Athens
A1: Athens State University
A2: Abbreviation/Category | B2: Desig | C2: Title | D2: Cred Hrs | E2: Compl Fact | F2: How Derived
A3: Essential IT Domains
A4: ITE-CSP (Cybersecurity) | B4: ITE 420 | C4: Fundamentals of Information Security | D4: 3 | E4: =IF(D4 >= 6, 1, D4/6) -> 0.5 | F4: .5 if ≈3; 1 if ≈6
A5: ITE-IMA (Information Management) | B5: ITE 327 | C5: Database Systems & lab | D5: 4 | E5: 0.6666666667 | F5: .5 if ≈3; 1 if ≈6
A6: ITE-NET (Networking) | B6: ITE 305, 306 | C6: Networking Fundamentals, Local Area Networks | D6: 4 | E6: 0.6666666667 | F6: .5 if ≈3; 1 if ≈6
A7: ITE-SPA (System Paradigms) | B7: ITE 321 | C7: Systems Analysis and Design | D7: 3 | E7: 0.5 | F7: .5 if ≈3; 1 if ≈6
A8: ITE-UXD (User Experience) | B8: ITE 450 | C8: Human-Computer interaction | D8: 3 | E8: =IF(D8 >=3, 1, D8/3) -> 1 | F8: 1 if ≈3
A9: ITE-GPP (Global Professional Practice) | B9: CS 310 | C9: Professional Ethics of Computing | D9: 1 | E9: 0.3333333333 | F9: 1 if ≈3
A10: ITE-IST (Integrated Systems Technology) | B10: CS 441 | C10: Systems Integration and Architecture | D10: 3 | E10: =IF(D10 >=2, 1, D10/3) -> 1 | F10: 1 if ≈2
A11: ITE-PFT (Platform Technologies) | B11: ITE 315 | C11: Systems Administration & Scripting Language | D11: 3 | E11: =IF(D11 >=3, 1, D11/3) -> 1 | F11: 1 if ≈3
A12: ITE-SWF (Software Fundamentals) | B12: CS 318, 372 | C12: Computer Science II, Data Structures | D12: 6 | E12: 1 | F12: 1 if ≈5
A13: ITE-WMS (Web and Mobile Systems) | B13: CS 380 | C13: Programming for the Web | D13: 3 | E13: 1 | F13: 1 if ≈3
C16: (Essential) Scaled Score: | D16: =SUM(E4:E13)/10*2 -> 1.533333333 | F16: (2 maximum)
A17: Supplemental IT Domains
C18: Total Hours: | D18: 7 | F18: Required Hrs/24
A19: Additional Notes: | B19: Supplemental Electives (6) + IT Essential Domain: Software Fundamentals (1)
C21: (Supplemental) Scaled Score: | D21: =D18/24 -> 0.2916666667
A22: Related IT Essential Mathematics
A23: ITM-DSC (Discrete Structures) | B23: MA 308 | C23: Discrete Mathematics | D23: 3
A25: Related IT Supplemental Mathematics
A26: ITM-SUP (Stats, Lin Alg, Calculus, etc) | C26: Precalculus | D26: 3
C27: Calculus I | D27: 3.5
C28: Statistical Methods of Business I | D28: 3
C29: (Math) Scaled Score: | D29: =IF(SUM(D23,D26,D27,D28) > 6, 0.5, 0.5 * SUM(D23,D26,D27,D28)/7) + IF(SUM(D23,D24) > 2, 0.5, 0.5*D23/3) -> 1 | F29: 1 if >7 Sem Cr Hrs
A30: Capstone
A31: Capstone Project (Senior Year) | B31: CS 451, 452, 452L | C31: Software Engineering, Senior Software Engineering Project & Lab | D31: 7
C33: (Capstone) Scaled Score: | D33: =IF(D31 >= 3, 1, D31/3) -> 1 | F33: 1 if ≥3
C35: Final Compliance Factor: | D35: =SUM(D16,D21,D29,D33) -> 3.825

Sheet Augusta
A1: Augusta University
A2: Abbreviation/Category | B2: Desig | C2: Title | D2: Cred Hrs | E2: Compl Fact | F2: How Derived
A3: Essential IT Domains
A4: ITE-CSP (Cybersecurity) | B4: CYBR 2600 | C4: Intro to Networking and Cyber Security | D4: 2 | E4: =IF(D4 >= 6, 1, D4/6) -> 0.3333333333 | F4: .5 if ≈3; 1 if ≈6
A5: ITE-IMA (Information Management) | B5: MINF 2650, AIST 3410 | C5: Principles of Data Management and Analysis, Database Management Systems | D5: 6 | E5: 1 | F5: .5 if ≈3; 1 if ≈6
A6: ITE-NET (Networking) | B6: CYBR 2600, AIST 4720 | C6: Intro to Networking and Cyber Security, Enterprise System Architectures | D6: 5 | E6: 0.8333333333 | F6: .5 if ≈3; 1 if ≈6
A7: ITE-SPA (System Paradigms) | B7: AIST 3610, MINF 3650 | C7: System Analysis and Design, Information Systems | D7: 6 | E7: 1 | F7: .5 if ≈3; 1 if ≈6
A8: ITE-UXD (User Experience) | E8: =IF(D8 >=3, 1, D8/3) -> 0 | F8: 1 if ≈3
A9: ITE-GPP (Global Professional Practice) | B9: CSCI 2700, COMM 3100, MINF 3625 | C9: Ethics in Computer Science, Communications for Professionals, Project Management | D9: 8 | E9: 1 | F9: 1 if ≈3
A10: ITE-IST (Integrated Systems Technology) | B10: AIST 2120 | C10: Principles of Scripting and Automation | D10: 3 | E10: =IF(D10 >=2, 1, D10/3) -> 1 | F10: 1 if ≈2
A11: ITE-PFT (Platform Technologies) | B11: AIST 3720 | C11: Operating System Concepts and Administration | D11: 3 | E11: =IF(D11 >=3, 1, D11/3) -> 1 | F11: 1 if ≈3
A12: ITE-SWF (Software Fundamentals) | B12: CSCI 1301 | C12: Principles of Computer Programming I | D12: 4 | E12: =IF(D12 >=5, 1, D12/5) -> 0.8 | F12: 1 if ≈5
A13: ITE-WMS (Web and Mobile Systems) | B13: AIST 2220 | C13: Intro to Web Development | D13: 3 | E13: =IF(D13 >=3, 1, D13/3) -> 1 | F13: 1 if ≈3
C16: (Essential) Scaled Score: | D16: =SUM(E4:E13)/10*2 -> 1.593333333 | F16: (2 maximum)
A17: Supplemental IT Domains
C18: Total Hours: | D18: 22 | F18: Required Hrs/24
A19: Additional Notes: | B19: Supplemental Electives (18) + Essential IT Domains: Global Prof. Prac (3) , Platform Technologies (1)
C21: (Supplemental) Scaled Score: | D21: =IF(D18/24 >= 1, 1, D18/24) -> 0.9166666667
A22: Related IT Essential Mathematics
A23: ITM-DSC (Discrete Structures)
A25: Related IT Supplemental Mathematics
A26: ITM-SUP (Stats, Lin Alg, Calculus, etc) | B26: MATH 1111 | C26: College Algebra | D26: 3
B27: MATH 1113+ | C27: MATH General | D27: 3
B28: MATH 3210 | C28: Math for Business and Economics | D28: 3
C29: (Math) Scaled Score: | D29: =IF(SUM(D23,D26,D27,D28) > 6, 0.5, 0.5 * SUM(D23,D26,D27,D28)/7) + IF(SUM(D23,D24) > 2, 0.5, 0.5*D23/3) -> 0.5 | F29: 1 if >= 7 Sem Cr Hrs
A30: Capstone
A31: Capstone Project (Senior Year)
C33: (Capstone) Scaled Score: | D33: =IF(D31 >= 3, 1, D31/3) -> 0 | F33: 1 if ≥3
C35: Final Compliance Factor: | D35: =SUM(D16,D21,D29,D33) -> 3.01

Sheet Austin Peay
A1: Austin Peay State University
A2: Abbreviation/Category | B2: Desig | C2: Title | D2: Cred Hrs | E2: Compl Fact | F2: How Derived
A3: Essential IT Domains
A4: ITE-CSP (Cybersecurity) | B4: CSCI 3200 | C4: Principles of Information Security | D4: 3 | E4: =IF(D4 >= 6, 1, D4/6) -> 0.5 | F4: .5 if ≈3; 1 if ≈6
A5: ITE-IMA (Information Management) | B5: CSCI 4400 | C5: Principles of Database Management | D5: 3 | E5: 0.5 | F5: .5 if ≈3; 1 if ≈6
A6: ITE-NET (Networking) | B6: CSCI 3700 | C6: Data Communications & Networking, Microsoft Windows Network Operating System Administration, Advanced Data Communications & Networking, Wireless Communication & Networking, Network Applications | D6: 3 | E6: 0.5 | F6: .5 if ≈3; 1 if ≈6
A7: ITE-SPA (System Paradigms) | B7: CSCI 1005 | C7: Computer Hardware Software & Programming Concepts | D7: 3 | E7: 0.5 | F7: .5 if ≈3; 1 if ≈6
A8: ITE-UXD (User Experience) | E8: =IF(D8 >=3, 1, D8/3) -> 0 | F8: 1 if ≈3
A9: ITE-GPP (Global Professional Practice) | E9: 0 | F9: 1 if ≈3
A10: ITE-IST (Integrated Systems Technology) | E10: =IF(D10 >=2, 1, D10/3) -> 0 | F10: 1 if ≈2
A11: ITE-PFT (Platform Technologies) | E11: =IF(D11 >=3, 1, D11/3) -> 0 | F11: 1 if ≈3
A12: ITE-SWF (Software Fundamentals) | B12: CSCI 1015 | C12: Intro to Computer Programming | D12: 3 | E12: 1 | F12: 1 if ≈3
A13: ITE-WMS (Web and Mobile Systems) | B13: CSCI 3300 | C13: Intro to Web Development | D13: 3 | E13: 1 | F13: 1 if ≈3
C16: (Essential) Scaled Score: | D16: =SUM(E4:E13)/10*2 -> 0.8 | F16: (2 maximum)
A17: Supplemental IT Domains
C18: Total Hours: | D18: 21 | F18: Required Hrs/24
A19: Additional Notes: | B19: Concentration (18-21)
C21: (Supplemental) Scaled Score: | D21: =IF(D18/24 >= 1, 1, D18/24) -> 0.875
A22: Related IT Essential Mathematics
A23: ITM-DSC (Discrete Structures)
A25: Related IT Supplemental Mathematics
A26: ITM-SUP (Stats, Lin Alg, Calculus, etc) | B26: MATH Core | C26: Math Core | D26: 3
C29: (Math) Scaled Score: | D29: =IF(SUM(D23,D26,D27,D28) > 6, 0.5, 0.5 * SUM(D23,D26,D27,D28)/7) + IF(SUM(D23,D24) > 2, 0.5, 0.5*D23/3) -> 0.2142857143 | F29: 1 if >= 7 Sem Cr Hrs
A30: Capstone
A31: Capstone Project (Senior Year)
C33: (Capstone) Scaled Score: | D33: =IF(D31 >= 3, 1, D31/3) -> 0 | F33: 1 if ≥3
C35: Final Compliance Factor: | D35: =SUM(D16,D21,D29,D33) -> 1.889285714 | E35: 1.76 | F35: 1.89

Sheet Azusa
A1: Azusa Pacific University
A2: Abbreviation/Category | B2: Desig | C2: Title | D2: Cred Hrs | E2: Compl Fact | F2: How Derived
A3: Essential IT Domains
A4: ITE-CSP (Cybersecurity) | E4: =IF(D4 >= 6, 1, D4/6) -> 0 | F4: .5 if ≈3; 1 if ≈6
A5: ITE-IMA (Information Management) | B5: CS 290 | C5: Database Management Systems, Advanced Database Application Programming | D5: 6 | E5: 1 | F5: .5 if ≈3; 1 if ≈6
A6: ITE-NET (Networking) | B6: CS 325 | C6: Telecommunications and Interfacing | D6: 3 | E6: 0.5 | F6: .5 if ≈3; 1 if ≈6
A7: ITE-SPA (System Paradigms) | E7: 0 | F7: .5 if ≈3; 1 if ≈6
A8: ITE-UXD (User Experience) | E8: =IF(D8 >=3, 1, D8/3) -> 0 | F8: 1 if ≈3
A9: ITE-GPP (Global Professional Practice) | B9: CS 470 | C9: Software Engineering | D9: 3 | E9: 1 | F9: 1 if ≈3
A10: ITE-IST (Integrated Systems Technology) | E10: 0 | F10: 1 if ≈3
A11: ITE-PFT (Platform Technologies) | B11: CS 150, 230 | C11: Operating Systems, Systems Programming | D11: 6 | E11: =IF(D11 >=2, 1, D11/2) -> 1 | F11: 1 if ≈2
A12: ITE-SWF (Software Fundamentals) | B12: CS 120, 125, 260 | C12: Computer Science I & II, Data Structures | D12: 9 | E12: =IF(D12 >=5, 1, D12/5) -> 1 | F12: 1 if ≈5
A13: ITE-WMS (Web and Mobile Systems) | E13: =IF(D13 >=3, 1, D13/3) -> 0 | F13: 1 if ≈3
C16: (Essential) Scaled Score: | D16: =SUM(E4:E13)/10*2 -> 0.9 | F16: (2 maximum)
A17: Supplemental IT Domains
C18: Total Hours: | D18: =12*(14/18) -> 9.333333333 | F18: Required Hrs/24
A19: Additional Notes: | B19: Supplemental: 12 credits required as electives. 14 of the 18 are IT domains. 12*(14/18) = 9.33
C21: (Supplemental) Scaled Score: | D21: =IF(D18/24 >= 1, 1, D18/24) -> 0.3888888889
A22: Related IT Essential Mathematics
A23: ITM-DSC (Discrete Structures) | B23: CS 160 | C23: Discrete Structures | D23: 3
A25: Related IT Supplemental Mathematics
A26: ITM-SUP (Stats, Lin Alg, Calculus, etc) | B26: MATH 151 | C26: Applied Calculus I | D26: 3
C29: (Math) Scaled Score: | D29: =IF(SUM(D23,D26,D27,D28) > 6, 0.5, 0.5 * SUM(D23,D26,D27,D28)/7) + IF(SUM(D23,D24) > 2, 0.5, 0.5*D23/3) -> 0.9285714286 | F29: 1 if >= 7 Sem Cr Hrs
A30: Capstone
A31: Capstone Project (Senior Year) | B31: CS 480 | C31: Senior Capstone (more software engineering focused) | D31: 1.5
C33: (Capstone) Scaled Score: | D33: =IF(D31 >= 3, 1, D31/3) -> 0.5 | F33: 1 if ≥3
C35: Final Compliance Factor: | D35: =ROUND(SUM(D16,D21,D29,D33),2) -> 2.72

Sheet Baker
A1: Baker College
A2: Abbreviation/Category | B2: Desig | C2: Title | D2: Cred Hrs | E2: Compl Fact | F2: How Derived
A3: Essential IT Domains
A4: ITE-CSP (Cybersecurity) | B4: ITS 2110, 2210 | C4: Intro to Network Security, VPN Firewall | D4: 12 | E4: =IF(D4 >= 6, 1, D4/6) -> 1 | F4: .5 if ≈3; 1 if ≈6
A5: ITE-IMA (Information Management) | B5: CIS 2210 | C5: Database Management and Design | D5: 3 | E5: 0.5 | F5: .5 if ≈3; 1 if ≈6
A6: ITE-NET (Networking) | B6: NET 1010 | C6: Networking Essentials | D6: 3 | E6: 0.5 | F6: .5 if ≈3; 1 if ≈6
A7: ITE-SPA (System Paradigms) | E7: 0 | F7: .5 if ≈3; 1 if ≈6
A8: ITE-UXD (User Experience) | E8: =IF(D8 >=3, 1, D8/3) -> 0 | F8: 1 if ≈3
A9: ITE-GPP (Global Professional Practice) | B9: ITS 3210 | C9: Legal and Ethical Issues in IT | D9: 3 | E9: 1 | F9: 1 if ≈3
A10: ITE-IST (Integrated Systems Technology) | B10: ITS 3410 | C10: Scripting for Network Administrators | D10: 3 | E10: =IF(D10 >=2, 1, D10/3) -> 1 | F10: 1 if ≈2
A11: ITE-PFT (Platform Technologies) | B11: ITS 2310 | C11: Linux I | D11: 3 | E11: =IF(D11 >=3, 1, D11/3) -> 1 | F11: 1 if ≈3
A12: ITE-SWF (Software Fundamentals) | E12: 0 | F12: 1 if ≈3
A13: ITE-WMS (Web and Mobile Systems) | E13: 0 | F13: 1 if ≈3
C16: (Essential) Scaled Score: | D16: =SUM(E4:E13)/10*2 -> 1 | F16: (2 maximum)
A17: Supplemental IT Domains
C18: Total Hours: | D18: 24 | F18: Required Hrs/24
A19: Additional Notes: | B19: Required Supplemental (24+)
C21: (Supplemental) Scaled Score: | D21: =IF(D18/24 >= 1, 1, D18/24) -> 1
A22: Related IT Essential Mathematics
A23: ITM-DSC (Discrete Structures)
A25: Related IT Supplemental Mathematics
A26: ITM-SUP (Stats, Lin Alg, Calculus, etc) | B26: MTH 1110 | C26: College Algebra | D26: 3
B27: MTH 2750 | C27: Statistical Methods | D27: 3
C29: (Math) Scaled Score: | D29: =IF(SUM(D23,D26,D27,D28) > 6, 0.5, 0.5 * SUM(D23,D26,D27,D28)/7) + IF(SUM(D23,D24) > 2, 0.5, 0.5*D23/3) -> 0.4285714286 | F29: 1 if >= 7 Sem Cr Hrs
A30: Capstone
A31: Capstone Project (Senior Year)
C33: (Capstone) Scaled Score: | D33: =IF(D31 >= 3, 1, D31/3) -> 0 | F33: 1 if ≥3
C35: Final Compliance Factor: | D35: =SUM(D16,D21,D29,D33) -> 2.428571429

Sheet Ball St
A1: Ball State University
A2: Abbreviation/Category | B2: Desig | C2: Title | D2: Cred Hrs | E2: Compl Fact | F2: How Derived
A3: Essential IT Domains
A4: ITE-CSP (Cybersecurity) | E4: =IF(D4 >= 6, 1, D4/6) -> 0 | F4: .5 if ≈3; 1 if ≈6
A5: ITE-IMA (Information Management) | B5: CIS 413 | C5: Database Management Systems | D5: 3 | E5: 0.5 | F5: .5 if ≈3; 1 if ≈6
A6: ITE-NET (Networking) | B6: CT 210, 310 | C6: Fundamentals of Network Design, Internetwork Design and Administration | D6: 6 | E6: 1 | F6: .5 if ≈3; 1 if ≈6
A7: ITE-SPA (System Paradigms) | B7: CT 211 | C7: System Administration Fundamentals | D7: 3 | E7: 0.5 | F7: .5 if ≈3; 1 if ≈6
A8: ITE-UXD (User Experience) | E8: =IF(D8 >=3, 1, D8/3) -> 0 | F8: 1 if ≈3
A9: ITE-GPP (Global Professional Practice) | B9: ISOM 300 | C9: Project Management | D9: 3 | E9: 1 | F9: 1 if ≈3
A10: ITE-IST (Integrated Systems Technology) | E10: =IF(D10 >=2, 1, D10/3) -> 0 | F10: 1 if ≈2
A11: ITE-PFT (Platform Technologies) | B11: CT 221, 321 | C11: Alternative PC Operating Systems, Alt Server Operating Systems | D11: 6 | E11: =IF(D11 >=3, 1, D11/3) -> 1 | F11: 1 if ≈3
A12: ITE-SWF (Software Fundamentals) | B12: CS 120 | C12: Computer Science 1: Programming Fundamentals | D12: 4 | E12: =IF(D12 >=5, 1, D12/5) -> 0.8 | F12: 1 if ≈5
A13: ITE-WMS (Web and Mobile Systems) | B13: CS 110 | C13: Introduction to Computer Science and Web Programming | D13: 3 | E13: =IF(D13 >=3, 1, D13/3) -> 1 | F13: 1 if ≈3
C16: (Essential) Scaled Score: | D16: =SUM(E4:E13)/10*2 -> 1.16 | F16: (2 maximum)
A17: Supplemental IT Domains
C18: Total Hours: | D18: 24 | F18: Required Hrs/24
A19: Additional Notes: | B19: Supplemental (15) + Required Supplemental: CT 311 (3), CT 340 (3), CT 465 (3)
C21: (Supplemental) Scaled Score: | D21: =IF(D18/24 >= 1, 1, D18/24) -> 1
A22: Related IT Essential Mathematics
A23: ITM-DSC (Discrete Structures)
A25: Related IT Supplemental Mathematics
A26: ITM-SUP (Stats, Lin Alg, Calculus, etc) | B26: CS 124, 132, 161 or 162 | C26: Discrete Structures or Calculus | D26: 3
C29: (Math) Scaled Score: | D29: =IF(SUM(D23,D26,D27,D28) > 6, 0.5, 0.5 * SUM(D23,D26,D27,D28)/7) + IF(SUM(D23,D24) > 2, 0.5, 0.5*D23/3) -> 0.2142857143 | F29: 1 if >= 7 Sem Cr Hrs
A30: Capstone
A31: Capstone Project (Senior Year) | B31: CT 466 | C31: Capstone Computer Technology | D31: 3
C33: (Capstone) Scaled Score: | D33: =IF(D31 >= 3, 1, D31/3) -> 1 | F33: 1 if ≥3
C35: Final Compliance Factor: | D35: =SUM(D16,D21,D29,D33) -> 3.374285714

Sheet Barry
A1: Barry College
A2: Abbreviation/Category | B2: Desig | C2: Title | D2: Cred Hrs | E2: Compl Fact | F2: How Derived
A3: Essential IT Domains
A4: ITE-CSP (Cybersecurity) | B4: IT 320 | C4: Computer Security | D4: 3 | E4: =IF(D4 >= 6, 1, D4/6) -> 0.5 | F4: .5 if ≈3; 1 if ≈6
A5: ITE-IMA (Information Management) | B5: IT 426 | C5: Databases | D5: 3 | E5: 0.5 | F5: .5 if ≈3; 1 if ≈6
A6: ITE-NET (Networking) | B6: IT 310, NSE 210 | C6: Telecommunications and Computer Networks, Network Administration | D6: 6 | E6: 1 | F6: .5 if ≈3; 1 if ≈6
A7: ITE-SPA (System Paradigms) | B7: IT 200 | C7: Foundations of Information Technology | D7: 3 | E7: 0.5 | F7: .5 if ≈3; 1 if ≈6
A8: ITE-UXD (User Experience) | E8: =IF(D8 >=3, 1, D8/3) -> 0 | F8: 1 if ≈3
A9: ITE-GPP (Global Professional Practice) | E9: 0 | F9: 1 if ≈3
A10: ITE-IST (Integrated Systems Technology) | E10: =IF(D10 >=2, 1, D10/3) -> 0 | F10: 1 if ≈2
A11: ITE-PFT (Platform Technologies) | B11: IT 190 | C11: Microcomputer Systems | D11: 3 | E11: =IF(D11 >=3, 1, D11/3) -> 1 | F11: 1 if ≈3
A12: ITE-SWF (Software Fundamentals) | B12: IT 372 | C12: Software Engineering | D12: 3 | E12: =IF(D12 >=5, 1, D12/5) -> 0.6 | F12: 1 if ≈5
A13: ITE-WMS (Web and Mobile Systems) | B13: IT 338 | C13: Web Design, Authoring and Publishing | D13: 3 | E13: =IF(D13 >=3, 1, D13/3) -> 1 | F13: 1 if ≈3
C16: (Essential) Scaled Score: | D16: =SUM(E4:E13)/10*2 -> 1.02 | F16: (2 maximum)
A17: Supplemental IT Domains
C18: Total Hours: | D18: 12 | F18: Required Hrs/24
A19: Additional Notes: | B19: Supplemental Electives (12) - 15 credits required with Network and Systems Engineering Option, 3 of them were included in the Essential IT domains under Networking
C21: (Supplemental) Scaled Score: | D21: =IF(D18/24 >= 1, 1, D18/24) -> 0.5
A22: Related IT Essential Mathematics
A23: ITM-DSC (Discrete Structures)
A25: Related IT Supplemental Mathematics
A26: ITM-SUP (Stats, Lin Alg, Calculus, etc) | B26: MATH General | C26: MATH Distribution Requirement | D26: 3
C29: (Math) Scaled Score: | D29: =IF(SUM(D23,D26,D27,D28) > 6, 0.5, 0.5 * SUM(D23,D26,D27,D28)/7) + IF(SUM(D23,D24) > 2, 0.5, 0.5*D23/3) -> 0.2142857143 | F29: 1 if >= 7 Sem Cr Hrs
A30: Capstone
A31: Capstone Project (Senior Year) | B31: IT 499 | C31: Integrated Capstone Project | D31: 3
C33: (Capstone) Scaled Score: | D33: =IF(D31 >= 3, 1, D31/3) -> 1 | F33: 1 if ≥3
C35: Final Compliance Factor: | D35: =SUM(D16,D21,D29,D33) -> 2.734285714

Sheet Bay St
A1: Bay State College
A2: Abbreviation/Category | B2: Desig | C2: Title | D2: Cred Hrs | E2: Compl Fact | F2: How Derived
A3: Essential IT Domains
A4: ITE-CSP (Cybersecurity) | E4: =IF(D4 >= 6, 1, D4/6) -> 0 | F4: .5 if ≈3; 1 if ≈6
A5: ITE-IMA (Information Management) | B5: CIS 400 | C5: Database Management Systems | D5: 3 | E5: 0.5 | F5: .5 if ≈3; 1 if ≈6
A6: ITE-NET (Networking) | B6: CIS 120, 304 | C6: Network Fundamentals, Network Infrastructure and Security | D6: 6 | E6: 1 | F6: .5 if ≈3; 1 if ≈6
A7: ITE-SPA (System Paradigms) | B7: CIS 123, 202, 312, 403 | C7: Enterprise End User Support, Introduction to Servers, Management Information Systems, Systems Analysis and Design | D7: 12 | E7: 1 | F7: .5 if ≈3; 1 if ≈6
A8: ITE-UXD (User Experience) | B8: CIS 327 | C8: User Interface Design and Evaluation | D8: 3 | E8: =IF(D8 >=3, 1, D8/3) -> 1 | F8: 1 if ≈3
A9: ITE-GPP (Global Professional Practice) | E9: 0 | F9: 1 if ≈3
A10: ITE-IST (Integrated Systems Technology) | E10: =IF(D10 >=2, 1, D10/3) -> 0 | F10: 1 if ≈2
A11: ITE-PFT (Platform Technologies) | B11: CIS 108, 320 | C11: Microcomputer Preparation, Operating Systems | D11: 6 | E11: =IF(D11 >=3, 1, D11/3) -> 1 | F11: 1 if ≈3
A12: ITE-SWF (Software Fundamentals) | B12: CIS 208 | C12: Intro to Programming | D12: 3 | E12: 1 | F12: 1 if ≈3
A13: ITE-WMS (Web and Mobile Systems) | B13: CIS 300 | C13: Web Applications Development - Client Side | D13: 3 | E13: 1 | F13: 1 if ≈3
C16: (Essential) Scaled Score: | D16: =SUM(E4:E13)/10*2 -> 1.3 | F16: (2 maximum)
A17: Supplemental IT Domains
C18: Total Hours: | D18: 24 | F18: Required Hrs/24
A19: Additional Notes: | B19: CIS 301: Web Applications Development - Server Side (3), CIS 404: IT Project Management (3) + Supplemental (12) + Essential IT Domains (9)
C21: (Supplemental) Scaled Score: | D21: =IF(D18/24 >= 1, 1, D18/24) -> 1
A22: Related IT Essential Mathematics
A23: ITM-DSC (Discrete Structures)
A25: Related IT Supplemental Mathematics
A26: ITM-SUP (Stats, Lin Alg, Calculus, etc) | B26: MAT 104 | C26: Intermediate College Algebra | D26: 3
B27: MAT 200 | C27: Statistics | D27: 3
C29: (Math) Scaled Score: | D29: =IF(SUM(D23,D26,D27,D28) > 6, 0.5, 0.5 * SUM(D23,D26,D27,D28)/7) + IF(SUM(D23,D24) > 2, 0.5, 0.5*D23/3) -> 0.4285714286 | F29: 1 if >= 7 Sem Cr Hrs
A30: Capstone
A31: Capstone Project (Senior Year)
C33: (Capstone) Scaled Score: | D33: =IF(D31 >= 3, 1, D31/3) -> 0 | F33: 1 if ≥3
C35: Final Compliance Factor: | D35: =SUM(D16,D21,D29,D33) -> 2.728571429

Sheet Bellevue
A1: Bellevue University
A2: Abbreviation/Category | B2: Desig | C2: Title | D2: Cred Hrs | E2: Compl Fact | F2: How Derived
A3: Essential IT Domains
A4: ITE-CSP (Cybersecurity) | B4: BSIT 310, 450 | C4: Computer and Network Security Fundamentals, Microsoft Security Management | D4: 6 | E4: =IF(D4 >= 6, 1, D4/6) -> 1 | F4: .5 if ≈3; 1 if ≈6
A5: ITE-IMA (Information Management) | E5: 0 | F5: .5 if ≈3; 1 if ≈6
A6: ITE-NET (Networking) | B6: BSIT 220, 340, 341, 350 | C6: Network Management and Infrastructure, CISCO Routing Fundamentals, CISCO Network and Routing Infrastructures | D6: 9 | E6: 1 | F6: .5 if ≈3; 1 if ≈6
A7: ITE-SPA (System Paradigms) | B7: BSIT 375, 420 | C7: Administration of Data Storage Technologies, Microsoft Operating System Management | D7: 6 | E7: 1 | F7: .5 if ≈3; 1 if ≈6
A8: ITE-UXD (User Experience) | E8: =IF(D8 >=3, 1, D8/3) -> 0 | F8: 1 if ≈3
A9: ITE-GPP (Global Professional Practice) | E9: 0 | F9: 1 if ≈3
A10: ITE-IST (Integrated Systems Technology) | E10: =IF(D10 >=2, 1, D10/3) -> 0 | F10: 1 if ≈2
A11: ITE-PFT (Platform Technologies) | B11: BSIT 200, 420 | C11: Computer Hardware and Software Management, Microsoft Operating System Management | D11: 6 | E11: =IF(D11 >=3, 1, D11/3) -> 1 | F11: 1 if ≈3
A12: ITE-SWF (Software Fundamentals) | E12: 0 | F12: 1 if ≈3
A13: ITE-WMS (Web and Mobile Systems) | E13: 0 | F13: 1 if ≈3
C16: (Essential) Scaled Score: | D16: =SUM(E4:E13)/10*2 -> 0.8 | F16: (2 maximum)
A17: Supplemental IT Domains
C18: Total Hours: | D18: 21 | F18: Required Hrs/24
A19: Additional Notes: | B19: Offers 18 credits of Supplemental courses, but doesn't require any of them, so I gave them half the credits (9). Plus, 12 extra required credits (BSIT 320, 420, 440, 450)
C21: (Supplemental) Scaled Score: | D21: =D18/24 -> 0.875
A22: Related IT Essential Mathematics
A23: ITM-DSC (Discrete Structures)
A25: Related IT Supplemental Mathematics
A26: ITM-SUP (Stats, Lin Alg, Calculus, etc) | B26: MA101 | C26: Intermediate Algebra | D26: 3
C29: (Math) Scaled Score: | D29: =IF(SUM(D23,D26,D27,D28) > 6, 0.5, 0.5 * SUM(D23,D26,D27,D28)/7) + IF(SUM(D23,D24) > 2, 0.5, 0.5*D23/3) -> 0.2142857143 | F29: 1 if >7 Sem Cr Hrs
A30: Capstone
A31: Capstone Project (Senior Year) | C31: No capstone offered
C33: (Capstone) Scaled Score: | D33: =IF(D31 >= 3, 1, D31/3) -> 0 | F33: 1 if ≥3
C35: Final Compliance Factor: | D35: =SUM(D16,D21,D29,D33) -> 1.889285714

Sheet Bethel
A1: Bethel University
A2: Abbreviation/Category | B2: Desig | C2: Title | D2: Cred Hrs | E2: Compl Fact | F2: How Derived
A3: Essential IT Domains
A4: ITE-CSP (Cybersecurity) | E4: =IF(D4 >= 6, 1, D4/6) -> 0 | F4: .5 if ≈3; 1 if ≈6
A5: ITE-IMA (Information Management) | B5: COS 313 | C5: Database Systems | D5: 3 | E5: 0.5 | F5: .5 if ≈3; 1 if ≈6
A6: ITE-NET (Networking) | B6: COS 386 | C6: Data Communications and Computer Networks | D6: 3 | E6: 0.5 | F6: .5 if ≈3; 1 if ≈6
A7: ITE-SPA (System Paradigms) | E7: 0 | F7: .5 if ≈3; 1 if ≈6
A8: ITE-UXD (User Experience) | B8: COS 450 | C8: Humans and Computers | D8: 3 | E8: =IF(D8 >=3, 1, D8/3) -> 1 | F8: 1 if ≈3
A9: ITE-GPP (Global Professional Practice) | E9: 0 | F9: 1 if ≈3
A10: ITE-IST (Integrated Systems Technology) | E10: =IF(D10 >=2, 1, D10/3) -> 0 | F10: 1 if ≈2
A11: ITE-PFT (Platform Technologies) | B11: COS 214, 301 | C11: Computer Architecture, Operating Systems | D11: 8 | E11: =IF(D11 >=3, 1, D11/3) -> 1 | F11: 1 if ≈3
A12: ITE-SWF (Software Fundamentals) | B12: COS 105,212, 216 | C12: Computer Science I & II, Data Structures and Algorithms | D12: 11 | E12: 1 | F12: 1 if ≈3
A13: ITE-WMS (Web and Mobile Systems) | B13: COS 318 | C13: Web Programming | D13: 3 | E13: 1 | F13: 1 if ≈3
C16: (Essential) Scaled Score: | D16: =SUM(E4:E13)/10*2 -> 1 | F16: (2 maximum)
A17: Supplemental IT Domains
C18: Total Hours: | D18: 8 | F18: Required Hrs/24
A19: Additional Notes: | B19: Essential IT domains: Software Fundamentals (3), Platform Technologies (5)
C21: (Supplemental) Scaled Score: | D21: =D18/24 -> 0.3333333333
A22: Related IT Essential Mathematics
A23: ITM-DSC (Discrete Structures) | B23: MAT 241 | C23: Discrete Mathematics | D23: 3
A25: Related IT Supplemental Mathematics
A26: ITM-SUP (Stats, Lin Alg, Calculus, etc) | B26: MAT 124M & 125 | C26: Calculus I & II | D26: 8
B27: MAT 330 | C27: Probability and Statistics | D27: 3
C29: (Math) Scaled Score: | D29: =IF(SUM(D23,D26,D27,D28) > 6, 0.5, 0.5 * SUM(D23,D26,D27,D28)/7) + IF(SUM(D23,D24) > 2, 0.5, 0.5*D23/3) -> 1 | F29: 1 if >7 Sem Cr Hrs
A30: Capstone
A31: Capstone Project (Senior Year) | C31: No capstone found | D31: 0
C33: (Capstone) Scaled Score: | D33: =IF(D31 >= 3, 1, D31/3) -> 0 | F33: 1 if ≥3
C35: Final Compliance Factor: | D35: =SUM(D16,D21,D29,D33) -> 2.333333333

Sheet Bethesda
A1: Bethesda University
A2: Abbreviation/Category | B2: Desig | C2: Title | D2: Cred Hrs | E2: Compl Fact | F2: How Derived
A3: Essential IT Domains
A4: ITE-CSP (Cybersecurity) | B4: IT 261 | C4: An Intro to Information Security | D4: 3 | E4: =IF(D4 >= 6, 1, D4/6) -> 0.5 | F4: .5 if ≈3; 1 if ≈6
A5: ITE-IMA (Information Management) | B5: IT 124, 433, 491 | C5: Implementation of Database using MySQL 5, Advanced Database System, Intermediate Database Management Systems | D5: 9 | E5: 1 | F5: .5 if ≈3; 1 if ≈6
A6: ITE-NET (Networking) | B6: IT 248, 380, 425 | C6: Building a Small Office/Home Networks and Configuration of Admin LAN, CCNA, Advanced Topics of Network | D6: 9 | E6: 1 | F6: .5 if ≈3; 1 if ≈6
A7: ITE-SPA (System Paradigms) | E7: 0 | F7: .5 if ≈3; 1 if ≈6
A8: ITE-UXD (User Experience) | E8: =IF(D8 >=3, 1, D8/3) -> 0 | F8: 1 if ≈3
A9: ITE-GPP (Global Professional Practice) | B9: IT 360 | C9: Effective Communication Skills for Technical Professionals | D9: 3 | E9: 1 | F9: 1 if ≈3
A10: ITE-IST (Integrated Systems Technology) | B10: IT 141 | C10: Intro to Digital Communication Systems | D10: 3 | E10: =IF(D10 >=2, 1, D10/3) -> 1 | F10: 1 if ≈2
A11: ITE-PFT (Platform Technologies) | B11: IT 125, 205 | C11: Computer Architectures, Intro to Linux OS and Open Source | D11: 6 | E11: =IF(D11 >=3, 1, D11/3) -> 1 | F11: 1 if ≈3
A12: ITE-SWF (Software Fundamentals) | B12: IT 235 | C12: Java Programming | D12: 3 | E12: 1 | F12: 1 if ≈3
A13: ITE-WMS (Web and Mobile Systems) | B13: IT 131, 140 | C13: Intro to Multimedia, Intro to Web Programming | D13: 6 | E13: 1 | F13: 1 if ≈3
C16: (Essential) Scaled Score: | D16: =SUM(E4:E13)/10*2 -> 1.5 | F16: (2 maximum)
A17: Supplemental IT Domains
C18: Total Hours: | D18: 24 | F18: Required Hrs/24
A19: Additional Notes: | B19: Essential IT Domain: Information Management (3), Networking (3), Platform Technologies (3), Web and Mobile Systems (3) + Required Supplemental: IT 490 CCNA Advance (3) + IT 335 Intermediate Web Development using AMP (3)
C21: (Supplemental) Scaled Score: | D21: =D18/24 -> 1
A22: Related IT Essential Mathematics
A23: ITM-DSC (Discrete Structures)
A25: Related IT Supplemental Mathematics
A26: ITM-SUP (Stats, Lin Alg, Calculus, etc)
C29: (Math) Scaled Score: | D29: =IF(SUM(D23,D26,D27,D28) > 6, 0.5, 0.5 * SUM(D23,D26,D27,D28)/7) + IF(SUM(D23,D24) > 2, 0.5, 0.5*D23/3) -> 0 | F29: 1 if >7 Sem Cr Hrs
A30: Capstone
A31: Capstone Project (Senior Year) | B31: IT 480 | C31: Software Engineering | D31: 3
C33: (Capstone) Scaled Score: | D33: =IF(D31 >= 3, 1, D31/3) -> 1 | F33: 1 if ≥3
C35: Final Compliance Factor: | D35: =SUM(D16,D21,D29,D33) -> 3.5

Sheet Bloomfield
A1: Bloomfield College
A2: Abbreviation/Category | B2: Desig | C2: Title | D2: Cred Hrs | E2: Compl Fact | F2: How Derived
A3: Essential IT Domains
A4: ITE-CSP (Cybersecurity) | E4: =IF(D4 >= 6, 1, D4/6) -> 0 | F4: .5 if ≈3; 1 if ≈6
A5: ITE-IMA (Information Management) | B5: CMP 330 | C5: Database Management | D5: 4 | E5: 0.6666666667 | F5: .5 if ≈3; 1 if ≈6
A6: ITE-NET (Networking) | B6: NTW 115 | C6: Introduction to Computer Networks | D6: 4 | E6: 0.6666666667 | F6: .5 if ≈3; 1 if ≈6
A7: ITE-SPA (System Paradigms) | B7: CMP 300, 430 | C7: System Analysis & Design, Management Information Systems | D7: 8 | E7: 1 | F7: .5 if ≈3; 1 if ≈6
A8: ITE-UXD (User Experience) | E8: =IF(D8 >=3, 1, D8/3) -> 0 | F8: 1 if ≈3
A9: ITE-GPP (Global Professional Practice) | E9: 0 | F9: 1 if ≈3
A10: ITE-IST (Integrated Systems Technology) | E10: =IF(D10 >=2, 1, D10/3) -> 0 | F10: 1 if ≈3
A11: ITE-PFT (Platform Technologies) | B11: CMP 322 | C11: Introduction to Operating Systems; Data Representation & Digital Logic | D11: 8 | E11: =IF(D11 >=3, 1, D11/3) -> 1 | F11: 1 if ≈2
A12: ITE-SWF (Software Fundamentals) | B12: CMP 126, 226, 228 | C12: Programming I & II, Data Structures | D12: 12 | E12: 1 | F12: 1 if ≈3
A13: ITE-WMS (Web and Mobile Systems) | B13: CMP 235 | C13: Web Programming | D13: 4 | E13: 1 | F13: 1 if ≈3
C16: (Essential) Scaled Score: | D16: =SUM(E4:E13)/10*2 -> 1.066666667 | F16: (2 maximum)
A17: Supplemental IT Domains
C18: Total Hours: | D18: 9 | F18: Required Hrs/24
A19: Additional Notes: | B19: Essential IT Domain: Software Fundamentals (3), Web and Mobile Systems (1), Platform Technologies (3), System Paradigms (2)
C21: (Supplemental) Scaled Score: | D21: =IF(D18/24 >= 1, 1, D18/24) -> 0.375
A22: Related IT Essential Mathematics
A23: ITM-DSC (Discrete Structures) | B23: MTH 332 | C23: Discrete Mathematics (MTH 221) | D23: 2
A25: Related IT Supplemental Mathematics
A26: ITM-SUP (Stats, Lin Alg, Calculus, etc) | B26: MTH 221 | C26: Calculus & Analytic Geometry I (or Discrete Math) | D26: 2
C29: (Math) Scaled Score: | D29: =IF(SUM(D23,D26,D27,D28) > 6, 0.5, 0.5 * SUM(D23,D26,D27,D28)/7) + IF(SUM(D23,D24) > 2, 0.5, 0.5*D23/3) -> 0.619047619 | F29: 1 if >= 7 Sem Cr Hrs
A30: Capstone
A31: Capstone Project (Senior Year) | B31: CMP 460 | C31: Applied Systems Development Project | D31: 4
C33: (Capstone) Scaled Score: | D33: =IF(D31 >= 3, 1, D31/3) -> 1 | F33: 1 if ≥3
C35: Final Compliance Factor: | D35: =ROUND(SUM(D16,D21,D29,D33),2) -> 3.06

Sheet Bluefield
A1: Bluefield State College
A2: Abbreviation/Category | B2: Desig | C2: Title | D2: Cred Hrs | E2: Compl Fact | F2: How Derived
A3: Essential IT Domains
A4: ITE-CSP (Cybersecurity) | E4: =IF(D4 >= 6, 1, D4/6) -> 0 | F4: .5 if ≈3; 1 if ≈6
A5: ITE-IMA (Information Management) | B5: COSC 250 | C5: Database Management Systems | D5: 3 | E5: 0.5 | F5: .5 if ≈3; 1 if ≈6
A6: ITE-NET (Networking) | E6: 0 | F6: .5 if ≈3; 1 if ≈6
A7: ITE-SPA (System Paradigms) | B7: COSC 311 | C7: Systems Analysis | D7: 3 | E7: 0.5 | F7: .5 if ≈3; 1 if ≈6
A8: ITE-UXD (User Experience) | E8: =IF(D8 >=3, 1, D8/3) -> 0 | F8: 1 if ≈3
A9: ITE-GPP (Global Professional Practice) | E9: 0 | F9: 1 if ≈3
A10: ITE-IST (Integrated Systems Technology) | E10: =IF(D10 >=2, 1, D10/3) -> 0 | F10: 1 if ≈2
A11: ITE-PFT (Platform Technologies) | B11: COSC 241, 240 | C11: Intro to Linux/UNIX, Computer Organization & Architecture | D11: 6 | E11: =IF(D11 >=3, 1, D11/3) -> 1 | F11: 1 if ≈3
A12: ITE-SWF (Software Fundamentals) | B12: COSC 131, 132, 261 | C12: Computer Programming I & II, Data Structures | D12: 11 | E12: 1 | F12: 1 if ≈5
A13: ITE-WMS (Web and Mobile Systems) | B13: COSC 224 | C13: Web Programming | D13: 3 | E13: 1 | F13: 1 if ≈3
C16: (Essential) Scaled Score: | D16: =SUM(E4:E13)/10*2 -> 0.8 | F16: (2 maximum)
A17: Supplemental IT Domains
C18: Total Hours: | D18: 12 | F18: Required Hrs/24
A19: Additional Notes: | B19: Supplemental (6), Essential IT domains: Software Fundamentals (3), Platform Technologies (3)
C21: (Supplemental) Scaled Score: | D21: =IF(D18/24 >= 1, 1, D18/24) -> 0.5
A22: Related IT Essential Mathematics
A23: ITM-DSC (Discrete Structures) | B23: MATH 250 | C23: Discrete Mathematics | D23: 3
A25: Related IT Supplemental Mathematics
A26: ITM-SUP (Stats, Lin Alg, Calculus, etc) | B26: MATH 301 | C26: Probability & Statistics | D26: 3
B27: GNET 116 | C27: Technical Mathematics II | D27: 4
B28: MATH 220, 230 | C28: Calculus I & II | D28: 8
C29: (Math) Scaled Score: | D29: =IF(SUM(D23,D26,D27,D28) > 6, 0.5, 0.5 * SUM(D23,D26,D27,D28)/7) + IF(SUM(D23,D24) > 2, 0.5, 0.5*D23/3) -> 1 | F29: 1 if >= 7 Sem Cr Hrs
A30: Capstone
A31: Capstone Project (Senior Year) | B31: COSC 499 | C31: Not a capstone | D31: 0
C33: (Capstone) Scaled Score: | D33: =IF(D31 >= 3, 1, D31/3) -> 0 | F33: 1 if ≥3
C35: Final Compliance Factor: | D35: =ROUND(SUM(D16,D21,D29,D33),2) -> 2.3

Sheet Bluffton
A1: Bluffton University
A2: Abbreviation/Category | B2: Desig | C2: Title | D2: Cred Hrs | E2: Compl Fact | F2: How Derived
A3: Essential IT Domains
A4: ITE-CSP (Cybersecurity) | E4: =IF(D4 >= 6, 1, D4/6) -> 0 | F4: .5 if ≈3; 1 if ≈6
A5: ITE-IMA (Information Management) | B5: CPS 322 | C5: Database Systems | D5: 3 | E5: 0.5 | F5: .5 if ≈3; 1 if ≈6
A6: ITE-NET (Networking) | B6: CPS 343 | C6: Network Administration | E6: 0 | F6: .5 if ≈3; 1 if ≈6
A7: ITE-SPA (System Paradigms) | B7: TEC 369 | C7: Introduction to Information Systems | D7: 3 | E7: 0.5 | F7: .5 if ≈3; 1 if ≈6
A8: ITE-UXD (User Experience) | E8: =IF(D8 >=3, 1, D8/3) -> 0 | F8: 1 if ≈3
A9: ITE-GPP (Global Professional Practice) | B9: TEC 400 | C9: Technology, Ethics and Society | D9: 2 | E9: 0.6666666667 | F9: 1 if ≈3
A10: ITE-IST (Integrated Systems Technology) | B10: TEC 200 | C10: Scripting Languages | D10: 3 | E10: =IF(D10 >=2, 1, D10/3) -> 1 | F10: 1 if ≈2
A11: ITE-PFT (Platform Technologies) | E11: =IF(D11 >=3, 1, D11/3) -> 0 | F11: 1 if ≈3
A12: ITE-SWF (Software Fundamentals) | B12: CPS 108, 112 | C12: Computer Programming, Object Oriented Program with Applied Data Structures | D12: 6 | E12: 1 | F12: 1 if ≈3
A13: ITE-WMS (Web and Mobile Systems) | B13: TEC 105, 150, 250 | C13: Web Applications, Web Programming A & B | D13: 9 | E13: 1 | F13: 1 if ≈3
C16: (Essential) Scaled Score: | D16: =SUM(E4:E13)/10*2 -> 0.9333333333 | F16: (2 maximum)
A17: Supplemental IT Domains
C18: Total Hours: | D18: 10 | F18: Required Hrs/24
A19: Additional Notes: | B19: Essential IT Domains: Web and Mobile Systems (6), Software Fundamentals (1) + Supplemental (3)
C21: (Supplemental) Scaled Score: | D21: =IF(D18/24 >= 1, 1, D18/24) -> 0.4166666667
A22: Related IT Essential Mathematics
A23: ITM-DSC (Discrete Structures)
A25: Related IT Supplemental Mathematics
A26: ITM-SUP (Stats, Lin Alg, Calculus, etc)
C29: (Math) Scaled Score: | D29: =IF(SUM(D23,D26,D27,D28) > 6, 0.5, 0.5 * SUM(D23,D26,D27,D28)/7) + IF(SUM(D23,D24) > 2, 0.5, 0.5*D23/3) -> 0 | F29: 1 if >= 7 Sem Cr Hrs
A30: Capstone
A31: Capstone Project (Senior Year) | C31: Practicum isn't very structured or teamwork based
C33: (Capstone) Scaled Score: | D33: =IF(D31 >= 3, 1, D31/3) -> 0 | F33: 1 if ≥3
C35: Final Compliance Factor: | D35: =ROUND(SUM(D16,D21,D29,D33),2) -> 1.35

Sheet Bob Jones
A1: Bob Jones University
A2: Abbreviation/Category | B2: Desig | C2: Title | D2: Cred Hrs | E2: Compl Fact | F2: How Derived
A3: Essential IT Domains
A4: ITE-CSP (Cybersecurity) | B4: CPS 491 | C4: Computer Security | D4: 3 | E4: =IF(D4 >= 6, 1, D4/6) -> 0.5 | F4: .5 if ≈3; 1 if ≈6
A5: ITE-IMA (Information Management) | B5: CPS 301 | C5: Introduction to Database Management Systems | D5: 3 | E5: 0.5 | F5: .5 if ≈3; 1 if ≈6
A6: ITE-NET (Networking) | B6: CPS 335, 433 | C6: Computer Network Fundamentals, Network Administration | D6: 6 | E6: 1 | F6: .5 if ≈3; 1 if ≈6
A7: ITE-SPA (System Paradigms) | B7: CPS 225 | C7: Business Systems | D7: 3 | E7: 0.5 | F7: .5 if ≈3; 1 if ≈6
A8: ITE-UXD (User Experience) | E8: =IF(D8 >=3, 1, D8/3) -> 0 | F8: 1 if ≈3
A9: ITE-GPP (Global Professional Practice) | B9: CPS 340 | C9: Project Management | D9: 2 | E9: 0.6666666667 | F9: 1 if ≈3
A10: ITE-IST (Integrated Systems Technology) | E10: =IF(D10 >=2, 1, D10/3) -> 0 | F10: 1 if ≈2
A11: ITE-PFT (Platform Technologies) | B11: CPS 201 | C11: Information Technology I & II | D11: 6 | E11: =IF(D11 >=3, 1, D11/3) -> 1 | F11: 1 if ≈3
A12: ITE-SWF (Software Fundamentals) | B12: CPS 105, 109, 110 | C12: Computer Science Foundations, Introduction to Computer Programming, Computer Science I | D12: 9 | E12: 1 | F12: 1 if ≈3
A13: ITE-WMS (Web and Mobile Systems) | E13: 0 | F13: 1 if ≈3
C16: (Essential) Scaled Score: | D16: =SUM(E4:E13)/10*2 -> 1.033333333 | F16: (2 maximum)
A17: Supplemental IT Domains
C18: Total Hours: | D18: 9 | F18: Required Hrs/24
A19: Additional Notes: | B19: CPS 420: Software Development (3) + Essential IT Domains: Software Fundamentals (3), Platform Technologies (3)
C21: (Supplemental) Scaled Score: | D21: =IF(D18/24 >= 1, 1, D18/24) -> 0.375
A22: Related IT Essential Mathematics
A23: ITM-DSC (Discrete Structures)
A25: Related IT Supplemental Mathematics
A26: ITM-SUP (Stats, Lin Alg, Calculus, etc) | B26: MA 320 | C26: Applied Statistics | D26: 3
B27: Math GE | C27: Math Elective | D27: 3
C29: (Math) Scaled Score: | D29: =IF(SUM(D23,D26,D27,D28) > 6, 0.5, 0.5 * SUM(D23,D26,D27,D28)/7) + IF(SUM(D23,D24) > 2, 0.5, 0.5*D23/3) -> 0.4285714286 | F29: 1 if >= 7 Sem Cr Hrs
A30: Capstone
A31: Capstone Project (Senior Year)
C33: (Capstone) Scaled Score: | D33: =IF(D31 >= 3, 1, D31/3) -> 0 | F33: 1 if ≥3
C35: Final Compliance Factor: | D35: =ROUND(SUM(D16,D21,D29,D33),2) -> 1.84

Sheet Boise St
A1: Boise State University
A2: Abbreviation/Category | B2: Desig | C2: Title | D2: Cred Hrs | E2: Compl Fact | F2: How Derived
A3: Essential IT Domains
A4: ITE-CSP (Cybersecurity) | B4: , 332, 333 | C4: Computer Security & Information Assurance, Ethical Hacking, Networking Security and Defense | D4: 9 | E4: =IF(D4 >= 6, 1, D4/6) -> 1 | F4: .5 if ≈3; 1 if ≈6
A5: ITE-IMA (Information Management) | B5: CS 310 | C5: Intro to Database System Usage | D5: 3 | E5: 0.5 | F5: .5 if ≈3; 1 if ≈6
A6: ITE-NET (Networking) | E6: 0 | F6: .5 if ≈3; 1 if ≈6
A7: ITE-SPA (System Paradigms) | E7: 0 | F7: .5 if ≈3; 1 if ≈6
A8: ITE-UXD (User Experience) | E8: =IF(D8 >=3, 1, D8/3) -> 0 | F8: 1 if ≈3
A9: ITE-GPP (Global Professional Practice) | B9: CS 230 | C9: Ethical Issues in Computing | D9: 3 | E9: 1 | F9: 1 if ≈3
A10: ITE-IST (Integrated Systems Technology) | B10: CS 253 | C10: Intro to Systems Programming, | D10: 3 | E10: =IF(D10 >=2, 1, D10/3) -> 1 | F10: 1 if ≈2
A11: ITE-PFT (Platform Technologies) | B11: CS 441, 453 | C11: Computer Architecture, Operating Systems | D11: 6 | E11: =IF(D11 >=3, 1, D11/3) -> 1 | F11: 1 if ≈3
A12: ITE-SWF (Software Fundamentals) | B12: CS 121, 221, 321, 354, 250 | C12: Computer Science I & II, Data Structures, Programming Languages, Intro to Version Control | D12: 16 | E12: 1 | F12: 1 if ≈5
A13: ITE-WMS (Web and Mobile Systems) | E13: 0 | F13: 1 if ≈3
C16: (Essential) Scaled Score: | D16: =SUM(E4:E13)/10*2 -> 1.1 | F16: (2 maximum)
A17: Supplemental IT Domains
C18: Total Hours: | D18: 15 | F18: Required Hrs/24
A19: Additional Notes: | B19: Essential IT Domains: Cybersecurity (3), Platform Technologies (3), Software Fundamentals(3) + Supplemental (6)
C21: (Supplemental) Scaled Score: | D21: =IF(D18/24 >= 1, 1, D18/24) -> 0.625
A22: Related IT Essential Mathematics
A23: ITM-DSC (Discrete Structures) | B23: MATH 189 | C23: Discrete Mathematics | D23: 4
A25: Related IT Supplemental Mathematics
A26: ITM-SUP (Stats, Lin Alg, Calculus, etc) | B26: MATH 170 | C26: Calculus I | D26: 4
B27: MATH 175 | C27: Calculus II | D27: 4
B28: MATH 360 or 361 | C28: Statistics | D28: 3
C29: (Math) Scaled Score: | D29: =IF(SUM(D23,D26,D27,D28) > 6, 0.5, 0.5 * SUM(D23,D26,D27,D28)/7) + IF(SUM(D23,D24) > 2, 0.5, 0.5*D23/3) -> 1 | F29: 1 if >= 7 Sem Cr Hrs
A30: Capstone
A31: Capstone Project (Senior Year) | B31: CS 481 | C31: Senior Design Project | D31: 3
C33: (Capstone) Scaled Score: | D33: =IF(D31 >= 3, 1, D31/3) -> 1 | F33: 1 if ≥3
C35: Final Compliance Factor: | D35: =ROUND(SUM(D16,D21,D29,D33),2) -> 3.73

Sheet Bowie
A1: Bowie State University
A2: Abbreviation/Category | B2: Desig | C2: Title | D2: Cred Hrs | E2: Compl Fact | F2: How Derived
A3: Essential IT Domains
A4: ITE-CSP (Cybersecurity) | B4: CTEC 345, 350, 402, 445 | C4: Foundations of Computer and Network Security, Principles and Methods of Intrusion Detection, Software and Operating System Security, Fundamentals of Cryptography and Applications | D4: 12 | E4: =IF(D4 >= 6, 1, D4/6) -> 1 | F4: .5 if ≈3; 1 if ≈6
A5: ITE-IMA (Information Management) | B5: CTEC 226 | C5: Introduction to Database Development | D5: 3 | E5: 0.5 | F5: .5 if ≈3; 1 if ≈6
A6: ITE-NET (Networking) | B6: CTEC 214, 302, 305, 335 | C6: Client Operating Systems, Computer Networking, Server Administration I, Network Protocols | D6: 13 | E6: 1 | F6: .5 if ≈3; 1 if ≈6
A7: ITE-SPA (System Paradigms) | E7: 0 | F7: .5 if ≈3; 1 if ≈6
A8: ITE-UXD (User Experience) | E8: =IF(D8 >=3, 1, D8/3) -> 0 | F8: 1 if ≈3
A9: ITE-GPP (Global Professional Practice) | E9: 0 | F9: 1 if ≈3
A10: ITE-IST (Integrated Systems Technology) | B10: CTEC 222, 435 | C10: UNIX Operating System, UNIX System Administration | D10: 6 | E10: =IF(D10 >=2, 1, D10/3) -> 1 | F10: 1 if ≈2
A11: ITE-PFT (Platform Technologies) | B11: CTEC 294 | C11: PC Architecture | D11: 3 | E11: =IF(D11 >=3, 1, D11/3) -> 1 | F11: 1 if ≈3
A12: ITE-SWF (Software Fundamentals) | B12: COSC 112, 113, 214 | C12: Computer Science I & II, Data Structurs and Algorithms | D12: 12 | E12: 1 | F12: 1 if ≈3
A13: ITE-WMS (Web and Mobile Systems) | E13: 0 | F13: 1 if ≈3
C16: (Essential) Scaled Score: | D16: =SUM(E4:E13)/10*2 -> 1.1 | F16: (2 maximum)
A17: Supplemental IT Domains
C18: Total Hours: | D18: 24 | F18: Required Hrs/24
A19: Additional Notes: | B19: Essential IT Domains: Software Fundamentals (3), Networking (7), Cybersecurity (6), Platform Technologies (3) + Supplemental CTEC Electives (12)
C21: (Supplemental) Scaled Score: | D21: =IF(D18/24 >= 1, 1, D18/24) -> 1
A22: Related IT Essential Mathematics
A23: ITM-DSC (Discrete Structures) | B23: COSC 208 | C23: Discrete Structures | D23: 3
A25: Related IT Supplemental Mathematics
A26: ITM-SUP (Stats, Lin Alg, Calculus, etc) | B26: MATH 215 | C26: Elements of Calculus | D26: 4
B27: MATH 155 | C27: Probability and Statistics | D27: 3
C29: (Math) Scaled Score: | D29: =IF(SUM(D23,D26,D27,D28) > 6, 0.5, 0.5 * SUM(D23,D26,D27,D28)/7) + IF(SUM(D23,D24) > 2, 0.5, 0.5*D23/3) -> 1 | F29: 1 if >= 7 Sem Cr Hrs
A30: Capstone
A31: Capstone Project (Senior Year)
C33: (Capstone) Scaled Score: | D33: =IF(D31 >= 3, 1, D31/3) -> 0 | F33: 1 if ≥3
C35: Final Compliance Factor: | D35: =ROUND(SUM(D16,D21,D29,D33),2) -> 3.1

Sheet Brandman
A1: Brandman University
A2: Abbreviation/Category | B2: Desig | C2: Title | D2: Cred Hrs | E2: Compl Fact | F2: How Derived
A3: Essential IT Domains
A4: ITE-CSP (Cybersecurity) | B4: CSCU 270 | C4: Information System Security | D4: 3 | E4: =IF(D4 >= 6, 1, D4/6) -> 0.5 | F4: .5 if ≈3; 1 if ≈6
A5: ITE-IMA (Information Management) | B5: CSCU 408 | C5: Database Management | D5: 3 | E5: 0.5 | F5: .5 if ≈3; 1 if ≈6
A6: ITE-NET (Networking) | B6: CSCU 353, 453 | C6: Data Communications and Computer Networks, Network Implementation | D6: 6 | E6: 1 | F6: .5 if ≈3; 1 if ≈6
A7: ITE-SPA (System Paradigms) | B7: CSCU 251, 315, 410 | C7: Introduction to Computing Systems Organization, Organizational Information Systems, Structured Systems Analysis and Design | D7: 9 | E7: 1 | F7: .5 if ≈3; 1 if ≈6
A8: ITE-UXD (User Experience) | E8: =IF(D8 >=3, 1, D8/3) -> 0 | F8: 1 if ≈3
A9: ITE-GPP (Global Professional Practice) | B9: COMU 410, OLCU 350, 414 | C9: Organizational Communication, Leadership and Professional Ethics, Team Building | D9: 9 | E9: 1 | F9: 1 if ≈3
A10: ITE-IST (Integrated Systems Technology) | E10: =IF(D10 >=2, 1, D10/3) -> 0 | F10: 1 if ≈2
A11: ITE-PFT (Platform Technologies) | E11: =IF(D11 >=3, 1, D11/3) -> 0 | F11: 1 if ≈3
A12: ITE-SWF (Software Fundamentals) | B12: CSCU 220 | C12: Object Oriented Programming I | D12: 3 | E12: 1 | F12: 1 if ≈3
A13: ITE-WMS (Web and Mobile Systems) | E13: 0 | F13: 1 if ≈3
C16: (Essential) Scaled Score: | D16: =SUM(E4:E13)/10*2 -> 1 | F16: (2 maximum)
A17: Supplemental IT Domains
C18: Total Hours: | D18: 6 | F18: Required Hrs/24
A19: Additional Notes: | B19: Essential IT Domains: Global Professional Practice (3), System Paradigms (3)
C21: (Supplemental) Scaled Score: | D21: =IF(D18/24 >= 1, 1, D18/24) -> 0.25
A22: Related IT Essential Mathematics
A23: ITM-DSC (Discrete Structures)
A25: Related IT Supplemental Mathematics
A26: ITM-SUP (Stats, Lin Alg, Calculus, etc) | B26: MATU 203 | C26: Introduction to Statistics | D26: 3
C29: (Math) Scaled Score: | D29: =IF(SUM(D23,D26,D27,D28) > 6, 0.5, 0.5 * SUM(D23,D26,D27,D28)/7) + IF(SUM(D23,D24) > 2, 0.5, 0.5*D23/3) -> 0.2142857143 | F29: 1 if >= 7 Sem Cr Hrs
A30: Capstone
A31: Capstone Project (Senior Year) | B31: CSCU 498 | C31: Capstone Project (online only, no teamwork) | D31: 1.5
C33: (Capstone) Scaled Score: | D33: =IF(D31 >= 3, 1, D31/3) -> 0.5 | F33: 1 if ≥3
C35: Final Compliance Factor: | D35: =ROUND(SUM(D16,D21,D29,D33),2) -> 1.96

Sheet BYU-Hawaii
A1: Brigham Young University - Hawaii
A2: Abbreviation/Category | B2: Desig | C2: Title | D2: Cred Hrs | E2: Compl Fact | F2: How Derived
A3: Essential IT Domains
A4: ITE-CSP (Cybersecurity) | B4: IT 481 | C4: Information Assurance and Security | D4: 3 | E4: =IF(D4 >= 6, 1, D4/6) -> 0.5 | F4: .5 if ≈3; 1 if ≈6
A5: ITE-IMA (Information Management) | B5: IS 350 | C5: Database Management Systems | D5: 3 | E5: 0.5 | F5: .5 if ≈3; 1 if ≈6
A6: ITE-NET (Networking) | B6: IT 280, 480 | C6: Computer Networking, Computer Network Design | D6: 6 | E6: 1 | F6: .5 if ≈3; 1 if ≈6
A7: ITE-SPA (System Paradigms) | B7: CIS 200 | C7: Fundamentals of Information Systems and Technology | D7: 3 | E7: 0.5 | F7: .5 if ≈3; 1 if ≈6
A8: ITE-UXD (User Experience) | B8: IT 440 | C8: Foundations of Human-Computer Interactions | D8: 3 | E8: =IF(D8 >=3, 1, D8/3) -> 1 | F8: 1 if ≈3
A9: ITE-GPP (Global Professional Practice) | B9: CIS 470 | C9: Ethics in Computer and Information Sciences | D9: 2 | E9: 0.6666666667 | F9: 1 if ≈3
A10: ITE-IST (Integrated Systems Technology) | B10: IT 320, 420 | C10: Linux Essentials, Linux Systems Administration | D10: 6 | E10: =IF(D10 >=2, 1, D10/3) -> 1 | F10: 1 if ≈3
A11: ITE-PFT (Platform Technologies) | B11: IT 224, 426 | C11: Computer Hardware and Systems Software, Computer Network Services | D11: 6 | E11: =IF(D11 >=3, 1, D11/3) -> 1 | F11: 1 if ≈2
A12: ITE-SWF (Software Fundamentals) | B12: CIS 101, 202 | C12: Beginning Programming, Object-Oriented Programming I | D12: 6 | E12: 1 | F12: 1 if ≈5
A13: ITE-WMS (Web and Mobile Systems) | B13: IT 240, 401 | C13: Fundamentals of Web Design and Technology, Web Applications Development | D13: 6 | E13: 1 | F13: 1 if ≈3
C16: (Essential) Scaled Score: | D16: =SUM(E4:E13)/10*2 -> 1.633333333 | F16: (2 maximum)
A17: Supplemental IT Domains
C18: Total Hours: | D18: 20 | F18: Required Hrs/24
A19: Additional Notes: | B19: Essential IT Domains: Web and Mobile Systems (3), Software Fundamentals (1), Platform Technologies (4), Integrated Systems Technology (3) + Supplemental (9)
C21: (Supplemental) Scaled Score: | D21: =IF(D18/24 >= 1, 1, D18/24) -> 0.8333333333
A22: Related IT Essential Mathematics
A23: ITM-DSC (Discrete Structures) | B23: CIS 205 | C23: Discrete Mathematics I | D23: 3
A25: Related IT Supplemental Mathematics
A26: ITM-SUP (Stats, Lin Alg, Calculus, etc) | B26: MATH 221 | C26: Principles of Statistics | D26: 3
C29: (Math) Scaled Score: | D29: =IF(SUM(D23,D26,D27,D28) > 6, 0.5, 0.5 * SUM(D23,D26,D27,D28)/7) + IF(SUM(D23,D24) > 2, 0.5, 0.5*D23/3) -> 0.9285714286 | F29: 1 if >= 7 Sem Cr Hrs
A30: Capstone
A31: Capstone Project (Senior Year) | B31: CIS 305, 405 | C31: Systems Engineering I & II | D31: 6
C33: (Capstone) Scaled Score: | D33: =IF(D31 >= 3, 1, D31/3) -> 1 | F33: 1 if ≥3
C35: Final Compliance Factor: | D35: =ROUND(SUM(D16,D21,D29,D33),2) -> 4.4

Sheet BYU - ID
A1: Brigham Young University - Idaho
A2: Abbreviation/Category | B2: Desig | C2: Title | D2: Cred Hrs | E2: Compl Fact | F2: How Derived
A3: Essential IT Domains
A4: ITE-CSP (Cybersecurity) | B4: CIT 270 | C4: Systems Security I | D4: 3 | E4: =IF(D4 >= 6, 1, D4/6) -> 0.5 | F4: .5 if ≈3; 1 if ≈6
A5: ITE-IMA (Information Management) | B5: CIT 225, 325 | C5: Database Design & Development, Database Programming | D5: 6 | E5: 1 | F5: .5 if ≈3; 1 if ≈6
A6: ITE-NET (Networking) | B6: CIT 240, 241 | C6: Networking, Network Design I | D6: 6 | E6: 1 | F6: .5 if ≈3; 1 if ≈6
A7: ITE-SPA (System Paradigms) | B7: CIT 262 | C7: System Analysis and Design | D7: 3 | E7: 0.5 | F7: .5 if ≈3; 1 if ≈6
A8: ITE-UXD (User Experience) | E8: =IF(D8 >=3, 1, D8/3) -> 0 | F8: 1 if ≈3
A9: ITE-GPP (Global Professional Practice) | B9: CIT 380, COMM 175 | C9: Project Management, Communication Essentials | D9: 6 | E9: 1 | F9: 1 if ≈3
A10: ITE-IST (Integrated Systems Technology) | E10: =IF(D10 >=2, 1, D10/3) -> 0 | F10: 1 if ≈2
A11: ITE-PFT (Platform Technologies) | B11: CIT 352, 353 | C11: Operating Systems I & II | D11: 6 | E11: =IF(D11 >=3, 1, D11/3) -> 1 | F11: 1 if ≈3
A12: ITE-SWF (Software Fundamentals) | B12: CIT 160, 260, 360 | C12: Intro to Programming, Object Oriented Programming, Object Oriented Development | D12: 9 | E12: =IF(D12 >=5, 1, D12/5) -> 1 | F12: 1 if ≈5
A13: ITE-WMS (Web and Mobile Systems) | B13: CIT 230 | C13: Web Frontend Development | D13: 3 | E13: =IF(D13 >=3, 1, D13/3) -> 1 | F13: 1 if ≈3
C16: (Essential) Scaled Score: | D16: =SUM(E4:E13)/10*2 -> 1.4 | F16: (2 maximum)
A17: Supplemental IT Domains
C18: Total Hours: | D18: 15 | F18: Required Hrs/24
A19: Additional Notes: | B19: Supplemental (6) + Essential IT Domains: Global Prof. Practice (3), Platform Technologies (3), Software Fundamentals (3)
C21: (Supplemental) Scaled Score: | D21: =IF(D18/24 >= 1, 1, D18/24) -> 0.625
A22: Related IT Essential Mathematics
A23: ITM-DSC (Discrete Structures)
A25: Related IT Supplemental Mathematics
A26: ITM-SUP (Stats, Lin Alg, Calculus, etc) | B26: FDMAT | C26: Quantitative Reasoning Requirement | D26: 3
C29: (Math) Scaled Score: | D29: =IF(SUM(D23,D26,D27,D28) > 6, 0.5, 0.5 * SUM(D23,D26,D27,D28)/7) + IF(SUM(D23,D24) > 2, 0.5, 0.5*D23/3) -> 0.2142857143 | F29: 1 if >= 7 Sem Cr Hrs
A30: Capstone
A31: Capstone Project (Senior Year) | B31: CIT 490 | C31: Senior Project/Internship + Practicum | D31: 4
C33: (Capstone) Scaled Score: | D33: =IF(D31 >= 3, 1, D31/3) -> 1 | F33: 1 if ≥3
C35: Final Compliance Factor: | D35: =ROUND(SUM(D16,D21,D29,D33),2) -> 3.24

Sheet BYU-Provo
A1: Brigham Young University - Provo
A2: Abbreviation/Category | B2: Desig | C2: Title | D2: Cred Hrs | E2: Compl Fact | F2: How Derived
A3: Essential IT Domains
A4: ITE-CSP (Cybersecurity) | B4: IT 366 | C4: Information Assurance and Security | D4: 3 | E4: =IF(D4 >= 6, 1, D4/6) -> 0.5 | F4: .5 if ≈3; 1 if ≈6
A5: ITE-IMA (Information Management) | B5: IT 350 | C5: Database Principles and Applications | D5: 3 | E5: 0.5 | F5: .5 if ≈3; 1 if ≈6
A6: ITE-NET (Networking) | B6: IT 327 | C6: Digital Communications, Computer Networks | D6: 7 | E6: 1 | F6: .5 if ≈3; 1 if ≈6
A7: ITE-SPA (System Paradigms) | B7: IT 101 | C7: Cornerstone: Information Technology | D7: 3 | E7: 0.5 | F7: .5 if ≈3; 1 if ≈6
A8: ITE-UXD (User Experience) | B8: IT 255 | C8: Human-Computer Interaction | D8: 3 | E8: =IF(D8 >=3, 1, D8/3) -> 1 | F8: 1 if ≈3
A9: ITE-GPP (Global Professional Practice) | B9: ENG T 231, ENGL 316 | C9: Foundations of Global Leadership, Technical Communication | D9: 6 | E9: 1 | F9: 1 if ≈3
A10: ITE-IST (Integrated Systems Technology) | B10: IT 344 | C10: Operating Systems | D10: 3 | E10: =IF(D10 >=2, 1, D10/3) -> 1 | F10: 1 if ≈3
A11: ITE-PFT (Platform Technologies) | B11: IT 124, 252 | C11: Introduction to Computer Systems, Computer Architecture and Organization | D11: 6 | E11: =IF(D11 >=3, 1, D11/3) -> 1 | F11: 1 if ≈2
A12: ITE-SWF (Software Fundamentals) | B12: CS 142, 235 | C12: Intro to Computer Programming, Data Structures and Algorithms | D12: 6 | E12: 1 | F12: 1 if ≈5
A13: ITE-WMS (Web and Mobile Systems) | B13: IT 210A & B | C13: Fundamentals of Web-Based Information Technology | D13: 4 | E13: 1 | F13: 1 if ≈3
C16: (Essential) Scaled Score: | D16: =SUM(E4:E13)/10*2 -> 1.7 | F16: (2 maximum)
A17: Supplemental IT Domains
C18: Total Hours: | D18: 19 | F18: Required Hrs/24
A19: Additional Notes: | B19: Supplemental (9), Web and Mobile Systems (2), Software Fundamentals (1), Platform Technologies (3), Global and Professional Practice (3), Networking (1)
C21: (Supplemental) Scaled Score: | D21: =IF(D18/24 >= 1, 1, D18/24) -> 0.7916666667
A22: Related IT Essential Mathematics
A23: ITM-DSC (Discrete Structures) | B23: CS 236 | C23: Discrete Structures | D23: 3
A25: Related IT Supplemental Mathematics
A26: ITM-SUP (Stats, Lin Alg, Calculus, etc) | B26: MATH 112 | C26: Calculus 1 | D26: 4
B27: STAT 201 | C27: Statistics for Engineers and Scientists | D27: 3
C29: (Math) Scaled Score: | D29: =IF(SUM(D23,D26,D27,D28) > 6, 0.5, 0.5 * SUM(D23,D26,D27,D28)/7) + IF(SUM(D23,D24) > 2, 0.5, 0.5*D23/3) -> 1 | F29: 1 if >= 7 Sem Cr Hrs
A30: Capstone
A31: Capstone Project (Senior Year) | B31: IT 446,447 | C31: Senior Project / Capstone 1 & 2 | D31: 5
C33: (Capstone) Scaled Score: | D33: =IF(D31 >= 3, 1, D31/3) -> 1 | F33: 1 if ≥3
C35: Final Compliance Factor: | D35: =ROUND(SUM(D16,D21,D29,D33),2) -> 4.49

Sheet Broward
A1: Broward College
A2: Abbreviation/Category | B2: Desig | C2: Title | D2: Cred Hrs | E2: Compl Fact | F2: How Derived
A3: Essential IT Domains
A4: ITE-CSP (Cybersecurity) | B4: CTS 2120C | C4: Security+ | D4: 4 | E4: =IF(D4 >= 6, 1, D4/6) -> 0.6666666667 | F4: .5 if ≈3; 1 if ≈6
A5: ITE-IMA (Information Management) | B5: COP1700C | C5: Introduction to Database Design & MySQL | D5: 3 | E5: 0.5 | F5: .5 if ≈3; 1 if ≈6
A6: ITE-NET (Networking) | B6: CTS 1134C | C6: Network+ | D6: 4 | E6: 0.6666666667 | F6: .5 if ≈3; 1 if ≈6
A7: ITE-SPA (System Paradigms) | B7: CTS 1133C, ISM 3013C | C7: A+ Comprehensive, Information Systems Management | D7: 7 | E7: 1 | F7: .5 if ≈3; 1 if ≈6
A8: ITE-UXD (User Experience) | E8: =IF(D8 >=3, 1, D8/3) -> 0 | F8: 1 if ≈3
A9: ITE-GPP (Global Professional Practice) | B9: CIS 1513 | C9: Project Management and Project+ | D9: 4 | E9: 1 | F9: 1 if ≈3
A10: ITE-IST (Integrated Systems Technology) | E10: =IF(D10 >=2, 1, D10/3) -> 0 | F10: 1 if ≈2
A11: ITE-PFT (Platform Technologies) | B11: CTS 1111C | C11: Linux+ | D11: 4 | E11: =IF(D11 >=3, 1, D11/3) -> 1 | F11: 1 if ≈3
A12: ITE-SWF (Software Fundamentals) | B12: COP 1000C | C12: Intro to Programming | D12: 3 | E12: =IF(D12 >=5, 1, D12/5) -> 0.6 | F12: 1 if ≈5
A13: ITE-WMS (Web and Mobile Systems) | E13: =IF(D13 >=3, 1, D13/3) -> 0 | F13: 1 if ≈3
C16: (Essential) Scaled Score: | D16: =SUM(E4:E13)/10*2 -> 1.086666667 | F16: (2 maximum)
A17: Supplemental IT Domains
C18: Total Hours: | D18: 6 | F18: Required Hrs/24
A19: Additional Notes: | B19: CTS 2375C: Cloud+ (3), Supplemental (3)
C21: (Supplemental) Scaled Score: | D21: =IF(D18/24 >= 1, 1, D18/24) -> 0.25
A22: Related IT Essential Mathematics
A23: ITM-DSC (Discrete Structures)
A25: Related IT Supplemental Mathematics
A26: ITM-SUP (Stats, Lin Alg, Calculus, etc) | B26: MGF 1107 or STA 2023 | C26: Survey of Mathematics or Statistics | D26: 3
C29: (Math) Scaled Score: | D29: =IF(SUM(D23,D26,D27,D28) > 6, 0.5, 0.5 * SUM(D23,D26,D27,D28)/7) + IF(SUM(D23,D24) > 2, 0.5, 0.5*D23/3) -> 0.2142857143 | F29: 1 if >= 7 Sem Cr Hrs
A30: Capstone
A31: Capstone Project (Senior Year)
C33: (Capstone) Scaled Score: | D33: =IF(D31 >= 3, 1, D31/3) -> 0 | F33: 1 if ≥3
C35: Final Compliance Factor: | D35: =ROUND(SUM(D16,D21,D29,D33),2) -> 1.55

Sheet Buena Vista
A1: Buena Vista University
A2: Abbreviation/Category | B2: Desig | C2: Title | D2: Cred Hrs | E2: Compl Fact | F2: How Derived
A3: Essential IT Domains
A4: ITE-CSP (Cybersecurity) | B4: CMSC 452 | C4: Computer Security | D4: 3 | E4: =IF(D4 >= 6, 1, D4/6) -> 0.5 | F4: .5 if ≈3; 1 if ≈6
A5: ITE-IMA (Information Management) | B5: CMSC 321 | C5: Database Management Systems | D5: 3 | E5: 0.5 | F5: .5 if ≈3; 1 if ≈6
A6: ITE-NET (Networking) | E6: 0 | F6: .5 if ≈3; 1 if ≈6
A7: ITE-SPA (System Paradigms) | B7: CMSC 190 | C7: Introduction to Information Technology | D7: 3 | E7: 0.5 | F7: .5 if ≈3; 1 if ≈6
A8: ITE-UXD (User Experience) | B8: CMSC 351 | C8: User Interface Design and Development | D8: 3 | E8: =IF(D8 >=3, 1, D8/3) -> 1 | F8: 1 if ≈3
A9: ITE-GPP (Global Professional Practice) | B9: CMSC 360 | C9: Software Engineering | D9: 3 | E9: 1 | F9: 1 if ≈3
A10: ITE-IST (Integrated Systems Technology) | E10: =IF(D10 >=2, 1, D10/3) -> 0 | F10: 1 if ≈3
A11: ITE-PFT (Platform Technologies) | B11: CMSC 280, 432 | C11: Computer Architecture, Operating Systems | D11: 7 | E11: =IF(D11 >=3, 1, D11/3) -> 1 | F11: 1 if ≈2
A12: ITE-SWF (Software Fundamentals) | B12: CMSC 181, 182, 310 | C12: Computer Science I & II, Algorithms | D12: 9 | E12: =IF(D12 >=5, 1, D12/5) -> 1 | F12: 1 if ≈5
A13: ITE-WMS (Web and Mobile Systems) | B13: CMSC 331 | C13: Web Application Development | D13: 3 | E13: =IF(D13 >=3, 1, D13/3) -> 1 | F13: 1 if ≈3
C16: (Essential) Scaled Score: | D16: =SUM(E4:E13)/10*2 -> 1.3 | F16: (2 maximum)
A17: Supplemental IT Domains
C18: Total Hours: | D18: 8 | F18: Required Hrs/24
A19: Additional Notes: | B19: Essential IT Domains: Software Fundamentals (3), Platform Technologies (5)
C21: (Supplemental) Scaled Score: | D21: =IF(D18/24 >= 1, 1, D18/24) -> 0.3333333333
A22: Related IT Essential Mathematics
A23: ITM-DSC (Discrete Structures) | B23: MATH 143 | C23: Discrete Mathematics | D23: 3
A25: Related IT Supplemental Mathematics
A26: ITM-SUP (Stats, Lin Alg, Calculus, etc) | B26: MATH 140 | C26: Elementary Applied Statistics | D26: 3
B27: MATH 160 | C27: Calculus I: Elementary Applied Calculus | D27: 3
C29: (Math) Scaled Score: | D29: =IF(SUM(D23,D26,D27,D28) > 6, 0.5, 0.5 * SUM(D23,D26,D27,D28)/7) + IF(SUM(D23,D24) > 2, 0.5, 0.5*D23/3) -> 1 | F29: 1 if >= 7 Sem Cr Hrs
A30: Capstone
A31: Capstone Project (Senior Year) | B31: CMSC 480, 481 | C31: Computer Science Capstone | D31: 3
C33: (Capstone) Scaled Score: | D33: =IF(D31 >= 3, 1, D31/3) -> 1 | F33: 1 if ≥3
C35: Final Compliance Factor: | D35: =ROUND(SUM(D16,D21,D29,D33),2) -> 3.63

Sheet Cabrini
A1: Cabrini University
A2: Abbreviation/Category | B2: Desig | C2: Title | D2: Cred Hrs | E2: Compl Fact | F2: How Derived
A3: Essential IT Domains
A4: ITE-CSP (Cybersecurity) | E4: =IF(D4 >= 6, 1, D4/6) -> 0 | F4: .5 if ≈3; 1 if ≈6
A5: ITE-IMA (Information Management) | B5: CIS 300, 305 | C5: Database Management Systems I & II | D5: 6 | E5: 1 | F5: .5 if ≈3; 1 if ≈6
A6: ITE-NET (Networking) | B6: CIS 335 | C6: Network Computing | D6: 3 | E6: 0.5 | F6: .5 if ≈3; 1 if ≈6
A7: ITE-SPA (System Paradigms) | B7: CIS 225, 380, 390 | C7: Computer Information Systems, Systems Analysis and Design I & II | D7: 9 | E7: 1 | F7: .5 if ≈3; 1 if ≈6
A8: ITE-UXD (User Experience) | B8: CIS 315 | C8: Human-Computer Interaction | D8: 3 | E8: =IF(D8 >=3, 1, D8/3) -> 1 | F8: 1 if ≈3
A9: ITE-GPP (Global Professional Practice) | B9: CIS 400 | C9: Professional Practice in Information Technology | D9: 3 | E9: 1 | F9: 1 if ≈3
A10: ITE-IST (Integrated Systems Technology) | E10: 0 | F10: 1 if ≈3
A11: ITE-PFT (Platform Technologies) | B11: CIS 250 | C11: Operating Systems | D11: 3 | E11: =IF(D11 >=2, 1, D11/2) -> 1 | F11: 1 if ≈2
A12: ITE-SWF (Software Fundamentals) | B12: CIS 195, 285, 295 | C12: Intro to Programming, Data Structures and Algorithms, Object-Oriented Programming | D12: 9 | E12: =IF(D12 >=5, 1, D12/5) -> 1 | F12: 1 if ≈5
A13: ITE-WMS (Web and Mobile Systems) | B13: CIS 200 | C13: Internet Programming Languages | D13: 3 | E13: =IF(D13 >=3, 1, D13/3) -> 1 | F13: 1 if ≈3
C16: (Essential) Scaled Score: | D16: =SUM(E4:E13)/10*2 -> 1.5 | F16: (2 maximum)
A17: Supplemental IT Domains
C18: Total Hours: | D18: 7 | F18: Required Hrs/24
A19: Additional Notes: | B19: Essential IT Domains: Software Fundamentals (3), Systems Paradigms (3), Platform Technologies (1)
C21: (Supplemental) Scaled Score: | D21: =IF(D18/24 >= 1, 1, D18/24) -> 0.2916666667
A22: Related IT Essential Mathematics
A23: ITM-DSC (Discrete Structures) | B23: MAT 215 | C23: Discrete Math | D23: 3
A25: Related IT Supplemental Mathematics
A26: ITM-SUP (Stats, Lin Alg, Calculus, etc) | B26: MAT 130 | C26: Calculus I | D26: 3
B27: MAT 131 | C27: Caclulus II | D27: 4
B28: MAT 313 | C28: Probability and Statistics | D28: 4
C29: (Math) Scaled Score: | D29: =IF(SUM(D23,D26,D27,D28) > 6, 0.5, 0.5 * SUM(D23,D26,D27,D28)/7) + IF(SUM(D23,D24) > 2, 0.5, 0.5*D23/3) -> 1 | F29: 1 if >= 7 Sem Cr Hrs
A30: Capstone
A31: Capstone Project (Senior Year) | B31: CIS 420 | C31: Capstone Project | D31: 3
C33: (Capstone) Scaled Score: | D33: =IF(D31 >= 3, 1, D31/3) -> 1 | F33: 1 if ≥3
C35: Final Compliance Factor: | D35: =ROUND(SUM(D16,D21,D29,D33),2) -> 3.79

Sheet Caldwell
A1: Caldwell University
A2: Abbreviation/Category | B2: Desig | C2: Title | D2: Cred Hrs | E2: Compl Fact | F2: How Derived
A3: Essential IT Domains
A4: ITE-CSP (Cybersecurity) | B4: CS 327, 348 | C4: Internet and Enterprise Security, Data Security and Disaster Recovery | D4: 6 | E4: =IF(D4 >= 6, 1, D4/6) -> 1 | F4: .5 if ≈3; 1 if ≈6
A5: ITE-IMA (Information Management) | B5: CS 260 | C5: Data Management Systems | D5: 3 | E5: 0.5 | F5: .5 if ≈3; 1 if ≈6
A6: ITE-NET (Networking) | B6: CS 320 | C6: Networking and Communications | D6: 3 | E6: 0.5 | F6: .5 if ≈3; 1 if ≈6
A7: ITE-SPA (System Paradigms) | B7: CS 315 | C7: Elements of Systems Analysis | D7: 4 | E7: 0.6666666667 | F7: .5 if ≈3; 1 if ≈6
A8: ITE-UXD (User Experience) | E8: =IF(D8 >=3, 1, D8/3) -> 0 | F8: 1 if ≈3
A9: ITE-GPP (Global Professional Practice) | E9: 0 | F9: 1 if ≈3
A10: ITE-IST (Integrated Systems Technology) | B10: CS 240 | C10: Windows Programming | D10: 3 | E10: 1 | F10: 1 if ≈3
A11: ITE-PFT (Platform Technologies) | B11: CS 225 | C11: Operating Systems | D11: 3 | E11: =IF(D11 >=2, 1, D11/2) -> 1 | F11: 1 if ≈2
A12: ITE-SWF (Software Fundamentals) | B12: CS 195, 196 | C12: Computer Programming I & II | D12: 6 | E12: =IF(D12 >=5, 1, D12/5) -> 1 | F12: 1 if ≈5
A13: ITE-WMS (Web and Mobile Systems) | B13: CS 230, 355 | C13: Emergin Technologies - Web Page Design, Web Applications using ASP.NET | D13: 6 | E13: =IF(D13 >=3, 1, D13/3) -> 1 | F13: 1 if ≈3
C16: (Essential) Scaled Score: | D16: =SUM(E4:E13)/10*2 -> 1.333333333 | F16: (2 maximum)
A17: Supplemental IT Domains
C18: Total Hours: | D18: 14 | F18: Required Hrs/24
A19: Additional Notes: | B19: 9 credits that can be computer science or business courses (0-9), Essential IT Domains: Platform Technologies (1), Software Fundamentals (1), Web and Mobile Systems (3)
C21: (Supplemental) Scaled Score: | D21: =IF(D18/24 >= 1, 1, D18/24) -> 0.5833333333
A22: Related IT Essential Mathematics
A23: ITM-DSC (Discrete Structures)
A25: Related IT Supplemental Mathematics
A26: ITM-SUP (Stats, Lin Alg, Calculus, etc) | B26: BU 305 | C26: Introduction to Statistics | D26: 3
C29: (Math) Scaled Score: | D29: =IF(SUM(D23,D26,D27,D28) > 6, 0.5, 0.5 * SUM(D23,D26,D27,D28)/7) + IF(SUM(D23,D24) > 2, 0.5, 0.5*D23/3) -> 0.2142857143 | F29: 1 if >= 7 Sem Cr Hrs
A30: Capstone
A31: Capstone Project (Senior Year)
C33: (Capstone) Scaled Score: | D33: =IF(D31 >= 3, 1, D31/3) -> 0 | F33: 1 if ≥3
C35: Final Compliance Factor: | D35: =ROUND(SUM(D16,D21,D29,D33),2) -> 2.13 | E35: 1.76 | F35: 2.13

Sheet CSUCI
A1: California State University - Channel Islands
A2: Abbreviation/Category | B2: Desig | C2: Title | D2: Cred Hrs | E2: Compl Fact | F2: How Derived
A3: Essential IT Domains
A4: ITE-CSP (Cybersecurity) | B4: IT424+L | C4: Computer System Security | D4: 3 | E4: =IF(D4 >= 6, 1, D4/6) -> 0.5 | F4: .5 if ≈3; 1 if ≈6
A5: ITE-IMA (Information Management) | B5: IT420+L | C5: Database Theory and Design | D5: 3 | E5: 0.5 | F5: .5 if ≈3; 1 if ≈6
A6: ITE-NET (Networking) | B6: IT429+L | C6: Computer Networks | D6: 3 | E6: 0.5 | F6: .5 if ≈3; 1 if ≈6
A7: ITE-SPA (System Paradigms) | B7: MIS 310 | C7: Management Information Systems | D7: 3 | E7: 0.5 | F7: .5 if ≈3; 1 if ≈6
A8: ITE-UXD (User Experience) | E8: =IF(D8 >=3, 1, D8/3) -> 0 | F8: 1 if ≈3
A9: ITE-GPP (Global Professional Practice) | B9: MGT 307 | C9: Management of Organizations | D9: 3 | E9: 1 | F9: 1 if ≈3
A10: ITE-IST (Integrated Systems Technology) | B10: IT221+L, 421+L | C10: Unix System Programming I & II | D10: 6 | E10: 1 | F10: 1 if ≈3
A11: ITE-PFT (Platform Technologies) | B11: COMP 162+L | C11: Computer Architecture and Assembly Language | D11: 3 | E11: =IF(D11 >=2, 1, D11/2) -> 1 | F11: 1 if ≈2
A12: ITE-SWF (Software Fundamentals) | B12: COMP 105, IT 151+L | C12: Introduction to Programming, Data Structures for IT | D12: 6 | E12: =IF(D12 >=5, 1, D12/5) -> 1 | F12: 1 if ≈5
A13: ITE-WMS (Web and Mobile Systems) | E13: =IF(D13 >=3, 1, D13/3) -> 0 | F13: 1 if ≈3
C16: (Essential) Scaled Score: | D16: =SUM(E4:E13)/10*2 -> 1.2 | F16: (2 maximum)
A17: Supplemental IT Domains
C18: Total Hours: | D18: 19 | F18: Required Hrs/24
A19: Additional Notes: | B19: Supplemental (5/14 * 18 = 6) + 9 technology electives + Essential IT Domains: Software Fundamentals (1), Integrated Systems Technology (3)
C21: (Supplemental) Scaled Score: | D21: =IF(D18/24 >= 1, 1, D18/24) -> 0.7916666667
A22: Related IT Essential Mathematics
A23: ITM-DSC (Discrete Structures) | B23: MATH 300 | C23: Discrete Math | D23: 3
A25: Related IT Supplemental Mathematics
A26: ITM-SUP (Stats, Lin Alg, Calculus, etc) | B26: MATH 201 | C26: Elementary Statistics | D26: 3
C29: (Math) Scaled Score: | D29: =IF(SUM(D23,D26,D27,D28) > 6, 0.5, 0.5 * SUM(D23,D26,D27,D28)/7) + IF(SUM(D23,D24) > 2, 0.5, 0.5*D23/3) -> 0.9285714286 | F29: 1 if >= 7 Sem Cr Hrs
A30: Capstone
A31: Capstone Project (Senior Year) | B31: IT491, 499 | C31: Capstone Project | D31: 3
C33: (Capstone) Scaled Score: | D33: =IF(D31 >= 3, 1, D31/3) -> 1 | F33: 1 if ≥3
C35: Final Compliance Factor: | D35: =ROUND(SUM(D16,D21,D29,D33),2) -> 3.92

Sheet CSUChico
A1: California State University - Chico
A2: Abbreviation/Category | B2: Desig | C2: Title | D2: Cred Hrs | E2: Compl Fact | F2: How Derived
A3: Essential IT Domains
A4: ITE-CSP (Cybersecurity) | B4: CINS 448 | C4: Computer Security | D4: 3 | E4: =IF(D4 >= 6, 1, D4/6) -> 0.5 | F4: .5 if ≈3; 1 if ≈6
A5: ITE-IMA (Information Management) | B5: CINS 370 | C5: Introduction to Databases | D5: 3 | E5: 0.5 | F5: .5 if ≈3; 1 if ≈6
A6: ITE-NET (Networking) | B6: CSCI 446 | C6: Introduction to Computer Networks and Network Management | D6: 3 | E6: 0.5 | F6: .5 if ≈3; 1 if ≈6
A7: ITE-SPA (System Paradigms) | B7: CINS 242 | C7: Information Systems Design | D7: 3 | E7: 0.5 | F7: .5 if ≈3; 1 if ≈6
A8: ITE-UXD (User Experience) | E8: =IF(D8 >=3, 1, D8/3) -> 0 | F8: 1 if ≈3
A9: ITE-GPP (Global Professional Practice) | B9: CSCI 301W | C9: Computer's Impact on Society | D9: 3 | E9: 1 | F9: 1 if ≈3
A10: ITE-IST (Integrated Systems Technology) | E10: 0 | F10: 1 if ≈3
A11: ITE-PFT (Platform Technologies) | B11: CINS 220 | C11: PCs and Peripherals | D11: 3 | E11: =IF(D11 >=2, 1, D11/2) -> 1 | F11: 1 if ≈2
A12: ITE-SWF (Software Fundamentals) | B12: CSCI 111, 211, 311 | C12: Programming and Algorithms I & II, Algorithms and Data Structures | D12: 12 | E12: =IF(D12 >=5, 1, D12/5) -> 1 | F12: 1 if ≈5
A13: ITE-WMS (Web and Mobile Systems) | B13: CINS 465 | C13: Web Programming Fundamentals | D13: 3 | E13: =IF(D13 >=3, 1, D13/3) -> 1 | F13: 1 if ≈3
C16: (Essential) Scaled Score: | D16: =SUM(E4:E13)/10*2 -> 1.2 | F16: (2 maximum)
A17: Supplemental IT Domains
C18: Total Hours: | D18: 16 | F18: Required Hrs/24
A19: Additional Notes: | B19: Supplemental (12), Essential IT domains: Software Fundamentals (3), Platform Technologies (1)
C21: (Supplemental) Scaled Score: | D21: =IF(D18/24 >= 1, 1, D18/24) -> 0.6666666667
A22: Related IT Essential Mathematics
A23: ITM-DSC (Discrete Structures) | B23: CSCI 217 | C23: Discrete Mathematics | D23: 3
A25: Related IT Supplemental Mathematics
A26: ITM-SUP (Stats, Lin Alg, Calculus, etc) | B26: MATH 105 | C26: Statistics | D26: 3
B27: MATH 109 | C27: Survey of Calculus | D27: 4
C29: (Math) Scaled Score: | D29: =IF(SUM(D23,D26,D27,D28) > 6, 0.5, 0.5 * SUM(D23,D26,D27,D28)/7) + IF(SUM(D23,D24) > 2, 0.5, 0.5*D23/3) -> 1 | F29: 1 if >= 7 Sem Cr Hrs
A30: Capstone
A31: Capstone Project (Senior Year) | B31: CINS 490 | C31: Computer Information Systems Capstone (individual) | D31: 1.5
C33: (Capstone) Scaled Score: | D33: =IF(D31 >= 3, 1, D31/3) -> 0.5 | F33: 1 if ≥3
C35: Final Compliance Factor: | D35: =ROUND(SUM(D16,D21,D29,D33),2) -> 3.37

Sheet CSUNorthridge
A1: California State University - Northridge (ABET)
A2: Abbreviation/Category | B2: Desig | C2: Title | D2: Cred Hrs | E2: Compl Fact | F2: How Derived
A3: Essential IT Domains
A4: ITE-CSP (Cybersecurity) | B4: CIT 425 | C4: Information and Systems Security and Lab | D4: 2 | E4: =IF(D4 >= 6, 1, D4/6) -> 0.3333333333 | F4: .5 if ≈3; 1 if ≈6
A5: ITE-IMA (Information Management) | B5: IS 312, 441 | C5: Information Systems for Business Managers, Database Management Systems | D5: 6 | E5: 1 | F5: .5 if ≈3; 1 if ≈6
A6: ITE-NET (Networking) | B6: IS 435 | C6: Business Data Communications and Networking | D6: 3 | E6: 0.5 | F6: .5 if ≈3; 1 if ≈6
A7: ITE-SPA (System Paradigms) | B7: CIT 360, IS 431 | C7: System Management and Lab, Systems Analysis and Design | D7: 5 | E7: 0.8333333333 | F7: .5 if ≈3; 1 if ≈6
A8: ITE-UXD (User Experience) | B8: COMP 485 | C8: Human-Computer Interaction | D8: 3 | E8: =IF(D8 >=3, 1, D8/3) -> 1 | F8: 1 if ≈3
A9: ITE-GPP (Global Professional Practice) | B9: IS 451 | C9: Systems Development Project | D9: 3 | E9: 1 | F9: 1 if ≈3
A10: ITE-IST (Integrated Systems Technology) | B10: CIT 270 | C10: Integrative Programming | D10: 3 | E10: 1 | F10: 1 if ≈3
A11: ITE-PFT (Platform Technologies) | B11: COMP 122 | C11: Computer Architecture and Assembly Language | D11: 1 | E11: =IF(D11 >=2, 1, D11/2) -> 0.5 | F11: 1 if ≈2
A12: ITE-SWF (Software Fundamentals) | B12: COMP 110, 182 | C12: Intro to Algorithms and Programming and Lab, Data Structures and Program Design | D12: 6 | E12: =IF(D12 >=5, 1, D12/5) -> 1 | F12: 1 if ≈5
A13: ITE-WMS (Web and Mobile Systems) | B13: CIT 160, 210, 384 | C13: Internet Technologies, Deployment and Management of Operating Systems, Web Develoopment and Hosting and Lab | D13: 7 | E13: =IF(D13 >=3, 1, D13/3) -> 1 | F13: 1 if ≈3
C16: (Essential) Scaled Score: | D16: =SUM(E4:E13)/10*2 -> 1.633333333 | F16: (2 maximum)
A17: Supplemental IT Domains
C18: Total Hours: | D18: 5 | F18: Required Hrs/24
A19: Additional Notes: | B19: Domain emphasis package 15-18 credits, but could be from any domain, not just IT. Essential IT domains: Software Fundamentals (1), Web and Mobile Systems (4)
C21: (Supplemental) Scaled Score: | D21: =IF(D18/24 >= 1, 1, D18/24) -> 0.2083333333
A22: Related IT Essential Mathematics
A23: ITM-DSC (Discrete Structures)
A25: Related IT Supplemental Mathematics
A26: ITM-SUP (Stats, Lin Alg, Calculus, etc) | B26: MATH 150A | C26: Calculus I | D26: 3
B27: MATH 140 | C27: Introductory Statistics | D27: 4
C29: (Math) Scaled Score: | D29: =IF(SUM(D23,D26,D27,D28) > 6, 0.5, 0.5 * SUM(D23,D26,D27,D28)/7) + IF(SUM(D23,D24) > 2, 0.5, 0.5*D23/3) -> 0.5 | F29: 1 if >= 7 Sem Cr Hrs
A30: Capstone
A31: Capstone Project (Senior Year) | B31: CIT 480, 481 | C31: System Design and Implementation I & II | D31: 6
C33: (Capstone) Scaled Score: | D33: =IF(D31 >= 3, 1, D31/3) -> 1 | F33: 1 if ≥3
C35: Final Compliance Factor: | D35: =ROUND(SUM(D16,D21,D29,D33),2) -> 3.34 | E35: 3.34 | F35: 4.13

Sheet CSUSB
A1: California State University - San Bernandino
A2: Abbreviation/Category | B2: Desig | C2: Title | D2: Qtr Hrs | E2: Cred Hrs | F2: Compl Fact | G2: How Derived
A3: Essential IT Domains
A4: ITE-CSP (Cybersecurity) | B4: IST 215 | C4: Cyber Security | D4: 4 | E4: =D4*(2/3) -> 2.666666667 | F4: =IF(E4 >= 6, 1, E4/6) -> 0.4444444444 | G4: .5 if ≈3; 1 if ≈6
A5: ITE-IMA (Information Management) | B5: IST 274, 474 | C5: Data Base Management and Policies, Advanced Data Base Management and Information Assurance | D5: 8 | E5: 5.333333333 | F5: 0.8888888889 | G5: .5 if ≈3; 1 if ≈6
A6: ITE-NET (Networking) | B6: IST 215, 475 | C6: Information Networking and Security, Advanced Information Networking and Security | D6: 8 | E6: 5.333333333 | F6: 0.8888888889 | G6: .5 if ≈3; 1 if ≈6
A7: ITE-SPA (System Paradigms) | B7: IST 101, 276, 309 | C7: Introduction to Information Technology, Systems Analysis and Design, Information Systems and Technology | D7: 12 | E7: 8 | F7: 1 | G7: .5 if ≈3; 1 if ≈6
A8: ITE-UXD (User Experience) | E8: 0 | F8: =IF(E8 >=3, 1, E8/3) -> 0 | G8: 1 if ≈3
A9: ITE-GPP (Global Professional Practice) | B9: IST 490, SCM 515 | C9: Information Systems Planning and Policy, Project Management | D9: 8 | E9: 5.333333333 | F9: 1 | G9: 1 if ≈3
A10: ITE-IST (Integrated Systems Technology) | E10: 0 | F10: 0 | G10: 1 if ≈3
A11: ITE-PFT (Platform Technologies) | B11: IST 372 | C11: Information Technology | D11: 4 | E11: 2.666666667 | F11: =IF(E11 >=2, 1, E11/2) -> 1 | G11: 1 if ≈2
A12: ITE-SWF (Software Fundamentals) | B12: IST 282 | C12: Business Systems I | D12: 4 | E12: 2.666666667 | F12: =IF(E12 >=5, 1, E12/5) -> 0.5333333333 | G12: 1 if ≈5
A13: ITE-WMS (Web and Mobile Systems) | E13: 0 | F13: =IF(E13 >=3, 1, E13/3) -> 0 | G13: 1 if ≈3
C16: (Essential) Scaled Score: | E16: =SUM(F4:F13)/10*2 -> 1.151111111 | G16: (2 maximum)
A17: Supplemental IT Domains
C18: Total Hours: | D18: 28 | E18: =D18*(2/3) + 2 + 2 -> 22.66666667 | G18: Required Hrs/24
A19: Additional Notes: | B19: IT Option Requirements (0-28 qtr), Essential IT Domains: System Paradigms (2 sem), Global Professional Practice (2 sem)
C21: (Supplemental) Scaled Score: | E21: =IF(E18/24 >= 1, 1, E18/24) -> 0.9444444444
A22: Related IT Essential Mathematics
A23: ITM-DSC (Discrete Structures)
A25: Related IT Supplemental Mathematics
A26: ITM-SUP (Stats, Lin Alg, Calculus, etc) | B26: ADMN 210 | C26: Applied Business Statistics | D26: 4 | E26: =D26*(2/3) -> 2.666666667
B27: MATH 192 | C27: Methods of Calculus | D27: 4 | E27: 2.666666667
C29: (Math) Scaled Score: | E29: =IF(SUM(D23,D26,D27,D28) > 6, 0.5, 0.5 * SUM(D23,D26,D27,D28)/7) + IF(SUM(D23,D24) > 2, 0.5, 0.5*D23/3) -> 0.5 | G29: 1 if >= 7 Sem Cr Hrs
A30: Capstone
A31: Capstone Project (Senior Year)
C33: (Capstone) Scaled Score: | E33: =IF(E31 >= 3, 1, E31/3) -> 0 | G33: 1 if ≥3
C35: Final Compliance Factor: | E35: =ROUND(SUM(E16,E21,E29,E33),2) -> 2.6 | F35: 1.82 | G35: 2.6

Sheet Cal Uni of Penn
A1: California University of Pennsylvania
A2: Abbreviation/Category | B2: Desig | C2: Title | D2: Cred Hrs | E2: Compl Fact | F2: How Derived
A3: Essential IT Domains
A4: ITE-CSP (Cybersecurity) | E4: =IF(D4 >= 6, 1, D4/6) -> 0 | F4: .5 if ≈3; 1 if ≈6
A5: ITE-IMA (Information Management) | B5: CIS 321 | C5: Database Management Systems and Design, Database Application Development | D5: 6 | E5: 1 | F5: .5 if ≈3; 1 if ≈6
A6: ITE-NET (Networking) | B6: CIS 341 | C6: CISCO CCNA I | D6: 4 | E6: 0.6666666667 | F6: .5 if ≈3; 1 if ≈6
A7: ITE-SPA (System Paradigms) | B7: CIS 110, 299, 490 | C7: Introduction to Information Systems, System Analysis I & II | D7: 9 | E7: 1 | F7: .5 if ≈3; 1 if ≈6
A8: ITE-UXD (User Experience) | E8: =IF(D8 >=3, 1, D8/3) -> 0 | F8: 1 if ≈3
A9: ITE-GPP (Global Professional Practice) | B9: CIS 354, 352 | C9: Systems Project Management, Global, Economic and Social Ethical Issues in Computing | D9: 6 | E9: 1 | F9: 1 if ≈3
A10: ITE-IST (Integrated Systems Technology) | E10: 0 | F10: 1 if ≈3
A11: ITE-PFT (Platform Technologies) | E11: =IF(D11 >=2, 1, D11/2) -> 0 | F11: 1 if ≈2
A12: ITE-SWF (Software Fundamentals) | B12: CIS 120, 220, 302 | C12: Application Programming I & II | D12: 6 | E12: =IF(D12 >=5, 1, D12/5) -> 1 | F12: 1 if ≈5
A13: ITE-WMS (Web and Mobile Systems) | B13: CSC 330 | C13: Web Programming I | D13: 3 | E13: =IF(D13 >=3, 1, D13/3) -> 1 | F13: 1 if ≈3
C16: (Essential) Scaled Score: | D16: =SUM(E4:E13)/10*2 -> 1.133333333 | F16: (2 maximum)
A17: Supplemental IT Domains
C18: Total Hours: | D18: 21 | F18: Required Hrs/24
A19: Additional Notes: | B19: Supplemental (12), Essential IT Domains: Software Fundamentals (3), Global Professional Practice (3), System Paradigms (3)
C21: (Supplemental) Scaled Score: | D21: =IF(D18/24 >= 1, 1, D18/24) -> 0.875
A22: Related IT Essential Mathematics
A23: ITM-DSC (Discrete Structures) | B23: MAT 195 | C23: Discrete Structures | D23: 3
A25: Related IT Supplemental Mathematics
A26: ITM-SUP (Stats, Lin Alg, Calculus, etc) | B26: MAT 281 | C26: Calculus I | D26: 3
B27: MAT 215 or 225 | C27: Statistics | D27: 3
C29: (Math) Scaled Score: | D29: =IF(SUM(D23,D26,D27,D28) > 6, 0.5, 0.5 * SUM(D23,D26,D27,D28)/7) + IF(SUM(D23,D24) > 2, 0.5, 0.5*D23/3) -> 1 | F29: 1 if >= 7 Sem Cr Hrs
A30: Capstone
A31: Capstone Project (Senior Year) | B31: CIS 492 | C31: Systems Development and Implementation (1/2: individual projects) | D31: 1.5
C33: (Capstone) Scaled Score: | D33: =IF(D31 >= 3, 1, D31/3) -> 0.5 | F33: 1 if ≥3
C35: Final Compliance Factor: | D35: =ROUND(SUM(D16,D21,D29,D33),2) -> 3.51

Sheet Cameron
A1: Cameron University
A2: Abbreviation/Category | B2: Desig | C2: Title | D2: Cred Hrs | E2: Compl Fact | F2: How Derived
A3: Essential IT Domains
A4: ITE-CSP (Cybersecurity) | B4: IAS 2333, 3063, 3263, 4063 | C4: Computer Forensics, Information Assurance Networking Fund, Security Architecture & Design, Current Topics: Information Assurance & Networking | D4: 12 | E4: =IF(D4 >= 6, 1, D4/6) -> 1 | F4: .5 if ≈3; 1 if ≈6
A5: ITE-IMA (Information Management) | B5: CIS 3083 | C5: Database Design & Management | D5: 3 | E5: 0.5 | F5: .5 if ≈3; 1 if ≈6
A6: ITE-NET (Networking) | B6: IT 1063,, 2064 | C6: Introduction to Networking, Internetworking Technologies | D6: 7 | E6: 1 | F6: .5 if ≈3; 1 if ≈6
A7: ITE-SPA (System Paradigms) | B7: CIS 1013, 2033 | C7: Intro to Computer Information Systems, Fundamentals of System Analysis & Design | D7: 6 | E7: 1 | F7: .5 if ≈3; 1 if ≈6
A8: ITE-UXD (User Experience) | B8: IT 3603 | C8: Human Computer Interface Development | D8: 3 | E8: =IF(D8 >=3, 1, D8/3) -> 1 | F8: 1 if ≈3
A9: ITE-GPP (Global Professional Practice) | B9: IAS 2233, 4342 | C9: Intro: Info Assurance/Security, Legal & Ethical Issues: IT Pro | D9: 5 | E9: 1 | F9: 1 if ≈3
A10: ITE-IST (Integrated Systems Technology) | E10: 0 | F10: 1 if ≈3
A11: ITE-PFT (Platform Technologies) | E11: =IF(D11 >=2, 1, D11/2) -> 0 | F11: 1 if ≈2
A12: ITE-SWF (Software Fundamentals) | B12: IT 1213, 1414, 2414 | C12: Programming Logic, Programming I & II | D12: 11 | E12: =IF(D12 >=5, 1, D12/5) -> 1 | F12: 1 if ≈5
A13: ITE-WMS (Web and Mobile Systems) | B13: IAS 3233 | C13: E-Commerce and Web Security | D13: 3 | E13: =IF(D13 >=3, 1, D13/3) -> 1 | F13: 1 if ≈3
C16: (Essential) Scaled Score: | D16: =SUM(E4:E13)/10*2 -> 1.5 | F16: (2 maximum)
A17: Supplemental IT Domains
C18: Total Hours: | D18: 13 | F18: Required Hrs/24
A19: Additional Notes: | B19: Guided Electives (1/6 * 6 = 1) + Essential IT domains: Software Fundamentals (3), Global Professional Practice (2), Networking (1), Cybersecurity (6)
C21: (Supplemental) Scaled Score: | D21: =IF(D18/24 >= 1, 1, D18/24) -> 0.5416666667
A22: Related IT Essential Mathematics
A23: ITM-DSC (Discrete Structures)
A25: Related IT Supplemental Mathematics
A26: ITM-SUP (Stats, Lin Alg, Calculus, etc) | B26: STAT 2013 | C26: Intro Probability & Statistics I | D26: 3
B27: MATH 2215 | D27: 3
C29: (Math) Scaled Score: | D29: =IF(SUM(D23,D26,D27,D28) > 6, 0.5, 0.5 * SUM(D23,D26,D27,D28)/7) + IF(SUM(D23,D24) > 2, 0.5, 0.5*D23/3) -> 0.4285714286 | F29: 1 if >= 7 Sem Cr Hrs
A30: Capstone
A31: Capstone Project (Senior Year) | B31: IT 4444 | C31: IT Capstone | D31: 4
C33: (Capstone) Scaled Score: | D33: =IF(D31 >= 3, 1, D31/3) -> 1 | F33: 1 if ≥3
C35: Final Compliance Factor: | D35: =ROUND(SUM(D16,D21,D29,D33),2) -> 3.47

Sheet Campbell
A1: Campbell University
A2: Abbreviation/Category | B2: Desig | C2: Title | D2: Cred Hrs | E2: Compl Fact | F2: How Derived
A3: Essential IT Domains
A4: ITE-CSP (Cybersecurity) | B4: ITS 300 | C4: Information Security and Countermeasures | D4: 3 | E4: =IF(D4 >= 6, 1, D4/6) -> 0.5 | F4: .5 if ≈3; 1 if ≈6
A5: ITE-IMA (Information Management) | B5: ITS 345 | C5: Database Management | D5: 3 | E5: 0.5 | F5: .5 if ≈3; 1 if ≈6
A6: ITE-NET (Networking) | B6: ITS 410 | C6: Networking and Telecommunications | D6: 3 | E6: 0.5 | F6: .5 if ≈3; 1 if ≈6
A7: ITE-SPA (System Paradigms) | B7: ITS 150, 351 | C7: Fundamentals of Information Technology, Systems Analysis Design and Development | D7: 6 | E7: 1 | F7: .5 if ≈3; 1 if ≈6
A8: ITE-UXD (User Experience) | E8: =IF(D8 >=3, 1, D8/3) -> 0 | F8: 1 if ≈3
A9: ITE-GPP (Global Professional Practice) | E9: 0 | F9: 1 if ≈3
A10: ITE-IST (Integrated Systems Technology) | E10: 0 | F10: 1 if ≈3
A11: ITE-PFT (Platform Technologies) | E11: =IF(D11 >=2, 1, D11/2) -> 0 | F11: 1 if ≈2
A12: ITE-SWF (Software Fundamentals) | B12: ITS 250, 275 | C12: Programming Language I &II | D12: 6 | E12: =IF(D12 >=5, 1, D12/5) -> 1 | F12: 1 if ≈5
A13: ITE-WMS (Web and Mobile Systems) | B13: ITS 200 | C13: Internet Applications | D13: 3 | E13: =IF(D13 >=3, 1, D13/3) -> 1 | F13: 1 if ≈3
C16: (Essential) Scaled Score: | D16: =SUM(E4:E13)/10*2 -> 0.9 | F16: (2 maximum)
A17: Supplemental IT Domains
C18: Total Hours: | D18: 10 | F18: Required Hrs/24
A19: Additional Notes: | B19: Supplemental (9), Essential IT Domains: Software Fundamentals (1)
C21: (Supplemental) Scaled Score: | D21: =IF(D18/24 >= 1, 1, D18/24) -> 0.4166666667
A22: Related IT Essential Mathematics
A23: ITM-DSC (Discrete Structures)
A25: Related IT Supplemental Mathematics
A26: ITM-SUP (Stats, Lin Alg, Calculus, etc) | B26: MATH 111 | C26: College Algebra or higher | D26: 3
B27: Other Math | D27: 3
C29: (Math) Scaled Score: | D29: =IF(SUM(D23,D26,D27,D28) > 6, 0.5, 0.5 * SUM(D23,D26,D27,D28)/7) + IF(SUM(D23,D24) > 2, 0.5, 0.5*D23/3) -> 0.4285714286 | F29: 1 if >= 7 Sem Cr Hrs
A30: Capstone
A31: Capstone Project (Senior Year)
C33: (Capstone) Scaled Score: | D33: =IF(D31 >= 3, 1, D31/3) -> 0 | F33: 1 if ≥3
C35: Final Compliance Factor: | D35: =ROUND(SUM(D16,D21,D29,D33),2) -> 1.75

Sheet Capella
A1: Capella University
A2: Abbreviation/Category | B2: Desig | C2: Title | D2: Qtr Hrs | E2: Cred Hrs | F2: Compl Fact | G2: How Derived
A3: Essential IT Domains
A4: ITE-CSP (Cybersecurity) | B4: IT3358 | C4: Information Security Concepts | D4: 3 | E4: =D4*(2/3) -> 2 | F4: =IF(E4 >= 6, 1, E4/6) -> 0.3333333333 | G4: .5 if ≈3; 1 if ≈6
A5: ITE-IMA (Information Management) | B5: IT2230 | C5: Intro to Database Systems | D5: 3 | E5: 2 | F5: 0.3333333333 | G5: .5 if ≈3; 1 if ≈6
A6: ITE-NET (Networking) | B6: IT2250,3355 | C6: Intro to Network Technology, Network Architecture | D6: 6 | E6: 4 | F6: 0.6666666667 | G6: .5 if ≈3; 1 if ≈6
A7: ITE-SPA (System Paradigms) | B7: IT3318 | C7: Systems Administration | D7: 3 | E7: 2 | F7: 0.3333333333 | G7: .5 if ≈3; 1 if ≈6
A8: ITE-UXD (User Experience) | B8: IT3301, 3213 | C8: User Experience and Interaction Design, Intro to Web Development | D8: 6 | E8: 4 | F8: =IF(E8 >=3, 1, E8/3) -> 1 | G8: 1 if ≈3
A9: ITE-GPP (Global Professional Practice) | B9: IT3006, 3165, 3225,PM3000 | C9: Communication Strategies for the IT Pro, Ethics for the IT Professional, Business Goals for the IT Pro, Principles of Project Management | D9: 12 | E9: 8 | F9: 1 | G9: 1 if ≈3
A10: ITE-IST (Integrated Systems Technology) | D10: 0 | E10: 0 | F10: 0 | G10: 1 if ≈3
A11: ITE-PFT (Platform Technologies) | B11: IT3315 | C11: Hardware and Operating Systems | D11: 3 | E11: 2 | F11: =IF(E11 >=2, 1, E11/2) -> 1 | G11: 1 if ≈2
A12: ITE-SWF (Software Fundamentals) | B12: IT2249, 3345, 3349 | C12: Intro to Programming with Java, Software Architecture, IntermediateJava Programming | D12: 9 | E12: 6 | F12: =IF(E12 >=5, 1, E12/5) -> 1 | G12: 1 if ≈5
A13: ITE-WMS (Web and Mobile Systems) | B13: IT3215 | C13: Intro to JavaScript | D13: 3 | E13: 2 | F13: =IF(E13 >=3, 1, E13/3) -> 0.6666666667 | G13: 1 if ≈3
C16: (Essential) Scaled Score: | E16: =SUM(F4:F13)/10*2 -> 1.266666667 | G16: (2 maximum)
A17: Supplemental IT Domains
C18: Total Hours: | D18: 30 | E18: =D18*(2/3) + 6 -> 26 | G18: Required Hrs/24
A19: Additional Notes: | B19: Supplemental (30 qtr), Essential IT domains: Software Fundamentals (1 sem), Global Professional Practice (5 sem)
C21: (Supplemental) Scaled Score: | E21: =IF(E18/24 >= 1, 1, E18/24) -> 1
A22: Related IT Essential Mathematics
A23: ITM-DSC (Discrete Structures) | B23: MAT 2051 | C23: Discrete Structures | D23: =6*0.75 -> 4.5 | E23: =D23*(2/3) -> 3
A25: Related IT Supplemental Mathematics
A26: ITM-SUP (Stats, Lin Alg, Calculus, etc) | B26: MAT 1050 | C26: College Algebra | D26: =6*0.75 -> 4.5 | E26: =D26*(2/3) -> 3
C29: (Math) Scaled Score: | E29: =IF(SUM(E23,E26,E27,E28) >= 7, 0.5, 0.5 * SUM(E23,E26,E27,E28)/7) + IF(SUM(E23,E24) >= 3, 0.5, 0.5*E23/3) -> 0.9285714286 | G29: 1 if >= 7 Sem Cr Hrs
A30: Capstone
A31: Capstone Project (Senior Year) | B31: IT 4990 | C31: IT Capstone | D31: =6*(2/3) -> 4 | E31: =D31*(2/3) -> 2.666666667
C33: (Capstone) Scaled Score: | E33: =IF(E31 >= 3, 1, E31/3) -> 0.8888888889 | G33: 1 if ≥3
C35: Final Compliance Factor: | E35: =ROUND(SUM(E16,E21,E29,E33),2) -> 4.08

Sheet Capitol
A1: Capitol Technology University
A2: Abbreviation/Category | B2: Desig | C2: Title | D2: Cred Hrs | E2: Compl Fact | F2: How Derived
A3: Essential IT Domains
A4: ITE-CSP (Cybersecurity) | B4: CS 300, Information Assurance | C4: Secure Coding, 27 credits of Information Assurance and Cyber Security | D4: 30 | E4: =IF(D4 >= 6, 1, D4/6) -> 1 | F4: .5 if ≈3; 1 if ≈6
A5: ITE-IMA (Information Management) | B5: CS 220 | C5: Database Management | D5: 3 | E5: 0.5 | F5: .5 if ≈3; 1 if ≈6
A6: ITE-NET (Networking) | B6: CS 250, CT 240 | C6: Intro to Network Programming Using C, Internetworking with Routers and Switches | D6: 6 | E6: 1 | F6: .5 if ≈3; 1 if ≈6
A7: ITE-SPA (System Paradigms) | E7: 0 | F7: .5 if ≈3; 1 if ≈6
A8: ITE-UXD (User Experience) | E8: =IF(D8 >=3, 1, D8/3) -> 0 | F8: 1 if ≈3
A9: ITE-GPP (Global Professional Practice) | B9: BUS 301 | C9: Project Managment | D9: 3 | E9: 1 | F9: 1 if ≈3
A10: ITE-IST (Integrated Systems Technology) | B10: CT 206 | C10: Scripting Languages | D10: 3 | E10: 1 | F10: 1 if ≈3
A11: ITE-PFT (Platform Technologies) | B11: CS 418, CT 152 | C11: Operating Systems, Intro to Unix | D11: 6 | E11: =IF(D11 >=2, 1, D11/2) -> 1 | F11: 1 if ≈2
A12: ITE-SWF (Software Fundamentals) | B12: CS 150, 200, 230 | C12: Intro to Programming Using C, Intro to Object Oriented Programming C++, Data Structures | D12: 9 | E12: =IF(D12 >=5, 1, D12/5) -> 1 | F12: 1 if ≈5
A13: ITE-WMS (Web and Mobile Systems) | E13: =IF(D13 >=3, 1, D13/3) -> 0 | F13: 1 if ≈3
C16: (Essential) Scaled Score: | D16: =SUM(E4:E13)/10*2 -> 1.3 | F16: (2 maximum)
A17: Supplemental IT Domains
C18: Total Hours: | D18: 30 | F18: Required Hrs/24
A19: Additional Notes: | B19: IT Essential Domains: Cybersecurity (24), Software Fundamentals (3), Platform Technologies (3)
C21: (Supplemental) Scaled Score: | D21: =IF(D18/24 >= 1, 1, D18/24) -> 1
A22: Related IT Essential Mathematics
A23: ITM-DSC (Discrete Structures) | B23: MA 124 | C23: Discrete Mathematics | D23: 3
A25: Related IT Supplemental Mathematics
A26: ITM-SUP (Stats, Lin Alg, Calculus, etc) | B26: MA 112 | C26: Intermediate Algebra | D26: 3
B27: MA 128 | C27: Intro to Statistics | D27: 3
C29: (Math) Scaled Score: | D29: =IF(SUM(D23,D26,D27,D28) > 6, 0.5, 0.5 * SUM(D23,D26,D27,D28)/7) + IF(SUM(D23,D24) > 2, 0.5, 0.5*D23/3) -> 1 | F29: 1 if >= 7 Sem Cr Hrs
A30: Capstone
A31: Capstone Project (Senior Year) | B31: IAE 457, 458 | C31: Senior Design Project I & II | D31: 6
C33: (Capstone) Scaled Score: | D33: =IF(D31 >= 3, 1, D31/3) -> 1 | F33: 1 if ≥3
C35: Final Compliance Factor: | D35: =ROUND(SUM(D16,D21,D29,D33),2) -> 4.3

Sheet Carroll
A1: Carroll University
A2: Abbreviation/Category | B2: Desig | C2: Title | D2: Cred Hrs | E2: Compl Fact | F2: How Derived
A3: Essential IT Domains
A4: ITE-CSP (Cybersecurity) | E4: =IF(D4 >= 6, 1, D4/6) -> 0 | F4: .5 if ≈3; 1 if ≈6
A5: ITE-IMA (Information Management) | E5: 0 | F5: .5 if ≈3; 1 if ≈6
A6: ITE-NET (Networking) | B6: CSC 303 | C6: Network Protocols | D6: 4 | E6: 0.6666666667 | F6: .5 if ≈3; 1 if ≈6
A7: ITE-SPA (System Paradigms) | B7: CSC220 | C7: Information Systems | D7: 4 | E7: 0.6666666667 | F7: .5 if ≈3; 1 if ≈6
A8: ITE-UXD (User Experience) | E8: =IF(D8 >=3, 1, D8/3) -> 0 | F8: 1 if ≈3
A9: ITE-GPP (Global Professional Practice) | B9: CSC 409, BUS302 | C9: IT Mgmt. in an E-Commerce World, Principles of Management | D9: 8 | E9: 1 | F9: 1 if ≈3
A10: ITE-IST (Integrated Systems Technology) | E10: 0 | F10: 1 if ≈3
A11: ITE-PFT (Platform Technologies) | B11: CSC 240, 307 | C11: Computer Organization and Architecure, Operating Systems and Web Master Fundamentals - Unix/linux Apache | D11: 8 | E11: =IF(D11 >=2, 1, D11/2) -> 1 | F11: 1 if ≈2
A12: ITE-SWF (Software Fundamentals) | B12: CSC110, CMP 113 | C12: Problem Solving Through Programming, Computational Thinking II | D12: 8 | E12: =IF(D12 >=5, 1, D12/5) -> 1 | F12: 1 if ≈5
A13: ITE-WMS (Web and Mobile Systems) | B13: CSC 319 | C13: World Wide Web Programming | D13: 4 | E13: =IF(D13 >=3, 1, D13/3) -> 1 | F13: 1 if ≈3
C16: (Essential) Scaled Score: | D16: =SUM(E4:E13)/10*2 -> 1.066666667 | F16: (2 maximum)
A17: Supplemental IT Domains
C18: Total Hours: | D18: 12 | F18: Required Hrs/24
A19: Additional Notes: | B19: Essential IT domains: Software Fundamentals (3), Web and Mobile Systems (1), Platform Technologies (3), Global and Professional Practice (5)
C21: (Supplemental) Scaled Score: | D21: =IF(D18/24 >= 1, 1, D18/24) -> 0.5
A22: Related IT Essential Mathematics
A23: ITM-DSC (Discrete Structures)
A25: Related IT Supplemental Mathematics
A26: ITM-SUP (Stats, Lin Alg, Calculus, etc) | B26: CMP 112 | C26: Computational Thinking | D26: 4
B27: MAT 140 | C27: Calculus | D27: 4
C29: (Math) Scaled Score: | D29: =IF(SUM(D23,D26,D27,D28) > 6, 0.5, 0.5 * SUM(D23,D26,D27,D28)/7) + IF(SUM(D23,D24) > 2, 0.5, 0.5*D23/3) -> 0.5 | F29: 1 if >= 7 Sem Cr Hrs
A30: Capstone
A31: Capstone Project (Senior Year)
C33: (Capstone) Scaled Score: | D33: =IF(D31 >= 3, 1, D31/3) -> 0 | F33: 1 if ≥3
C35: Final Compliance Factor: | D35: =ROUND(SUM(D16,D21,D29,D33),2) -> 2.07

Sheet Catholic
A1: The Catholic University of America
A2: Abbreviation/Category | B2: Desig | C2: Title | D2: Cred Hrs | E2: Compl Fact | F2: How Derived
A3: Essential IT Domains
A4: ITE-CSP (Cybersecurity) | E4: =IF(D4 >= 6, 1, D4/6) -> 0 | F4: .5 if ≈3; 1 if ≈6
A5: ITE-IMA (Information Management) | B5: MIS 431 | C5: Database Management Systems | D5: 3 | E5: 0.5 | F5: .5 if ≈3; 1 if ≈6
A6: ITE-NET (Networking) | B6: MIS 323 | C6: Data Communications | D6: 3 | E6: 0.5 | F6: .5 if ≈3; 1 if ≈6
A7: ITE-SPA (System Paradigms) | B7: MIS 210, 240, 327, 457 | C7: Fundamentals of Information Systems, Management Information Systems, Systems Analysis and Design, Emerging Environments in IT | D7: 12 | E7: 1 | F7: .5 if ≈3; 1 if ≈6
A8: ITE-UXD (User Experience) | E8: =IF(D8 >=3, 1, D8/3) -> 0 | F8: 1 if ≈3
A9: ITE-GPP (Global Professional Practice) | B9: MIS 325 | C9: Project Management | D9: 3 | E9: 1 | F9: 1 if ≈3
A10: ITE-IST (Integrated Systems Technology) | E10: 0 | F10: 1 if ≈3
A11: ITE-PFT (Platform Technologies) | B11: MIS 314 | C11: IT Hardware and Systems Software | D11: 3 | E11: =IF(D11 >=2, 1, D11/2) -> 1 | F11: 1 if ≈2
A12: ITE-SWF (Software Fundamentals) | B12: MIS 110 | C12: Intro to Programming | D12: 3 | E12: =IF(D12 >=5, 1, D12/5) -> 0.6 | F12: 1 if ≈5
A13: ITE-WMS (Web and Mobile Systems) | E13: =IF(D13 >=3, 1, D13/3) -> 0 | F13: 1 if ≈3
C16: (Essential) Scaled Score: | D16: =SUM(E4:E13)/10*2 -> 0.92 | F16: (2 maximum)
A17: Supplemental IT Domains
C18: Total Hours: | D18: 0 | F18: Required Hrs/24
A19: Additional Notes:
C21: (Supplemental) Scaled Score: | D21: =IF(D18/24 >= 1, 1, D18/24) -> 0
A22: Related IT Essential Mathematics
A23: ITM-DSC (Discrete Structures)
A25: Related IT Supplemental Mathematics
A26: ITM-SUP (Stats, Lin Alg, Calculus, etc) | B26: MID150 | C26: College Mathematics | D26: 3
C29: (Math) Scaled Score: | D29: =IF(SUM(D23,D26,D27,D28) > 6, 0.5, 0.5 * SUM(D23,D26,D27,D28)/7) + IF(SUM(D23,D24) > 2, 0.5, 0.5*D23/3) -> 0.2142857143 | F29: 1 if >= 7 Sem Cr Hrs
A30: Capstone
A31: Capstone Project (Senior Year) | B31: MID495 | C31: Senior Seminar | D31: 3
C33: (Capstone) Scaled Score: | D33: =IF(D31 >= 3, 1, D31/3) -> 1 | F33: 1 if ≥3
C35: Final Compliance Factor: | D35: =ROUND(SUM(D16,D21,D29,D33),2) -> 2.13

Sheet Central Conn St
A1: Central Connecticut State University
A2: Abbreviation/Category | B2: Desig | C2: Title | D2: Cred Hrs | E2: Compl Fact | F2: How Derived
A3: Essential IT Domains
A4: ITE-CSP (Cybersecurity) | B4: CYS 227, 467, 477, 492, 493, 494, CRM 414 | C4: Intro to Cybersecurity, Security System Management, Ethical Hacking and Penetration Testing, Computer Security, Secure Software Systems, Cryptographic Systems, Cybercrime | D4: 22 | E4: =IF(D4 >= 6, 1, D4/6) -> 1 | F4: .5 if ≈3; 1 if ≈6
A5: ITE-IMA (Information Management) | B5: CS 460 | C5: Database Concepts | D5: 3 | E5: 0.5 | F5: .5 if ≈3; 1 if ≈6
A6: ITE-NET (Networking) | B6: CET 249, 349, 459, 449, 479 | C6: Intro to Networking Technology, Network Routing, Network Security Technologies, Advanced Networking, Network Administration | D6: 15 | E6: 1 | F6: .5 if ≈3; 1 if ≈6
A7: ITE-SPA (System Paradigms) | B7: CET 339 | C7: Computer System Administration | D7: 3 | E7: 0.5 | F7: .5 if ≈3; 1 if ≈6
A8: ITE-UXD (User Experience) | E8: =IF(D8 >=3, 1, D8/3) -> 0 | F8: 1 if ≈3
A9: ITE-GPP (Global Professional Practice) | E9: 0 | F9: 1 if ≈3
A10: ITE-IST (Integrated Systems Technology) | E10: 0 | F10: 1 if ≈3
A11: ITE-PFT (Platform Technologies) | B11: CET 229, CS 481 | C11: Computer Hardware Architecture, Operating Systems Design | D11: 6 | E11: =IF(D11 >=2, 1, D11/2) -> 1 | F11: 1 if ≈2
A12: ITE-SWF (Software Fundamentals) | B12: CS 151, 152, 153, 253 | C12: Computer Science I, II, III, Data and File Structures | D12: 12 | E12: =IF(D12 >=5, 1, D12/5) -> 1 | F12: 1 if ≈5
A13: ITE-WMS (Web and Mobile Systems) | E13: =IF(D13 >=3, 1, D13/3) -> 0 | F13: 1 if ≈3
C16: (Essential) Scaled Score: | D16: =SUM(E4:E13)/10*2 -> 1 | F16: (2 maximum)
A17: Supplemental IT Domains
C18: Total Hours: | D18: 24 | F18: Required Hrs/24
A19: Additional Notes: | B19: IT Concentration in cybersecurity topic (25-26)
C21: (Supplemental) Scaled Score: | D21: =IF(D18/24 >= 1, 1, D18/24) -> 1
A22: Related IT Essential Mathematics
A23: ITM-DSC (Discrete Structures) | B23: MATH 217 | C23: Discrete Mathematics for Computer Science | D23: 4
A25: Related IT Supplemental Mathematics
A26: ITM-SUP (Stats, Lin Alg, Calculus, etc) | B26: MATH 152 | C26: Calculus I | D26: 4
C29: (Math) Scaled Score: | D29: =IF(SUM(D23,D26,D27,D28) > 6, 0.5, 0.5 * SUM(D23,D26,D27,D28)/7) + IF(SUM(D23,D24) > 2, 0.5, 0.5*D23/3) -> 1 | F29: 1 if >= 7 Sem Cr Hrs
A30: Capstone
A31: Capstone Project (Senior Year)
C33: (Capstone) Scaled Score: | D33: =IF(D31 >= 3, 1, D31/3) -> 0 | F33: 1 if ≥3
C35: Final Compliance Factor: | D35: =ROUND(SUM(D16,D21,D29,D33),2) -> 3

Sheet Central Michigan
A1: Central Michigan University
A2: Abbreviation/Category | B2: Desig | C2: Title | D2: Cred Hrs | E2: Compl Fact | F2: How Derived
A3: Essential IT Domains
A4: ITE-CSP (Cybersecurity) | E4: =IF(D4 >= 6, 1, D4/6) -> 0 | F4: .5 if ≈3; 1 if ≈6
A5: ITE-IMA (Information Management) | B5: ITC 341 | C5: Intro to Databases and Applications | D5: 3 | E5: 0.5 | F5: .5 if ≈3; 1 if ≈6
A6: ITE-NET (Networking) | B6: ITC 265 | C6: Basics of Data Communications and Computer Networks | D6: 3 | E6: 0.5 | F6: .5 if ≈3; 1 if ≈6
A7: ITE-SPA (System Paradigms) | E7: 0 | F7: .5 if ≈3; 1 if ≈6
A8: ITE-UXD (User Experience) | E8: =IF(D8 >=3, 1, D8/3) -> 0 | F8: 1 if ≈3
A9: ITE-GPP (Global Professional Practice) | B9: COM 264 or 361 | C9: Communication course | D9: 3 | E9: 1 | F9: 1 if ≈3
A10: ITE-IST (Integrated Systems Technology) | B10: ITC 191 | C10: Computer Software Concepts, Installation, Configuration and Support | D10: 3 | E10: 1 | F10: 1 if ≈3
A11: ITE-PFT (Platform Technologies) | B11: ITC 190 | C11: Computer Hardware Concepts, Installation, Configuration, and Support | D11: 3 | E11: =IF(D11 >=2, 1, D11/2) -> 1 | F11: 1 if ≈2
A12: ITE-SWF (Software Fundamentals) | B12: CPS | C12: 3 Programming courses (2 options) | D12: 9 | E12: =IF(D12 >=5, 1, D12/5) -> 1 | F12: 1 if ≈5
A13: ITE-WMS (Web and Mobile Systems) | E13: =IF(D13 >=3, 1, D13/3) -> 0 | F13: 1 if ≈3
C16: (Essential) Scaled Score: | D16: =SUM(E4:E13)/10*2 -> 1 | F16: (2 maximum)
A17: Supplemental IT Domains
C18: Total Hours: | D18: 9 | F18: Required Hrs/24
A19: Additional Notes: | B19: Supplemental (6), Essential IT Domains: Software Fundamentals (3)
C21: (Supplemental) Scaled Score: | D21: =IF(D18/24 >= 1, 1, D18/24) -> 0.375
A22: Related IT Essential Mathematics
A23: ITM-DSC (Discrete Structures)
A25: Related IT Supplemental Mathematics
A26: ITM-SUP (Stats, Lin Alg, Calculus, etc) | B26: STA 282 OR 382 | C26: Statistics | D26: 3
B27: MTH 132 | C27: Calculus I or Discrete Math (3) | D27: 4
C29: (Math) Scaled Score: | D29: =IF(SUM(D23,D26,D27,D28) > 6, 0.5, 0.5 * SUM(D23,D26,D27,D28)/7) + IF(SUM(D23,D24) > 2, 0.5, 0.5*D23/3) -> 0.5 | F29: 1 if >= 7 Sem Cr Hrs
A30: Capstone
A31: Capstone Project (Senior Year)
C33: (Capstone) Scaled Score: | D33: =IF(D31 >= 3, 1, D31/3) -> 0 | F33: 1 if ≥3
C35: Final Compliance Factor: | D35: =ROUND(SUM(D16,D21,D29,D33),2) -> 1.88

Sheet Central Wash
A1: Central Washington University
A2: Abbreviation/Category | B2: Desig | C2: Title | D2: Qtr Hrs | E2: Cred Hrs | F2: Compl Fact | G2: How Derived
A3: Essential IT Domains
A4: ITE-CSP (Cybersecurity) | B4: IT 238, 301, specialization | C4: Intro to Cyberwarfare, IT Security Privacy and Ethics, 20 credits of specialization | D4: 27 | E4: =D4*(2/3) -> 18 | F4: =IF(E4 >= 6, 1, E4/6) -> 1 | G4: .5 if ≈3; 1 if ≈6
A5: ITE-IMA (Information Management) | B5: IT 468 | C5: Projects in Database | D5: 4 | E5: 2.666666667 | F5: 0.4444444444 | G5: .5 if ≈3; 1 if ≈6
A6: ITE-NET (Networking) | B6: IT 351 | C6: Computer Networks | D6: 4 | E6: 2.666666667 | F6: 0.4444444444 | G6: .5 if ≈3; 1 if ≈6
A7: ITE-SPA (System Paradigms) | B7: IT 101 | C7: Computer Applications | D7: 3 | E7: 2 | F7: 0.3333333333 | G7: .5 if ≈3; 1 if ≈6
A8: ITE-UXD (User Experience) | E8: 0 | F8: 0 | G8: 1 if ≈3
A9: ITE-GPP (Global Professional Practice) | B9: ADMG 371, 372, 374, 385 | C9: Administrative Management, Leadership and Supervision, Project Management, Business Communication and Report Writing | D9: 18 | E9: 12 | F9: 1 | G9: 1 if ≈3
A10: ITE-IST (Integrated Systems Technology) | B10: IT 260 | C10: Integrated IT Applications | D10: 5 | E10: 3.333333333 | F10: 0.5555555556 | G10: 1 if ≈3
A11: ITE-PFT (Platform Technologies) | E11: 0 | F11: 0 | G11: 1 if ≈2
A12: ITE-SWF (Software Fundamentals) | E12: 0 | F12: 0 | G12: 1 if ≈5
A13: ITE-WMS (Web and Mobile Systems) | B13: IT 248 | C13: Web Fundamentals | D13: 4 | E13: 2.666666667 | F13: 0.4444444444 | G13: 1 if ≈3
C16: (Essential) Scaled Score: | D16: =SUM(F4:F13)/10*2 -> 0.8444444444 | G16: (2 maximum)
A17: Supplemental IT Domains
C18: Total Hours: | D18: 15 | G18: Required Hrs/24
A19: Additional Notes: | B19: Essential IT domains: Cybersecurity (12), Global Professional Practice (3)
C21: (Supplemental) Scaled Score: | D21: =IF(D18/24 >= 1, 1, D18/24) -> 0.625
A22: Related IT Essential Mathematics
A23: ITM-DSC (Discrete Structures)
A25: Related IT Supplemental Mathematics
A26: ITM-SUP (Stats, Lin Alg, Calculus, etc) | B26: ADMG 271 | C26: Business Math | D26: 4 | E26: =D26*(2/3) -> 2.666666667
C29: (Math) Scaled Score: | D29: =IF(SUM(D23,D26,D27,D28) > 6, 0.5, 0.5 * SUM(D23,D26,D27,D28)/7) + IF(SUM(D23,D24) > 2, 0.5, 0.5*D23/3) -> 0.2857142857 | E29: =IF(SUM(E23,E26,E27,E28) >= 7, 0.5, 0.5 * SUM(E23,E26,E27,E28)/7) + IF(SUM(E23,E24) >= 3, 0.5, 0.5*E23/3) -> 0.1904761905 | G29: 1 if >= 7 Sem Cr Hrs
A30: Capstone
A31: Capstone Project (Senior Year) | B31: IT 482 | C31: Cybersecurity Capstone | D31: 4 | E31: =D31*(2/3) -> 2.666666667
C33: (Capstone) Scaled Score: | D33: =IF(E31 >= 3, 1, E31/3) -> 0.8888888889 | G33: 1 if ≥3
C35: Final Compliance Factor: | D35: =ROUND(SUM(D16,D21,E29,D33),2) -> 2.55

Sheet Champlain
A1: Champlain College
A2: Abbreviation/Category | B2: Desig | C2: Title | D2: Cred Hrs | E2: Compl Fact | F2: How Derived
A3: Essential IT Domains
A4: ITE-CSP (Cybersecurity) | B4: SEC 250 | C4: Computer & Network Security, Enterprise and Network Security Controls | D4: 6 | E4: =IF(D4 >= 6, 1, D4/6) -> 1 | F4: .5 if ≈3; 1 if ≈6
A5: ITE-IMA (Information Management) | E5: 0 | F5: .5 if ≈3; 1 if ≈6
A6: ITE-NET (Networking) | B6: NET 150, 215, 330 | C6: Network Fundamentals, Network Protocols, Network Design | D6: 9 | E6: 1 | F6: .5 if ≈3; 1 if ≈6
A7: ITE-SPA (System Paradigms) | B7: SYS 255, 265 | C7: System Administration & Network Services I & II | D7: 6 | E7: 1 | F7: .5 if ≈3; 1 if ≈6
A8: ITE-UXD (User Experience) | E8: =IF(D8 >=3, 1, D8/3) -> 0 | F8: 1 if ≈3
A9: ITE-GPP (Global Professional Practice) | E9: 0 | F9: 1 if ≈3
A10: ITE-IST (Integrated Systems Technology) | B10: SYS 320 | C10: Scripting and Automation | D10: 3 | E10: 1 | F10: 1 if ≈3
A11: ITE-PFT (Platform Technologies) | B11: SYS 140 | C11: Systems Fundamentals | D11: 3 | E11: =IF(D11 >=2, 1, D11/2) -> 1 | F11: 1 if ≈2
A12: ITE-SWF (Software Fundamentals) | B12: CSI 160 | C12: Python Programming | D12: 3 | E12: =IF(D12 >=5, 1, D12/5) -> 0.6 | F12: 1 if ≈5
A13: ITE-WMS (Web and Mobile Systems) | B13: SEC 260 | C13: Web and Applications Security | D13: 3 | E13: =IF(D13 >=3, 1, D13/3) -> 1 | F13: 1 if ≈3
C16: (Essential) Scaled Score: | D16: =SUM(E4:E13)/10*2 -> 1.32 | F16: (2 maximum)
A17: Supplemental IT Domains
C18: Total Hours: | D18: 24 | F18: Required Hrs/24
A19: Additional Notes: | B19: CSI 100 Joy of Computing (3), Supplemental (18), Essential IT Domains: Networking (3)
C21: (Supplemental) Scaled Score: | D21: =IF(D18/24 >= 1, 1, D18/24) -> 1
A22: Related IT Essential Mathematics
A23: ITM-DSC (Discrete Structures)
A25: Related IT Supplemental Mathematics
A26: ITM-SUP (Stats, Lin Alg, Calculus, etc) | B26: MTH 180 | C26: Statistics | D26: 3
C29: (Math) Scaled Score: | D29: =IF(SUM(D23,D26,D27,D28) > 6, 0.5, 0.5 * SUM(D23,D26,D27,D28)/7) + IF(SUM(D23,D24) > 2, 0.5, 0.5*D23/3) -> 0.2142857143 | F29: 1 if >= 7 Sem Cr Hrs
A30: Capstone
A31: Capstone Project (Senior Year) | B31: CCC 410,411, 412 | C31: ITS Capstone Design, Reflection and Senior Project | D31: 3
C33: (Capstone) Scaled Score: | D33: =IF(D31 >= 3, 1, D31/3) -> 1 | F33: 1 if ≥3
C35: Final Compliance Factor: | D35: =ROUND(SUM(D16,D21,D29,D33),2) -> 3.53

Sheet CharlestonSouth
A1: Charleston Southern University
A2: Abbreviation/Category | B2: Desig | C2: Title | D2: Cred Hrs | E2: Compl Fact | F2: How Derived
A3: Essential IT Domains
A4: ITE-CSP (Cybersecurity) | B4: CSCI 405, 352, 433, 452 | C4: Intro to Cybersecurity, Cyber Defense, Network Security, Network Pen Test and Hack. | D4: 15 | E4: =IF(D4 >= 6, 1, D4/6) -> 1 | F4: .5 if ≈3; 1 if ≈6
A5: ITE-IMA (Information Management) | E5: 0 | F5: .5 if ≈3; 1 if ≈6
A6: ITE-NET (Networking) | B6: CSCI 332 | C6: Applied Networking | D6: 4 | E6: 0.6666666667 | F6: .5 if ≈3; 1 if ≈6
A7: ITE-SPA (System Paradigms) | E7: 0 | F7: .5 if ≈3; 1 if ≈6
A8: ITE-UXD (User Experience) | E8: =IF(D8 >=3, 1, D8/3) -> 0 | F8: 1 if ≈3
A9: ITE-GPP (Global Professional Practice) | E9: 0 | F9: 1 if ≈3
A10: ITE-IST (Integrated Systems Technology) | B10: CSCI 301 | C10: Survey of Scripting Languages | D10: 4 | E10: 1 | F10: 1 if ≈3
A11: ITE-PFT (Platform Technologies) | B11: CSCI 330, 431 | C11: Computer Architecture, Operating Systems | D11: 8 | E11: =IF(D11 >=2, 1, D11/2) -> 1 | F11: 1 if ≈2
A12: ITE-SWF (Software Fundamentals) | B12: CSCI 235, 325 | C12: Procedural Programming, Object-Oriented Programming | D12: 8 | E12: =IF(D12 >=5, 1, D12/5) -> 1 | F12: 1 if ≈5
A13: ITE-WMS (Web and Mobile Systems) | E13: =IF(D13 >=3, 1, D13/3) -> 0 | F13: 1 if ≈3
C16: (Essential) Scaled Score: | D16: =SUM(E4:E13)/10*2 -> 0.9333333333 | F16: (2 maximum)
A17: Supplemental IT Domains
C18: Total Hours: | D18: 24 | F18: Required Hrs/24
A19: Additional Notes: | B19: Supplemental (12), Essential IT Domains: Cybersecurity (9), Integrated Technologies (1), Platform Technologies (3)
C21: (Supplemental) Scaled Score: | D21: =IF(D18/24 >= 1, 1, D18/24) -> 1
A22: Related IT Essential Mathematics
A23: ITM-DSC (Discrete Structures)
A25: Related IT Supplemental Mathematics
A26: ITM-SUP (Stats, Lin Alg, Calculus, etc) | B26: MATH 221 | C26: Calculus I | D26: 4
B27: MATH 213 | C27: Probability and Statistics | D27: 3
C29: (Math) Scaled Score: | D29: =IF(SUM(D23,D26,D27,D28) > 6, 0.5, 0.5 * SUM(D23,D26,D27,D28)/7) + IF(SUM(D23,D24) > 2, 0.5, 0.5*D23/3) -> 0.5 | F29: 1 if >= 7 Sem Cr Hrs
A30: Capstone
A31: Capstone Project (Senior Year) | B31: CSCI 496, 497, 498 | C31: Senior Project (1/2: no teamwork) | D31: 1.5
C33: (Capstone) Scaled Score: | D33: =IF(D31 >= 3, 1, D31/3) -> 0.5 | F33: 1 if ≥3
C35: Final Compliance Factor: | D35: =ROUND(SUM(D16,D21,D29,D33),2) -> 2.93

Sheet Charter
A1: Charter College
A2: Abbreviation/Category | B2: Desig | C2: Title | D2: Qtr Hrs | E2: Sem Hrs | F2: Compl Fact | G2: How Derived
A3: Essential IT Domains
A4: ITE-CSP (Cybersecurity) | B4: CIS 1215, 3115, 4115 | C4: Computer Security Fundamentals, Network Security Concepts, Ethical Hacking | D4: 13.5 | E4: =D4*(2/3) -> 9 | F4: =IF(E4 >= 6, 1, E4/6) -> 1 | G4: .5 if ≈3; 1 if ≈6
A5: ITE-IMA (Information Management) | B5: CIS 1225 | C5: Fundamentals of Networking | D5: 4.5 | E5: 3 | F5: 0.5 | G5: .5 if ≈3; 1 if ≈6
A6: ITE-NET (Networking) | B6: CIS 1165, 4155 | C6: CISCO Switches and Routers, Network Planning and Maintaenance | D6: 9 | E6: 6 | F6: 1 | G6: .5 if ≈3; 1 if ≈6
A7: ITE-SPA (System Paradigms) | B7: CIS 4145 | C7: Systems Analysis and Design | D7: 4.5 | E7: 3 | F7: 0.5 | G7: .5 if ≈3; 1 if ≈6
A8: ITE-UXD (User Experience) | B8: CIS 3165 | C8: Human Computer Interaction | D8: 4.5 | E8: 3 | F8: 0.5 | G8: 1 if ≈3
A9: ITE-GPP (Global Professional Practice) | B9: CIS 3135 | C9: Computer Information Systems Project Management | D9: 4.5 | E9: 3 | F9: 0.5 | G9: 1 if ≈3
A10: ITE-IST (Integrated Systems Technology) | B10: CIS 4135 | C10: Systems Integration | D10: 4.5 | E10: 3 | F10: 0.5 | G10: 1 if ≈3
A11: ITE-PFT (Platform Technologies) | B11: CIS1135, 1175, 1195 | C11: Operating Systems Fundamentals, Technology Infrastructure, Linux Administration | D11: 13.5 | E11: 9 | F11: 1 | G11: 1 if ≈2
A12: ITE-SWF (Software Fundamentals) | B12: CIS 1185 | C12: Software Applications | D12: 4.5 | E12: 3 | F12: 0.5 | G12: 1 if ≈5
A13: ITE-WMS (Web and Mobile Systems) | E13: 0 | F13: 0 | G13: 1 if ≈3
C16: (Essential) Scaled Score: | D16: =SUM(F4:F13)/10*2 -> 1.2 | G16: (2 maximum)
A17: Supplemental IT Domains
C18: Total Hours: | D18: 22.5 | E18: =D18*(2/3) -> 15 | G18: Required Hrs/24
A19: Additional Notes: | B19: CIS 2125 Cloud Computing (4.5 qtr), CIS 4125 Virtualization (4.5 qtr), Essential IT Domains: Platform Technologies (9 qtr), Cybersecurity (4.5 qtr)
C21: (Supplemental) Scaled Score: | D21: =IF(E18/24 >= 1, 1, E18/24) -> 0.625
A22: Related IT Essential Mathematics
A23: ITM-DSC (Discrete Structures)
A25: Related IT Supplemental Mathematics
A26: ITM-SUP (Stats, Lin Alg, Calculus, etc) | B26: GE 2110 | C26: College Mathematics | D26: 4.5 | E26: =D26*(2/3) -> 3
B27: GE 3110 | C27: College Algebra | D27: 4.5 | E27: 3
C29: (Math) Scaled Score: | E29: =IF(SUM(E23,E26,E27,E28) >= 7, 0.5, 0.5 * SUM(E23,E26,E27,E28)/7) + IF(SUM(E23,E24) >= 3, 0.5, 0.5*E23/3) -> 0.4285714286 | G29: 1 if >= 7 Sem Cr Hrs
A30: Capstone
A31: Capstone Project (Senior Year)
C33: (Capstone) Scaled Score: | D33: =IF(D31 >= 3, 1, D31/3) -> 0 | G33: 1 if ≥3
C35: Final Compliance Factor: | D35: =ROUND(SUM(D16,D21,E29,D33),2) -> 2.25

Sheet Charter Oak
A1: Charter Oak State College
A2: Abbreviation/Category | B2: Desig | C2: Title | D2: Cred Hrs | E2: Compl Fact | F2: How Derived
A3: Essential IT Domains
A4: ITE-CSP (Cybersecurity) | B4: ITE 145, CSS 166, 230, 245 | C4: Fundamentals of Information Systems Security, Legal Issues in IS, Manageming Risk in IS, Security Policies of Implementation | D4: 12 | E4: =IF(D4 >= 6, 1, D4/6) -> 1 | F4: .5 if ≈3; 1 if ≈6
A5: ITE-IMA (Information Management) | E5: 0 | F5: .5 if ≈3; 1 if ≈6
A6: ITE-NET (Networking) | B6: ITE 220 | C6: Networking and Data Communications, Applied Network Security | D6: 6 | E6: 1 | F6: .5 if ≈3; 1 if ≈6
A7: ITE-SPA (System Paradigms) | B7: ITE 101 | C7: Management Information Systems | D7: 3 | E7: 0.5 | F7: .5 if ≈3; 1 if ≈6
A8: ITE-UXD (User Experience) | E8: =IF(D8 >=3, 1, D8/3) -> 0 | F8: 1 if ≈3
A9: ITE-GPP (Global Professional Practice) | E9: 0 | F9: 1 if ≈3
A10: ITE-IST (Integrated Systems Technology) | E10: 0 | F10: 1 if ≈3
A11: ITE-PFT (Platform Technologies) | E11: =IF(D11 >=2, 1, D11/2) -> 0 | F11: 1 if ≈2
A12: ITE-SWF (Software Fundamentals) | E12: =IF(D12 >=5, 1, D12/5) -> 0 | F12: 1 if ≈5
A13: ITE-WMS (Web and Mobile Systems) | E13: =IF(D13 >=3, 1, D13/3) -> 0 | F13: 1 if ≈3
C16: (Essential) Scaled Score: | D16: =SUM(E4:E13)/10*2 -> 0.5 | F16: (2 maximum)
A17: Supplemental IT Domains
C18: Total Hours: | D18: 24 | F18: Required Hrs/24
A19: Additional Notes: | B19: CSS 345, 346, 436, 437, 438 (15), Supplemental (6), Essential IT Domains: Cybersecurity (6)
C21: (Supplemental) Scaled Score: | D21: =IF(D18/24 >= 1, 1, D18/24) -> 1
A22: Related IT Essential Mathematics
A23: ITM-DSC (Discrete Structures)
A25: Related IT Supplemental Mathematics
A26: ITM-SUP (Stats, Lin Alg, Calculus, etc)
C29: (Math) Scaled Score: | D29: =IF(SUM(D23,D26,D27,D28) > 6, 0.5, 0.5 * SUM(D23,D26,D27,D28)/7) + IF(SUM(D23,D24) > 2, 0.5, 0.5*D23/3) -> 0 | F29: 1 if >= 7 Sem Cr Hrs
A30: Capstone
A31: Capstone Project (Senior Year)
C33: (Capstone) Scaled Score: | D33: =IF(D31 >= 3, 1, D31/3) -> 0 | F33: 1 if ≥3
C35: Final Compliance Factor: | D35: =ROUND(SUM(D16,D21,D29,D33),2) -> 1.5

Sheet Chestnut
A1: Chestnut HI College
A2: Abbreviation/Category | B2: Desig | C2: Title | D2: Cred Hrs | E2: Compl Fact | F2: How Derived
A3: Essential IT Domains
A4: ITE-CSP (Cybersecurity) | B4: CMDF 350 | C4: Cyber Security | D4: 3 | E4: =IF(D4 >= 6, 1, D4/6) -> 0.5 | F4: .5 if ≈3; 1 if ≈6
A5: ITE-IMA (Information Management) | B5: CMTC 284 | C5: Introduction to Database Design and Development | D5: 4 | E5: 0.6666666667 | F5: .5 if ≈3; 1 if ≈6
A6: ITE-NET (Networking) | B6: CMTC 230 | C6: Introduction to Data Communications | D6: 3 | E6: 0.5 | F6: .5 if ≈3; 1 if ≈6
A7: ITE-SPA (System Paradigms) | B7: CMSC 205 | C7: Systems Analysis and Design | D7: 3 | E7: 0.5 | F7: .5 if ≈3; 1 if ≈6
A8: ITE-UXD (User Experience) | E8: =IF(D8 >=3, 1, D8/3) -> 0 | F8: 1 if ≈3
A9: ITE-GPP (Global Professional Practice) | B9: CMSC 279 | C9: Computer Science: History, Trends and Ethical Issues | D9: 3 | E9: 1 | F9: 1 if ≈3
A10: ITE-IST (Integrated Systems Technology) | E10: 0 | F10: 1 if ≈3
A11: ITE-PFT (Platform Technologies) | B11: CMSC 350 | C11: Computer Architecture and Logic Design | D11: 4 | E11: =IF(D11 >=2, 1, D11/2) -> 1 | F11: 1 if ≈2
A12: ITE-SWF (Software Fundamentals) | B12: CMSC 200, 201, 251 | C12: Intro to Java Programming I & II, Data Structures in Java | D12: 10 | E12: =IF(D12 >=5, 1, D12/5) -> 1 | F12: 1 if ≈5
A13: ITE-WMS (Web and Mobile Systems) | B13: CMSC 305 orCMTC 260 or 295 | C13: Web courses | D13: 3 | E13: =IF(D13 >=3, 1, D13/3) -> 1 | F13: 1 if ≈3
C16: (Essential) Scaled Score: | D16: =SUM(E4:E13)/10*2 -> 1.233333333 | F16: (2 maximum)
A17: Supplemental IT Domains
C18: Total Hours: | D18: 5 | F18: Required Hrs/24
A19: Additional Notes: | B19: Essential IT Domains: Software Fundamentals (3), Platform Technologies (2),
C21: (Supplemental) Scaled Score: | D21: =IF(D18/24 >= 1, 1, D18/24) -> 0.2083333333
A22: Related IT Essential Mathematics
A23: ITM-DSC (Discrete Structures) | B23: MATH 261 | C23: Discrete Methods in Mathematics | D23: 3
A25: Related IT Supplemental Mathematics
A26: ITM-SUP (Stats, Lin Alg, Calculus, etc) | B26: MATH 202 or 203 | C26: Calculus | D26: 3
B27: MATH 227 | C27: Intro to Probability and Statistics | D27: 3
C29: (Math) Scaled Score: | D29: =IF(SUM(D23,D26,D27,D28) > 6, 0.5, 0.5 * SUM(D23,D26,D27,D28)/7) + IF(SUM(D23,D24) > 2, 0.5, 0.5*D23/3) -> 1 | F29: 1 if >= 7 Sem Cr Hrs
A30: Capstone
A31: Capstone Project (Senior Year) | B31: CMSC 498 | C31: Senior Seminar in Computer and Information Sciences, research project, not a capstone | D31: 0
C33: (Capstone) Scaled Score: | D33: =IF(D31 >= 3, 1, D31/3) -> 0 | F33: 1 if ≥3
C35: Final Compliance Factor: | D35: =ROUND(SUM(D16,D21,D29,D33),2) -> 2.44

Sheet CityU
A1: City University of Seattle
A2: Abbreviation/Category | B2: Desig | C2: Title | D2: Qtr Hrs | E2: Cred Hrs | F2: Compl Fact | G2: How Derived
A3: Essential IT Domains
A4: ITE-CSP (Cybersecurity) | B4: IS 345, 360, 481, 468 | C4: Information Security, Cybercrime Technology and Social Change, Network Security, Tools and Techniques | D4: 20 | E4: =D4*(2/3) -> 13.33333333 | F4: =IF(E4 >= 6, 1, E4/6) -> 1 | G4: .5 if ≈3; 1 if ≈6
A5: ITE-IMA (Information Management) | B5: IS 306 | C5: Data Management Communications and Networking | D5: 5 | E5: 3.333333333 | F5: 0.5555555556 | G5: .5 if ≈3; 1 if ≈6
A6: ITE-NET (Networking) | B6: CS 330 | C6: Network Communications Basics | D6: 5 | E6: 3.333333333 | F6: 0.5555555556 | G6: .5 if ≈3; 1 if ≈6
A7: ITE-SPA (System Paradigms) | B7: IS 201, 350 | C7: Fundamentals of Computing, Systems Analysis and Design | D7: 10 | E7: 6.666666667 | F7: 1 | G7: .5 if ≈3; 1 if ≈6
A8: ITE-UXD (User Experience) | B8: CS 302 | C8: Human Computer Interaction | D8: 5 | E8: 3.333333333 | F8: =IF(E8 >=3, 1, E8/3) -> 1 | G8: 1 if ≈3
A9: ITE-GPP (Global Professional Practice) | B9: BC 301, 371, PM 401 | C9: Critical Thinking, IT Ethics, Intro to Project Management | D9: 15 | E9: 10 | F9: 1 | G9: 1 if ≈3
A10: ITE-IST (Integrated Systems Technology) | E10: 0 | F10: 0 | G10: 1 if ≈3
A11: ITE-PFT (Platform Technologies) | B11: IS 340 | C11: Operating Systems | D11: 5 | E11: 3.333333333 | F11: =IF(E11 >=2, 1, E11/2) -> 1 | G11: 1 if ≈2
A12: ITE-SWF (Software Fundamentals) | B12: CS 131, IS 375 | C12: Computer Science I: C++, C++ Intermediate | D12: 10 | E12: 6.666666667 | F12: =IF(E12 >=5, 1, E12/5) -> 1 | G12: 1 if ≈5
A13: ITE-WMS (Web and Mobile Systems) | B13: CS 225 | C13: Intro to Web Design | D13: 5 | E13: 3.333333333 | F13: =IF(E13 >=3, 1, E13/3) -> 1 | G13: 1 if ≈3
C16: (Essential) Scaled Score: | E16: =SUM(F4:F13)/10*2 -> 1.622222222 | G16: (2 maximum)
A17: Supplemental IT Domains
C18: Total Hours: | D18: 13 | E18: =D18*(2/3) -> 8.666666667 | G18: Required Hrs/24
A19: Additional Notes: | B19: IT Essential Domains: Software Fundamentals (1 qtr credit), Cybersecurity (11 qtr credits), System Paradigms (1)
C21: (Supplemental) Scaled Score: | E21: =IF(E18/24 >= 1, 1, E18/24) -> 0.3611111111
A22: Related IT Essential Mathematics
A23: ITM-DSC (Discrete Structures) | E23: =D23*(2/3) -> 0
A25: Related IT Supplemental Mathematics
A26: ITM-SUP (Stats, Lin Alg, Calculus, etc) | B26: MATH 141 | C26: Precalculus | D26: 5 | E26: =D26*(2/3) -> 3.333333333
B27: MATH 146 | C27: Foundational Statistics | D27: 5 | E27: 3.333333333
B28: MATH 151 | C28: Calculus | D28: 5 | E28: 3.333333333
C29: (Math) Scaled Score: | E29: =IF(SUM(E23,E26,E27,E28) >= 7, 0.5, 0.5 * SUM(E23,E26,E27,E28)/7) + IF(SUM(E23,E24) >= 3, 0.5, 0.5*E23/3) -> 0.5 | G29: 1 if >= 7 Sem Cr Hrs
A30: Capstone
A31: Capstone Project (Senior Year) | B31: CS 497 | C31: Technology Capstone (no teamwork) | D31: 2.5 | E31: =D31*(2/3) -> 1.666666667
C33: (Capstone) Scaled Score: | E33: =IF(E31 >= 3, 1, E31/3) -> 0.5555555556 | G33: 1 if ≥3
C35: Final Compliance Factor: | E35: =ROUND(SUM(E16,E21,E29,E33),2) -> 3.04

Sheet Clark ATL
A1: Clark Atlanta University
A2: Abbreviation/Category | B2: Desig | C2: Title | D2: Cred Hrs | E2: Compl Fact | F2: How Derived
A3: Essential IT Domains
A4: ITE-CSP (Cybersecurity) | B4: CCIS 431 | C4: Information Security | D4: 3 | E4: =IF(D4 >= 6, 1, D4/6) -> 0.5 | F4: .5 if ≈3; 1 if ≈6
A5: ITE-IMA (Information Management) | B5: CCIS 374 | C5: Intro to Database | D5: 3 | E5: 0.5 | F5: .5 if ≈3; 1 if ≈6
A6: ITE-NET (Networking) | E6: 0 | F6: .5 if ≈3; 1 if ≈6
A7: ITE-SPA (System Paradigms) | B7: CCIS 101, 121 | C7: Intro to Computing, Intro to Computing Systems | D7: 6 | E7: 1 | F7: .5 if ≈3; 1 if ≈6
A8: ITE-UXD (User Experience) | E8: =IF(D8 >=3, 1, D8/3) -> 0 | F8: 1 if ≈3
A9: ITE-GPP (Global Professional Practice) | E9: 0 | F9: 1 if ≈3
A10: ITE-IST (Integrated Systems Technology) | E10: 0 | F10: 1 if ≈3
A11: ITE-PFT (Platform Technologies) | B11: CCIS 372, 473 | C11: Intro to Computer Architecture, Intro to Operating Systems | D11: 6 | E11: =IF(D11 >=2, 1, D11/2) -> 1 | F11: 1 if ≈2
A12: ITE-SWF (Software Fundamentals) | B12: CCIS 105, 106, 223 | C12: Programming Principles I & II, Data Structures | D12: 12 | E12: =IF(D12 >=5, 1, D12/5) -> 1 | F12: 1 if ≈5
A13: ITE-WMS (Web and Mobile Systems) | B13: CCIS 229, 329 | C13: Website Design, Rich Internet Applications | D13: 6 | E13: =IF(D13 >=3, 1, D13/3) -> 1 | F13: 1 if ≈3
C16: (Essential) Scaled Score: | D16: =SUM(E4:E13)/10*2 -> 1 | F16: (2 maximum)
A17: Supplemental IT Domains
C18: Total Hours: | D18: 15 | F18: Required Hrs/24
A19: Additional Notes: | B19: Supplemental (6), Essential IT Domain: Platform Technologies (3), Software Development (3), Web and Mobile Systems (3)
C21: (Supplemental) Scaled Score: | D21: =IF(D18/24 >= 1, 1, D18/24) -> 0.625
A22: Related IT Essential Mathematics
A23: ITM-DSC (Discrete Structures) | B23: CCIS 227 | C23: Discrete Structures | D23: 3
A25: Related IT Supplemental Mathematics
A26: ITM-SUP (Stats, Lin Alg, Calculus, etc) | B26: CMAT 214 | C26: Linear Algebra | D26: 3
B27: CMAT 321 | C27: Probability and Statistics | D27: 3
B28: CMAT 111, 112 | C28: Calculus I & II | D28: 8
C29: (Math) Scaled Score: | D29: =IF(SUM(D23,D26,D27,D28) > 6, 0.5, 0.5 * SUM(D23,D26,D27,D28)/7) + IF(SUM(D23,D24) > 2, 0.5, 0.5*D23/3) -> 1 | F29: 1 if >= 7 Sem Cr Hrs
A30: Capstone
A31: Capstone Project (Senior Year) | B31: CCIS 493 | C31: Senior Design Project | D31: 3
C33: (Capstone) Scaled Score: | D33: =IF(D31 >= 3, 1, D31/3) -> 1 | F33: 1 if ≥3
C35: Final Compliance Factor: | D35: =ROUND(SUM(D16,D21,D29,D33),2) -> 3.63

Sheet Clarke
A1: Clarke University
A2: Abbreviation/Category | B2: Desig | C2: Title | D2: Cred Hrs | E2: Compl Fact | F2: How Derived
A3: Essential IT Domains
A4: ITE-CSP (Cybersecurity) | B4: CIS 340 | C4: Computer Security | D4: 1.5 | E4: =IF(D4 >= 6, 1, D4/6) -> 0.25 | F4: .5 if ≈3; 1 if ≈6
A5: ITE-IMA (Information Management) | B5: CIS 336 | C5: Database Design and Implementation | D5: 3 | E5: 0.5 | F5: .5 if ≈3; 1 if ≈6
A6: ITE-NET (Networking) | B6: CIS 327 | C6: Distributed Systems and Communications | D6: 3 | E6: 0.5 | F6: .5 if ≈3; 1 if ≈6
A7: ITE-SPA (System Paradigms) | B7: CIS 103, 220, 441 | C7: Intro to CIS, Systems Development Methodologies, Systems Development | D7: 9 | E7: 1 | F7: .5 if ≈3; 1 if ≈6
A8: ITE-UXD (User Experience) | E8: =IF(D8 >=3, 1, D8/3) -> 0 | F8: 1 if ≈3
A9: ITE-GPP (Global Professional Practice) | B9: CIS 420 | C9: Project Management in IT | D9: 3 | E9: 1 | F9: 1 if ≈3
A10: ITE-IST (Integrated Systems Technology) | E10: 0 | F10: 1 if ≈3
A11: ITE-PFT (Platform Technologies) | B11: CIS 445 | C11: Operating Systems | D11: 3 | E11: =IF(D11 >=2, 1, D11/2) -> 1 | F11: 1 if ≈2
A12: ITE-SWF (Software Fundamentals) | B12: CIS 211, 250 | C12: Introduction to Programming, Java Programming | D12: 6 | E12: =IF(D12 >=5, 1, D12/5) -> 1 | F12: 1 if ≈5
A13: ITE-WMS (Web and Mobile Systems) | B13: CIS 350 | C13: Web Programming | D13: 1.5 | E13: =IF(D13 >=3, 1, D13/3) -> 0.5 | F13: 1 if ≈3
C16: (Essential) Scaled Score: | D16: =SUM(E4:E13)/10*2 -> 1.15 | F16: (2 maximum)
A17: Supplemental IT Domains
C18: Total Hours: | D18: 13 | F18: Required Hrs/24
A19: Additional Notes: | B19: Supplemental (9), Esential IT domain: System Paradigms (3), Software Fundamentals(1)
C21: (Supplemental) Scaled Score: | D21: =IF(D18/24 >= 1, 1, D18/24) -> 0.5416666667
A22: Related IT Essential Mathematics
A23: ITM-DSC (Discrete Structures) | B23: CIS 270 | C23: Discrete Structures | D23: 3
A25: Related IT Supplemental Mathematics
A26: ITM-SUP (Stats, Lin Alg, Calculus, etc) | B26: MATH 220 | C26: Statistics | D26: 3
C29: (Math) Scaled Score: | D29: =IF(SUM(D23,D26,D27,D28) > 6, 0.5, 0.5 * SUM(D23,D26,D27,D28)/7) + IF(SUM(D23,D24) > 2, 0.5, 0.5*D23/3) -> 0.9285714286 | F29: 1 if >= 7 Sem Cr Hrs
A30: Capstone
A31: Capstone Project (Senior Year) | B31: CIS 499 | C31: Senior Capstone | D31: 3
C33: (Capstone) Scaled Score: | D33: =IF(D31 >= 3, 1, D31/3) -> 1 | F33: 1 if ≥3
C35: Final Compliance Factor: | D35: =ROUND(SUM(D16,D21,D29,D33),2) -> 3.62

Sheet Clayton
A1: Clayton University
A2: Abbreviation/Category | B2: Desig | C2: Title | D2: Cred Hrs | E2: Compl Fact | F2: How Derived
A3: Essential IT Domains
A4: ITE-CSP (Cybersecurity) | B4: ITFN 3316 | C4: Software Security Testing and Quality and Assurance | D4: 3 | E4: =IF(D4 >= 6, 1, D4/6) -> 0.5 | F4: .5 if ≈3; 1 if ≈6
A5: ITE-IMA (Information Management) | B5: ITFN 1201 | C5: Intro to Database Design | D5: 3 | E5: 0.5 | F5: .5 if ≈3; 1 if ≈6
A6: ITE-NET (Networking) | B6: ITFN 1502, 2512 | C6: Fundamentals of Networking and Security, Intermediate Networking and Security | D6: 6 | E6: 1 | F6: .5 if ≈3; 1 if ≈6
A7: ITE-SPA (System Paradigms) | B7: ITFN 1101, 3112, 4154 | C7: Foundations of IT, System Analysis and Design, Informatics Integration | D7: 9 | E7: 1 | F7: .5 if ≈3; 1 if ≈6
A8: ITE-UXD (User Experience) | B8: ITFN 3103 | C8: Human Computer Interaction | D8: 3 | E8: =IF(D8 >=3, 1, D8/3) -> 1 | F8: 1 if ≈3
A9: ITE-GPP (Global Professional Practice) | B9: ITFN 3144 | C9: IT Project Management | D9: 3 | E9: 1 | F9: 1 if ≈3
A10: ITE-IST (Integrated Systems Technology) | E10: 0 | F10: 1 if ≈3
A11: ITE-PFT (Platform Technologies) | B11: ITFN 3601 | C11: Operating Systems | D11: 3 | E11: =IF(D11 >=2, 1, D11/2) -> 1 | F11: 1 if ≈2
A12: ITE-SWF (Software Fundamentals) | B12: CSCI 1301, 1302 | C12: Computer Science I & II | D12: 6 | E12: =IF(D12 >=5, 1, D12/5) -> 1 | F12: 1 if ≈5
A13: ITE-WMS (Web and Mobile Systems) | B13: ITFN 1401, 2214, 4154 | C13: Foundations of Webmaster, Web Application Development, Web Integration | D13: 9 | E13: =IF(D13 >=3, 1, D13/3) -> 1 | F13: 1 if ≈3
C16: (Essential) Scaled Score: | D16: =SUM(E4:E13)/10*2 -> 1.6 | F16: (2 maximum)
A17: Supplemental IT Domains
C18: Total Hours: | D18: 22 | F18: Required Hrs/24
A19: Additional Notes: | B19: Supplemental (12), Essential IT Domains: System Paradigms (3), Software Fundamentals (1), Web and Mobile Systems (6)
C21: (Supplemental) Scaled Score: | D21: =IF(D18/24 >= 1, 1, D18/24) -> 0.9166666667
A22: Related IT Essential Mathematics
A23: ITM-DSC (Discrete Structures)
A25: Related IT Supplemental Mathematics
A26: ITM-SUP (Stats, Lin Alg, Calculus, etc) | B26: MATH 1111 | C26: College Algebra | D26: 3
B27: MATH 1221 | C27: Finite Mathematics | D27: 3
B28: MATH 1231 | C28: Introductory Statistics | D28: 3
C29: (Math) Scaled Score: | D29: =IF(SUM(D23,D26,D27,D28) > 6, 0.5, 0.5 * SUM(D23,D26,D27,D28)/7) + IF(SUM(D23,D24) > 2, 0.5, 0.5*D23/3) -> 0.5 | F29: 1 if >= 7 Sem Cr Hrs
A30: Capstone
A31: Capstone Project (Senior Year)
C33: (Capstone) Scaled Score: | D33: =IF(D31 >= 3, 1, D31/3) -> 0 | F33: 1 if ≥3
C35: Final Compliance Factor: | D35: =ROUND(SUM(D16,D21,D29,D33),2) -> 3.02

Sheet Clemson
A1: Clemson University
A2: Abbreviation/Category | B2: Desig | C2: Title | D2: Cred Hrs | E2: Compl Fact | F2: How Derived
A3: Essential IT Domains
A4: ITE-CSP (Cybersecurity) | B4: CPSC 4200 | C4: Computer Security Principles | D4: 3 | E4: =IF(D4 >= 6, 1, D4/6) -> 0.5 | F4: .5 if ≈3; 1 if ≈6
A5: ITE-IMA (Information Management) | B5: CPSC 4620 | C5: Database Management Systems | D5: 3 | E5: 0.5 | F5: .5 if ≈3; 1 if ≈6
A6: ITE-NET (Networking) | B6: CPSC 3600 | C6: Networks and Network Programming | D6: 3 | E6: 0.5 | F6: .5 if ≈3; 1 if ≈6
A7: ITE-SPA (System Paradigms) | B7: CPSC 3710 | C7: Systems Analysis | D7: 3 | E7: 0.5 | F7: .5 if ≈3; 1 if ≈6
A8: ITE-UXD (User Experience) | E8: =IF(D8 >=3, 1, D8/3) -> 0 | F8: 1 if ≈3
A9: ITE-GPP (Global Professional Practice) | B9: CPSC 2910, 4910 | C9: Seminar in Professional Issues I & II | D9: 4 | E9: 1 | F9: 1 if ≈3
A10: ITE-IST (Integrated Systems Technology) | B10: CPSC 2310 | C10: Intro to Computer Organization | D10: 4 | E10: 1 | F10: 1 if ≈3
A11: ITE-PFT (Platform Technologies) | B11: CPSC 3220 | C11: Intro to Operating Systems | D11: 3 | E11: =IF(D11 >=2, 1, D11/2) -> 1 | F11: 1 if ≈2
A12: ITE-SWF (Software Fundamentals) | B12: CPSC 2120, 2150, CPSC 1010 or 1020 | C12: Algorithms and Data Structures, Software Development Foundations, INtro to Computing Requirement | D12: 11 | E12: =IF(D12 >=5, 1, D12/5) -> 1 | F12: 1 if ≈5
A13: ITE-WMS (Web and Mobile Systems) | E13: =IF(D13 >=3, 1, D13/3) -> 0 | F13: 1 if ≈3
C16: (Essential) Scaled Score: | D16: =SUM(E4:E13)/10*2 -> 1.2 | F16: (2 maximum)
A17: Supplemental IT Domains
C18: Total Hours: | D18: 18 | F18: Required Hrs/24
A19: Additional Notes: | B19: Supplemental (12), Essential IT Domains: Software Fundamentals (3), Platform Technologies (1), Integrated Systems (1), Global and Professional Practice (1)
C21: (Supplemental) Scaled Score: | D21: =IF(D18/24 >= 1, 1, D18/24) -> 0.75
A22: Related IT Essential Mathematics
A23: ITM-DSC (Discrete Structures) | B23: CPSC 2070 | C23: Discrete Structures for Computing | D23: 3
A25: Related IT Supplemental Mathematics
A26: ITM-SUP (Stats, Lin Alg, Calculus, etc) | B26: MATH 1060, 1080 | C26: Calculus I & II | D26: 8
B27: STAT 3090 | C27: Intro Business Statistics | D27: 3
C29: (Math) Scaled Score: | D29: =IF(SUM(D23,D26,D27,D28) > 6, 0.5, 0.5 * SUM(D23,D26,D27,D28)/7) + IF(SUM(D23,D24) > 2, 0.5, 0.5*D23/3) -> 1 | F29: 1 if >= 7 Sem Cr Hrs
A30: Capstone
A31: Capstone Project (Senior Year)
C33: (Capstone) Scaled Score: | D33: =IF(D31 >= 3, 1, D31/3) -> 0 | F33: 1 if ≥3
C35: Final Compliance Factor: | D35: =ROUND(SUM(D16,D21,D29,D33),2) -> 2.95

Sheet Coastal
A1: Coastal Carolina University
A2: Abbreviation/Category | B2: Desig | C2: Title | D2: Cred Hrs | E2: Compl Fact | F2: How Derived
A3: Essential IT Domains
A4: ITE-CSP (Cybersecurity) | B4: CSCI 385 | C4: Intro to Information Systems Security | D4: 3 | E4: =IF(D4 >= 6, 1, D4/6) -> 0.5 | F4: .5 if ≈3; 1 if ≈6
A5: ITE-IMA (Information Management) | B5: CSCI 225 | C5: Intro to Relational Database and SQL | D5: 3 | E5: 0.5 | F5: .5 if ≈3; 1 if ≈6
A6: ITE-NET (Networking) | B6: CSCI 270 | C6: Data Communication Systems and Networks | D6: 3 | E6: 0.5 | F6: .5 if ≈3; 1 if ≈6
A7: ITE-SPA (System Paradigms) | B7: CSCI 427 | C7: Systems Integration | D7: 3 | E7: 0.5 | F7: .5 if ≈3; 1 if ≈6
A8: ITE-UXD (User Experience) | B8: CSCI 444 | C8: Human Computer Interaction | D8: 3 | E8: =IF(D8 >=3, 1, D8/3) -> 1 | F8: 1 if ≈3
A9: ITE-GPP (Global Professional Practice) | B9: CSCI 170, 335 | C9: Ethics in Computer Science, Project Management | D9: 4 | E9: 1 | F9: 1 if ≈3
A10: ITE-IST (Integrated Systems Technology) | B10: CSCI 416 | C10: Linux System Administration | D10: 3 | E10: 1 | F10: 1 if ≈3
A11: ITE-PFT (Platform Technologies) | B11: CSCI 211 | C11: Computer Infrastructure | D11: 3 | E11: =IF(D11 >=2, 1, D11/2) -> 1 | F11: 1 if ≈2
A12: ITE-SWF (Software Fundamentals) | B12: CSCI 130, CSCI 135 or 140, CSCI 145 or150 | C12: Intro to Computer Science, Intro to Programming OR Algorithmic Design I, Intermediate Programming OR Algorithmic Design II | D12: 9 | E12: =IF(D12 >=5, 1, D12/5) -> 1 | F12: 1 if ≈5
A13: ITE-WMS (Web and Mobile Systems) | B13: CSCI 120 | C13: Intro to Web Interface Development | D13: 3 | E13: =IF(D13 >=3, 1, D13/3) -> 1 | F13: 1 if ≈3
C16: (Essential) Scaled Score: | D16: =SUM(E4:E13)/10*2 -> 1.6 | F16: (2 maximum)
A17: Supplemental IT Domains
C18: Total Hours: | D18: 11 | F18: Required Hrs/24
A19: Additional Notes: | B19: Supplemental (6), Essential IT Domains: Software Fundamentals (3), Global Professional Practice (1), Platform Technologies (1)
C21: (Supplemental) Scaled Score: | D21: =IF(D18/24 >= 1, 1, D18/24) -> 0.4583333333
A22: Related IT Essential Mathematics
A23: ITM-DSC (Discrete Structures)
A25: Related IT Supplemental Mathematics
A26: ITM-SUP (Stats, Lin Alg, Calculus, etc) | B26: MATH 130 | C26: College Algebra | D26: 3
B27: Stats | C27: Statistics Course | D27: 3
B28: Calculus Option | C28: Calculus | D28: 3
C29: (Math) Scaled Score: | D29: =IF(SUM(D23,D26,D27,D28) > 6, 0.5, 0.5 * SUM(D23,D26,D27,D28)/7) + IF(SUM(D23,D24) > 2, 0.5, 0.5*D23/3) -> 0.5 | F29: 1 if >= 7 Sem Cr Hrs
A30: Capstone
A31: Capstone Project (Senior Year)
C33: (Capstone) Scaled Score: | D33: =IF(D31 >= 3, 1, D31/3) -> 0 | F33: 1 if ≥3
C35: Final Compliance Factor: | D35: =ROUND(SUM(D16,D21,D29,D33),2) -> 2.56

Sheet Charleston
A1: College of Charleston
A2: Abbreviation/Category | B2: Desig | C2: Title | D2: Cred Hrs | E2: Compl Fact | F2: How Derived
A3: Essential IT Domains
A4: ITE-CSP (Cybersecurity) | B4: CSCI 111 | C4: Intro to Cybersecurity | D4: 3 | E4: =IF(D4 >= 6, 1, D4/6) -> 0.5 | F4: .5 if ≈3; 1 if ≈6
A5: ITE-IMA (Information Management) | B5: CSCI 315, DATA 210 | C5: Database Concepts, Dataset Organization and Management | D5: 6 | E5: 1 | F5: .5 if ≈3; 1 if ≈6
A6: ITE-NET (Networking) | E6: 0 | F6: .5 if ≈3; 1 if ≈6
A7: ITE-SPA (System Paradigms) | E7: 0 | F7: .5 if ≈3; 1 if ≈6
A8: ITE-UXD (User Experience) | B8: CSCI 380 | C8: User Interface Development | D8: 3 | E8: =IF(D8 >=3, 1, D8/3) -> 1 | F8: 1 if ≈3
A9: ITE-GPP (Global Professional Practice) | B9: CSCI 392 | C9: Seminar on Computing and Society | D9: 3 | E9: 1 | F9: 1 if ≈3
A10: ITE-IST (Integrated Systems Technology) | E10: 0 | F10: 1 if ≈3
A11: ITE-PFT (Platform Technologies) | E11: =IF(D11 >=2, 1, D11/2) -> 0 | F11: 1 if ≈2
A12: ITE-SWF (Software Fundamentals) | B12: CSCI 220, 221 | C12: Computer Programming I & II | D12: 7 | E12: =IF(D12 >=5, 1, D12/5) -> 1 | F12: 1 if ≈5
A13: ITE-WMS (Web and Mobile Systems) | B13: CSCI 115,215, 315 | C13: Website Design, Website Programming, Server-Side Web Programming | D13: 9 | E13: =IF(D13 >=3, 1, D13/3) -> 1 | F13: 1 if ≈3
C16: (Essential) Scaled Score: | D16: =SUM(E4:E13)/10*2 -> 1.1 | F16: (2 maximum)
A17: Supplemental IT Domains
C18: Total Hours: | D18: 14 | F18: Required Hrs/24
A19: Additional Notes: | B19: Supplemental (6), Essential IT Domains: Web and Mobile Systems (6), Software Fundamentals (2)
C21: (Supplemental) Scaled Score: | D21: =IF(D18/24 >= 1, 1, D18/24) -> 0.5833333333
A22: Related IT Essential Mathematics
A23: ITM-DSC (Discrete Structures) | B23: MATH 207 | C23: Discrete Structures I | D23: 3
A25: Related IT Supplemental Mathematics
A26: ITM-SUP (Stats, Lin Alg, Calculus, etc) | B26: MATH 105 or 120 | C26: Calculus | D26: 3
B27: MATH 250 | C27: Statistics | D27: 3
C29: (Math) Scaled Score: | D29: =IF(SUM(D23,D26,D27,D28) > 6, 0.5, 0.5 * SUM(D23,D26,D27,D28)/7) + IF(SUM(D23,D24) > 2, 0.5, 0.5*D23/3) -> 1 | F29: 1 if >= 7 Sem Cr Hrs
A30: Capstone
A31: Capstone Project (Senior Year) | B31: CSCI 462 | C31: Software Engineering Practicum | D31: 3
C33: (Capstone) Scaled Score: | D33: =IF(D31 >= 3, 1, D31/3) -> 1 | F33: 1 if ≥3
C35: Final Compliance Factor: | D35: =ROUND(SUM(D16,D21,D29,D33),2) -> 3.68

Sheet Elms
A1: College of Our Lady of the Elms
A2: Abbreviation/Category | B2: Desig | C2: Title | D2: Cred Hrs | E2: Compl Fact | F2: How Derived
A3: Essential IT Domains
A4: ITE-CSP (Cybersecurity) | B4: CIT 214, 345 | C4: Networks and Security, Digital Forensics | D4: 6 | E4: =IF(D4 >= 6, 1, D4/6) -> 1 | F4: .5 if ≈3; 1 if ≈6
A5: ITE-IMA (Information Management) | B5: CIT 215 | C5: Database Design and Management | D5: 3 | E5: 0.5 | F5: .5 if ≈3; 1 if ≈6
A6: ITE-NET (Networking) | B6: CIT 319 | C6: Network Administration | D6: 3 | E6: 0.5 | F6: .5 if ≈3; 1 if ≈6
A7: ITE-SPA (System Paradigms) | B7: CIT 101, 319 | C7: Intro to Computers, System Administration | D7: 6 | E7: 1 | F7: .5 if ≈3; 1 if ≈6
A8: ITE-UXD (User Experience) | E8: =IF(D8 >=3, 1, D8/3) -> 0 | F8: 1 if ≈3
A9: ITE-GPP (Global Professional Practice) | B9: CIT 106 | C9: Cyber Ethics | D9: 3 | E9: 1 | F9: 1 if ≈3
A10: ITE-IST (Integrated Systems Technology) | E10: 0 | F10: 1 if ≈3
A11: ITE-PFT (Platform Technologies) | E11: =IF(D11 >=2, 1, D11/2) -> 0 | F11: 1 if ≈2
A12: ITE-SWF (Software Fundamentals) | B12: CIT 213 | C12: Intro to Programming | D12: 3 | E12: =IF(D12 >=5, 1, D12/5) -> 0.6 | F12: 1 if ≈5
A13: ITE-WMS (Web and Mobile Systems) | B13: CIT 256 | C13: Web Design | D13: 3 | E13: =IF(D13 >=3, 1, D13/3) -> 1 | F13: 1 if ≈3
C16: (Essential) Scaled Score: | D16: =SUM(E4:E13)/10*2 -> 1.12 | F16: (2 maximum)
A17: Supplemental IT Domains
C18: Total Hours: | D18: 6 | F18: Required Hrs/24
A19: Additional Notes: | B19: Supplemental (6)
C21: (Supplemental) Scaled Score: | D21: =IF(D18/24 >= 1, 1, D18/24) -> 0.25
A22: Related IT Essential Mathematics
A23: ITM-DSC (Discrete Structures)
A25: Related IT Supplemental Mathematics
A26: ITM-SUP (Stats, Lin Alg, Calculus, etc)
C29: (Math) Scaled Score: | D29: =IF(SUM(D23,D26,D27,D28) > 6, 0.5, 0.5 * SUM(D23,D26,D27,D28)/7) + IF(SUM(D23,D24) > 2, 0.5, 0.5*D23/3) -> 0 | F29: 1 if >= 7 Sem Cr Hrs
A30: Capstone
A31: Capstone Project (Senior Year) | B31: CIT 475 | C31: Security Capstone | D31: 3
C33: (Capstone) Scaled Score: | D33: =IF(D31 >= 3, 1, D31/3) -> 1 | F33: 1 if ≥3
C35: Final Compliance Factor: | D35: =ROUND(SUM(D16,D21,D29,D33),2) -> 2.37

Sheet CSU-Online
A1: Colorado State University - Global Campus
A2: Abbreviation/Category | B2: Desig | C2: Title | D2: Cred Hrs | E2: Compl Fact | F2: How Derived
A3: Essential IT Domains
A4: ITE-CSP (Cybersecurity) | B4: ITS350 | C4: Information Systems and Security | D4: 3 | E4: =IF(D4 >= 6, 1, D4/6) -> 0.5 | F4: .5 if ≈3; 1 if ≈6
A5: ITE-IMA (Information Management) | B5: ITS410 | C5: Database Management | D5: 3 | E5: 0.5 | F5: .5 if ≈3; 1 if ≈6
A6: ITE-NET (Networking) | B6: ITS315, 405 | C6: Intro to Networks, Intermediate Networking | D6: 6 | E6: 1 | F6: .5 if ≈3; 1 if ≈6
A7: ITE-SPA (System Paradigms) | E7: 0 | F7: .5 if ≈3; 1 if ≈6
A8: ITE-UXD (User Experience) | E8: =IF(D8 >=3, 1, D8/3) -> 0 | F8: 1 if ≈3
A9: ITE-GPP (Global Professional Practice) | B9: ITS400 | C9: Information Technology Project Management | D9: 3 | E9: 1 | F9: 1 if ≈3
A10: ITE-IST (Integrated Systems Technology) | E10: 0 | F10: 1 if ≈3
A11: ITE-PFT (Platform Technologies) | B11: ITS310, 430 | C11: Intro to Computer-Based Systems, Network Enterprise Solutions | D11: 6 | E11: =IF(D11 >=2, 1, D11/2) -> 1 | F11: 1 if ≈2
A12: ITE-SWF (Software Fundamentals) | B12: ITS320 | C12: Basic Programming | D12: 3 | E12: =IF(D12 >=5, 1, D12/5) -> 0.6 | F12: 1 if ≈5
A13: ITE-WMS (Web and Mobile Systems) | E13: =IF(D13 >=3, 1, D13/3) -> 0 | F13: 1 if ≈3
C16: (Essential) Scaled Score: | D16: =SUM(E4:E13)/10*2 -> 0.92 | F16: (2 maximum)
A17: Supplemental IT Domains
C18: Total Hours: | D18: 4 | F18: Required Hrs/24
A19: Additional Notes: | B19: Essential IT Domains: Platform Technologies (4)
C21: (Supplemental) Scaled Score: | D21: =IF(D18/24 >= 1, 1, D18/24) -> 0.1666666667
A22: Related IT Essential Mathematics
A23: ITM-DSC (Discrete Structures)
A25: Related IT Supplemental Mathematics
A26: ITM-SUP (Stats, Lin Alg, Calculus, etc) | B26: MTH122 | C26: Basic Algebra Skills | D26: 3
C29: (Math) Scaled Score: | D29: =IF(SUM(D23,D26,D27,D28) > 6, 0.5, 0.5 * SUM(D23,D26,D27,D28)/7) + IF(SUM(D23,D24) > 2, 0.5, 0.5*D23/3) -> 0.2142857143 | F29: 1 if >= 7 Sem Cr Hrs
A30: Capstone
A31: Capstone Project (Senior Year) | B31: ITS495 | C31: IT Practicum (no teamwork) | D31: 1.5
C33: (Capstone) Scaled Score: | D33: =IF(D31 >= 3, 1, D31/3) -> 0.5 | F33: 1 if ≥3
C35: Final Compliance Factor: | D35: =ROUND(SUM(D16,D21,D29,D33),2) -> 1.8

Sheet CTU-Col. Springs
A1: Colorado Technical University - Colorado Springs
A2: Abbreviation/Category | B2: Desig | C2: Title | D2: Qtr Hrs | E2: Cred Hrs | F2: Compl Fact | G2: How Derived
A3: Essential IT Domains
A4: ITE-CSP (Cybersecurity) | B4: CSS150 | C4: Intro to Computer Security | D4: 4 | E4: =D4*(2/3) -> 2.666666667 | F4: =IF(E4 >= 6, 1, E4/6) -> 0.4444444444 | G4: .5 if ≈3; 1 if ≈6
A5: ITE-IMA (Information Management) | B5: CS250, 362 | C5: Fundamentals of Database Systems, Structured Query Language for Data Management | D5: 8 | E5: 5.333333333 | F5: 0.8888888889 | G5: .5 if ≈3; 1 if ≈6
A6: ITE-NET (Networking) | B6: IT204 | C6: Fundamentals of Networking | D6: 4 | E6: 2.666666667 | F6: 0.4444444444 | G6: .5 if ≈3; 1 if ≈6
A7: ITE-SPA (System Paradigms) | B7: IT190, 425 | C7: Intro to IT, Systems Analysis Design and Integration | D7: 8 | E7: 5.333333333 | F7: 0.8888888889 | G7: .5 if ≈3; 1 if ≈6
A8: ITE-UXD (User Experience) | E8: 0 | F8: =IF(E8 >=3, 1, E8/3) -> 0 | G8: 1 if ≈3
A9: ITE-GPP (Global Professional Practice) | B9: MPM 210 | C9: Intro to Project Management | D9: 4 | E9: 2.666666667 | F9: 0.8888888889 | G9: 1 if ≈3
A10: ITE-IST (Integrated Systems Technology) | E10: 0 | F10: 0 | G10: 1 if ≈3
A11: ITE-PFT (Platform Technologies) | B11: CS126, IT 141 | C11: Unix Fundamentals, IT Architectures | D11: 8 | E11: 5.333333333 | F11: =IF(E11 >=2, 1, E11/2) -> 1 | G11: 1 if ≈2
A12: ITE-SWF (Software Fundamentals) | E12: 0 | F12: =IF(E12 >=5, 1, E12/5) -> 0 | G12: 1 if ≈5
A13: ITE-WMS (Web and Mobile Systems) | B13: EM200 | C13: Intro to Website Development | D13: 4 | E13: 2.666666667 | F13: =IF(E13 >=3, 1, E13/3) -> 0.8888888889 | G13: 1 if ≈3
C16: (Essential) Scaled Score: | E16: =SUM(F4:F13)/10*2 -> 1.088888889 | G16: (2 maximum)
A17: Supplemental IT Domains
C18: Total Hours: | D18: 9 | E18: =D18*(2/3) -> 6 | G18: Required Hrs/24
A19: Additional Notes: | B19: Supplemental (4), Essential IT Domains: Platform Technologies (5)
C21: (Supplemental) Scaled Score: | E21: =IF(E18/24 >= 1, 1, E18/24) -> 0.25
A22: Related IT Essential Mathematics
A23: ITM-DSC (Discrete Structures) | B23: MATH225 | C23: Applications of Discrete Mathematics and Statistics | D23: 4.5 | E23: =D23*(2/3) -> 3
A25: Related IT Supplemental Mathematics
A26: ITM-SUP (Stats, Lin Alg, Calculus, etc) | B26: MATH 109 | C26: College Algebra | D26: 4.5 | E26: =D26*(2/3) -> 3
B27: MATH112 | C27: Analytic College Algebra | D27: 4.5 | E27: 3
C29: (Math) Scaled Score: | E29: =IF(SUM(E23,E26,E27,E28) >= 7, 0.5, 0.5 * SUM(E23,E26,E27,E28)/7) + IF(SUM(E23,E24) >= 3, 0.5, 0.5*E23/3) -> 1 | G29: 1 if >= 7 Sem Cr Hrs
A30: Capstone
A31: Capstone Project (Senior Year) | E31: =D31*(2/3) -> 0
C33: (Capstone) Scaled Score: | E33: =IF(E31 >= 3, 1, E31/3) -> 0 | G33: 1 if ≥3
C35: Final Compliance Factor: | E35: =ROUND(SUM(E16,E21,E29,E33),2) -> 2.34

Sheet ColumbiaBasin
A1: Columbia Basin College
A2: Abbreviation/Category | B2: Desig | C2: Title | D2: Qtr Hrs | E2: Cred Hrs | F2: Compl Fact | G2: How Derived
A3: Essential IT Domains
A4: ITE-CSP (Cybersecurity) | B4: CS 150, 232 | C4: Computer Security, Network Security | D4: 10 | E4: =D4*(2/3) -> 6.666666667 | F4: =IF(E4 >= 6, 1, E4/6) -> 1 | G4: .5 if ≈3; 1 if ≈6
A5: ITE-IMA (Information Management) | B5: CS 106, 206, 221, 225 | C5: Database Systems, Database Design, SQL Server Administration, SQL Server Programming | D5: 20 | E5: 13.33333333 | F5: 1 | G5: .5 if ≈3; 1 if ≈6
A6: ITE-NET (Networking) | E6: 0 | F6: 0 | G6: .5 if ≈3; 1 if ≈6
A7: ITE-SPA (System Paradigms) | B7: CS 101, 301 | C7: Intro to Computers & Information Technology, Information Systems, Information Systems and Analysis and Design | D7: 15 | E7: 10 | F7: 1 | G7: .5 if ≈3; 1 if ≈6
A8: ITE-UXD (User Experience) | E8: 0 | F8: =IF(E8 >=3, 1, E8/3) -> 0 | G8: 1 if ≈3
A9: ITE-GPP (Global Professional Practice) | B9: CS 117 PROJ 100 | C9: Computer Ethics Intro to Project Management | D9: 7 | E9: 4.666666667 | F9: 1 | G9: 1 if ≈3
A10: ITE-IST (Integrated Systems Technology) | E10: 0 | F10: 0 | G10: 1 if ≈3
A11: ITE-PFT (Platform Technologies) | E11: 0 | F11: =IF(E11 >=2, 1, E11/2) -> 0 | G11: 1 if ≈2
A12: ITE-SWF (Software Fundamentals) | B12: CS 102 or 131, CS& 141, 162 or 202, 236 | C12: Programming Fundamentals OR Computer Science I C++, Computer Science I Java, C++2 or Programming Fundamentals 2, Advanced Object Oriented Programming | D12: 20 | E12: 13.33333333 | F12: =IF(E12 >=5, 1, E12/5) -> 1 | G12: 1 if ≈5
A13: ITE-WMS (Web and Mobile Systems) | B13: CS 250 | C13: HTML 5 - JavaScript/JQuery | D13: 5 | E13: 3.333333333 | F13: =IF(E13 >=3, 1, E13/3) -> 1 | G13: 1 if ≈3
C16: (Essential) Scaled Score: | E16: =SUM(F4:F13)/10*2 -> 1.2 | G16: (2 maximum)
A17: Supplemental IT Domains
C18: Total Hours: | D18: 46 | E18: =D18*(2/3) -> 30.66666667 | G18: Required Hrs/24
A19: Additional Notes: | B19: CS 306 Big Data Analysis (5), Cloud Computing HTML5 and PHP (5), Supplemental: CSIA 300+ (5), Essential IT Domains: Software Fundamentals (11), Global Professional Practice (3), System Paradigms (6), Information Management (11)
C21: (Supplemental) Scaled Score: | E21: =IF(E18/24 >= 1, 1, E18/24) -> 1
A22: Related IT Essential Mathematics
A23: ITM-DSC (Discrete Structures) | E23: =D23*(2/3) -> 0
A25: Related IT Supplemental Mathematics
A26: ITM-SUP (Stats, Lin Alg, Calculus, etc) | B26: MATH GE | C26: Math general | D26: 5 | E26: =D26*(2/3) -> 3.333333333
C29: (Math) Scaled Score: | E29: =IF(SUM(E23,E26,E27,E28) >= 7, 0.5, 0.5 * SUM(E23,E26,E27,E28)/7) + IF(SUM(E23,E24) >= 3, 0.5, 0.5*E23/3) -> 0.2380952381 | G29: 1 if >= 7 Sem Cr Hrs
A30: Capstone
A31: Capstone Project (Senior Year) | B31: CSIT 421 | C31: IT Capstone | D31: 5 | E31: =D31*(2/3) -> 3.333333333
C33: (Capstone) Scaled Score: | E33: =IF(E31 >= 3, 1, E31/3) -> 1 | G33: 1 if ≥3
C35: Final Compliance Factor: | E35: =ROUND(SUM(E16,E21,E29,E33),2) -> 3.44

Sheet ColumbiaSouth
A1: Columbia Southern University
A2: Abbreviation/Category | B2: Desig | C2: Title | D2: Cred Hrs | E2: Compl Fact | F2: How Derived
A3: Essential IT Domains
A4: ITE-CSP (Cybersecurity) | B4: ITC 4390 | C4: Internet and Network Security | D4: 3 | E4: =IF(D4 >= 6, 1, D4/6) -> 0.5 | F4: .5 if ≈3; 1 if ≈6
A5: ITE-IMA (Information Management) | B5: ITC 4150 | C5: Database Design and Implementation | D5: 3 | E5: 0.5 | F5: .5 if ≈3; 1 if ≈6
A6: ITE-NET (Networking) | B6: ITC 3450 | C6: Intro to Data Communication | D6: 3 | E6: 0.5 | F6: .5 if ≈3; 1 if ≈6
A7: ITE-SPA (System Paradigms) | B7: BBA 3551, ITC 4010 | C7: Information Systems Management, System Analysis and Design | D7: 6 | E7: 1 | F7: .5 if ≈3; 1 if ≈6
A8: ITE-UXD (User Experience) | E8: =IF(D8 >=3, 1, D8/3) -> 0 | F8: 1 if ≈3
A9: ITE-GPP (Global Professional Practice) | E9: 0 | F9: 1 if ≈3
A10: ITE-IST (Integrated Systems Technology) | E10: 0 | F10: 1 if ≈3
A11: ITE-PFT (Platform Technologies) | B11: ITC 3840 | C11: Maintaining Microcomputer Systems I | D11: 3 | E11: =IF(D11 >=2, 1, D11/2) -> 1 | F11: 1 if ≈2
A12: ITE-SWF (Software Fundamentals) | B12: ITC 4210 | C12: Programming Concepts and Problem Solving | D12: 3 | E12: =IF(D12 >=5, 1, D12/5) -> 0.6 | F12: 1 if ≈5
A13: ITE-WMS (Web and Mobile Systems) | B13: ITC 4310 | C13: Web Design and Development | D13: 3 | E13: =IF(D13 >=3, 1, D13/3) -> 1 | F13: 1 if ≈3
C16: (Essential) Scaled Score: | D16: =SUM(E4:E13)/10*2 -> 1.02 | F16: (2 maximum)
A17: Supplemental IT Domains
C18: Total Hours: | D18: 36 | F18: Required Hrs/24
A19: Additional Notes: | B19: Supplemental (36)
C21: (Supplemental) Scaled Score: | D21: =IF(D18/24 >= 1, 1, D18/24) -> 1
A22: Related IT Essential Mathematics
A23: ITM-DSC (Discrete Structures)
A25: Related IT Supplemental Mathematics
A26: ITM-SUP (Stats, Lin Alg, Calculus, etc) | B26: MAT 1302 | C26: Algebra I | D26: 3
C29: (Math) Scaled Score: | D29: =IF(SUM(D23,D26,D27,D28) > 6, 0.5, 0.5 * SUM(D23,D26,D27,D28)/7) + IF(SUM(D23,D24) > 2, 0.5, 0.5*D23/3) -> 0.2142857143 | F29: 1 if >= 7 Sem Cr Hrs
A30: Capstone
A31: Capstone Project (Senior Year) | B31: ITC 4760 | C31: IT Evaluation and Implementation I & II | D31: 6
C33: (Capstone) Scaled Score: | D33: =IF(D31 >= 3, 1, D31/3) -> 1 | F33: 1 if ≥3
C35: Final Compliance Factor: | D35: =ROUND(SUM(D16,D21,D29,D33),2) -> 3.23

Sheet ColumbusSt
A1: Columbus State University
A2: Abbreviation/Category | B2: Desig | C2: Title | D2: Cred Hrs | E2: Compl Fact | F2: How Derived
A3: Essential IT Domains
A4: ITE-CSP (Cybersecurity) | B4: CPSC 2106 | C4: Information Security | D4: 3 | E4: =IF(D4 >= 6, 1, D4/6) -> 0.5 | F4: .5 if ≈3; 1 if ≈6
A5: ITE-IMA (Information Management) | B5: CPSC 3131 | C5: Database Systems | D5: 3 | E5: 0.5 | F5: .5 if ≈3; 1 if ≈6
A6: ITE-NET (Networking) | B6: MISM 3145 | C6: Business Data Networks and Security | D6: 3 | E6: 0.5 | F6: .5 if ≈3; 1 if ≈6
A7: ITE-SPA (System Paradigms) | B7: MISM 2115, 3109, 4221 | C7: Intro to Information Systems in Business, Principles of IT Management for Non-Business Majors, Systems Analysis | D7: 9 | E7: 1 | F7: .5 if ≈3; 1 if ≈6
A8: ITE-UXD (User Experience) | B8: MISM 4222 | C8: Systems Design | D8: 3 | E8: =IF(D8 >=3, 1, D8/3) -> 1 | F8: 1 if ≈3
A9: ITE-GPP (Global Professional Practice) | B9: CPSC 3165, 3415 | C9: Professionalism in Computing, Project Management | D9: 6 | E9: 1 | F9: 1 if ≈3
A10: ITE-IST (Integrated Systems Technology) | E10: 0 | F10: 1 if ≈3
A11: ITE-PFT (Platform Technologies) | B11: CPSC 2105 | C11: Computer Organization | D11: 3 | E11: =IF(D11 >=2, 1, D11/2) -> 1 | F11: 1 if ≈2
A12: ITE-SWF (Software Fundamentals) | B12: CPSC 1301, 1302, 2108 | C12: Computer Science 1 & 2, Data Structures | D12: 9 | E12: =IF(D12 >=5, 1, D12/5) -> 1 | F12: 1 if ≈5
A13: ITE-WMS (Web and Mobile Systems) | E13: =IF(D13 >=3, 1, D13/3) -> 0 | F13: 1 if ≈3
C16: (Essential) Scaled Score: | D16: =SUM(E4:E13)/10*2 -> 1.3 | F16: (2 maximum)
A17: Supplemental IT Domains
C18: Total Hours: | D18: 15 | F18: Required Hrs/24
A19: Additional Notes: | B19: Supplemental (6), Essential IT Domains: Global Professional Practice (3), Software Fundamentals (3), System Paradigms (3)
C21: (Supplemental) Scaled Score: | D21: =IF(D18/24 >= 1, 1, D18/24) -> 0.625
A22: Related IT Essential Mathematics
A23: ITM-DSC (Discrete Structures) | B23: MATH 2125 | C23: Intro to Discrete Mathematics | D23: 3
A25: Related IT Supplemental Mathematics
A26: ITM-SUP (Stats, Lin Alg, Calculus, etc) | B26: MATH 1113 | C26: Pre-Calculus | D26: 4
C29: (Math) Scaled Score: | D29: =IF(SUM(D23,D26,D27,D28) > 6, 0.5, 0.5 * SUM(D23,D26,D27,D28)/7) + IF(SUM(D23,D24) > 2, 0.5, 0.5*D23/3) -> 1 | F29: 1 if >= 7 Sem Cr Hrs
A30: Capstone
A31: Capstone Project (Senior Year) | B31: CPSC 4205 | C31: Senior Project & Portfolio (individual) | D31: 1.5
C33: (Capstone) Scaled Score: | D33: =IF(D31 >= 3, 1, D31/3) -> 0.5 | F33: 1 if ≥3
C35: Final Compliance Factor: | D35: =ROUND(SUM(D16,D21,D29,D33),2) -> 3.43

Sheet Covenant
A1: Covenant University
A2: Abbreviation/Category | B2: Desig | C2: Title | D2: Cred Hrs | E2: Compl Fact | F2: How Derived
A3: Essential IT Domains
A4: ITE-CSP (Cybersecurity) | B4: COS 311, 315, 317 | C4: Computer and Information Security, Cyber Defense and Digtial Forensics, Software Security Engineering | D4: 12 | E4: =IF(D4 >= 6, 1, D4/6) -> 1 | F4: .5 if ≈3; 1 if ≈6
A5: ITE-IMA (Information Management) | E5: 0 | F5: .5 if ≈3; 1 if ≈6
A6: ITE-NET (Networking) | B6: COS 327 | C6: Network Programming | D6: 4 | E6: 0.6666666667 | F6: .5 if ≈3; 1 if ≈6
A7: ITE-SPA (System Paradigms) | E7: 0 | F7: .5 if ≈3; 1 if ≈6
A8: ITE-UXD (User Experience) | E8: =IF(D8 >=3, 1, D8/3) -> 0 | F8: 1 if ≈3
A9: ITE-GPP (Global Professional Practice) | B9: COS 260 | C9: Ethical and Professional Issues in Computing | D9: 3 | E9: 1 | F9: 1 if ≈3
A10: ITE-IST (Integrated Systems Technology) | E10: 0 | F10: 1 if ≈3
A11: ITE-PFT (Platform Technologies) | B11: COS 250, 326 | C11: Intro to COmputer Organization, Operating Systems | D11: 8 | E11: =IF(D11 >=2, 1, D11/2) -> 1 | F11: 1 if ≈2
A12: ITE-SWF (Software Fundamentals) | B12: COS 130, 150 | C12: Computer Programming Methodology, Advanced Programming Methodology, Data Structures and Algorithms | D12: 12 | E12: =IF(D12 >=5, 1, D12/5) -> 1 | F12: 1 if ≈5
A13: ITE-WMS (Web and Mobile Systems) | E13: =IF(D13 >=3, 1, D13/3) -> 0 | F13: 1 if ≈3
C16: (Essential) Scaled Score: | D16: =SUM(E4:E13)/10*2 -> 0.9333333333 | F16: (2 maximum)
A17: Supplemental IT Domains
C18: Total Hours: | D18: 16 | F18: Required Hrs/24
A19: Additional Notes: | B19: COS 313 Intro to Cryptography (4), Essential IT Domains: Software Fundamentals (3), Platform Technologies (3), Cybersecurity (6)
C21: (Supplemental) Scaled Score: | D21: =IF(D18/24 >= 1, 1, D18/24) -> 0.6666666667
A22: Related IT Essential Mathematics
A23: ITM-DSC (Discrete Structures) | B23: COS 210 | C23: Discrete Structures in Computing | D23: 4
A25: Related IT Supplemental Mathematics
A26: ITM-SUP (Stats, Lin Alg, Calculus, etc) | B26: Mathematics | C26: Mathematics GE | D26: 3
C29: (Math) Scaled Score: | D29: =IF(SUM(D23,D26,D27,D28) > 6, 0.5, 0.5 * SUM(D23,D26,D27,D28)/7) + IF(SUM(D23,D24) > 2, 0.5, 0.5*D23/3) -> 1 | F29: 1 if >= 7 Sem Cr Hrs
A30: Capstone
A31: Capstone Project (Senior Year) | C31: No capstone
C33: (Capstone) Scaled Score: | D33: =IF(D31 >= 3, 1, D31/3) -> 0 | F33: 1 if ≥3
C35: Final Compliance Factor: | D35: =ROUND(SUM(D16,D21,D29,D33),2) -> 2.6

Sheet Cumberland
A1: Cumberland University
A2: Abbreviation/Category | B2: Desig | C2: Title | D2: Cred Hrs | E2: Compl Fact | F2: How Derived
A3: Essential IT Domains
A4: ITE-CSP (Cybersecurity) | E4: =IF(D4 >= 6, 1, D4/6) -> 0 | F4: .5 if ≈3; 1 if ≈6
A5: ITE-IMA (Information Management) | B5: IT 310 | C5: Databases | D5: 3 | E5: 0.5 | F5: .5 if ≈3; 1 if ≈6
A6: ITE-NET (Networking) | B6: IT 324, 415 | C6: Computer Networking, System Administration I | D6: 6 | E6: 1 | F6: .5 if ≈3; 1 if ≈6
A7: ITE-SPA (System Paradigms) | E7: 0 | F7: .5 if ≈3; 1 if ≈6
A8: ITE-UXD (User Experience) | E8: =IF(D8 >=3, 1, D8/3) -> 0 | F8: 1 if ≈3
A9: ITE-GPP (Global Professional Practice) | B9: IT 422 or MGT 363 | C9: IT Project Mangement or Principles of Management | D9: 3 | E9: 1 | F9: 1 if ≈3
A10: ITE-IST (Integrated Systems Technology) | E10: 0 | F10: 1 if ≈3
A11: ITE-PFT (Platform Technologies) | E11: =IF(D11 >=2, 1, D11/2) -> 0 | F11: 1 if ≈2
A12: ITE-SWF (Software Fundamentals) | B12: IT 101, 125, 201 | C12: Intro to Programming, C Programming, Data Structures and Algorithms | D12: 9 | E12: =IF(D12 >=5, 1, D12/5) -> 1 | F12: 1 if ≈5
A13: ITE-WMS (Web and Mobile Systems) | B13: IT 240 | C13: Web Page Design and Construction | D13: 3 | E13: =IF(D13 >=3, 1, D13/3) -> 1 | F13: 1 if ≈3
C16: (Essential) Scaled Score: | D16: =SUM(E4:E13)/10*2 -> 0.9 | F16: (2 maximum)
A17: Supplemental IT Domains
C18: Total Hours: | D18: 5 | F18: Required Hrs/24
A19: Additional Notes: | B19: Supplemental (24 / 106 * 24 = 5) (106 courses in the mentioned fields of study for electives)
C21: (Supplemental) Scaled Score: | D21: =IF(D18/24 >= 1, 1, D18/24) -> 0.2083333333
A22: Related IT Essential Mathematics
A23: ITM-DSC (Discrete Structures) | B23: MATH 235 | C23: Discrete Mathematics | D23: 3
A25: Related IT Supplemental Mathematics
A26: ITM-SUP (Stats, Lin Alg, Calculus, etc) | B26: MATH 121 | C26: Calculus I | D26: 4
B27: MATH 251 | C27: Mathematical Proofs and Structures | D27: 3
C29: (Math) Scaled Score: | D29: =IF(SUM(D23,D26,D27,D28) > 6, 0.5, 0.5 * SUM(D23,D26,D27,D28)/7) + IF(SUM(D23,D24) > 2, 0.5, 0.5*D23/3) -> 1 | F29: 1 if >= 7 Sem Cr Hrs
A30: Capstone
A31: Capstone Project (Senior Year) | B31: IT 451 | C31: Senior Capstone I | D31: 3
C33: (Capstone) Scaled Score: | D33: =IF(D31 >= 3, 1, D31/3) -> 1 | F33: 1 if ≥3
C35: Final Compliance Factor: | D35: =ROUND(SUM(D16,D21,D29,D33),2) -> 3.11

Sheet John Jay
A1: CUNY John Jay College of Criminal Justice
A2: Abbreviation/Category | B2: Desig | C2: Title | D2: Cred Hrs | E2: Compl Fact | F2: How Derived
A3: Essential IT Domains
A4: ITE-CSP (Cybersecurity) | B4: CSCI 360, 411, 412 | C4: Cryptography and Cryptanalysis, Computer Security and Forensics, Network security and Forensics | D4: 9 | E4: =IF(D4 >= 6, 1, D4/6) -> 1 | F4: .5 if ≈3; 1 if ≈6
A5: ITE-IMA (Information Management) | E5: 0 | F5: .5 if ≈3; 1 if ≈6
A6: ITE-NET (Networking) | B6: CSCI 379 | C6: Computer Networking | D6: 3 | E6: 0.5 | F6: .5 if ≈3; 1 if ≈6
A7: ITE-SPA (System Paradigms) | E7: 0 | F7: .5 if ≈3; 1 if ≈6
A8: ITE-UXD (User Experience) | E8: =IF(D8 >=3, 1, D8/3) -> 0 | F8: 1 if ≈3
A9: ITE-GPP (Global Professional Practice) | B9: PHI 216 | C9: Ethics and IT | D9: 3 | E9: 1 | F9: 1 if ≈3
A10: ITE-IST (Integrated Systems Technology) | E10: 0 | F10: 1 if ≈3
A11: ITE-PFT (Platform Technologies) | B11: CSCI 274, 375 | C11: Computer Architecture, Operating Systems | D11: 6 | E11: =IF(D11 >=2, 1, D11/2) -> 1 | F11: 1 if ≈2
A12: ITE-SWF (Software Fundamentals) | B12: CSCI 271, 272, 373, 374, 377 | C12: Intro to Computer Science, Object-Oriented Programming, Advanced Data Structures, Programming Languages, Computer Algorithms | D12: 15 | E12: =IF(D12 >=5, 1, D12/5) -> 1 | F12: 1 if ≈5
A13: ITE-WMS (Web and Mobile Systems) | E13: =IF(D13 >=3, 1, D13/3) -> 0 | F13: 1 if ≈3
C16: (Essential) Scaled Score: | D16: =SUM(E4:E13)/10*2 -> 0.9 | F16: (2 maximum)
A17: Supplemental IT Domains
C18: Total Hours: | D18: 12 | F18: Required Hrs/24
A19: Additional Notes: | B19: Supplemental (3), Essential IT Domains: Software Fundamentals (3), Platform Technologies (3), Cybersecurity (3)
C21: (Supplemental) Scaled Score: | D21: =IF(D18/24 >= 1, 1, D18/24) -> 0.5
A22: Related IT Essential Mathematics
A23: ITM-DSC (Discrete Structures) | B23: MAT 204 | C23: Discrete Structures | D23: 3
A25: Related IT Supplemental Mathematics
A26: ITM-SUP (Stats, Lin Alg, Calculus, etc) | B26: MAT 141 | C26: Pre Calculus | D26: 3
B27: MAT 241 | C27: Calculus I | D27: 3
B28: MAT 301 | C28: Probability & Mathematical Statistics I | D28: 3
C29: (Math) Scaled Score: | D29: =IF(SUM(D23,D26,D27,D28) > 6, 0.5, 0.5 * SUM(D23,D26,D27,D28)/7) + IF(SUM(D23,D24) > 2, 0.5, 0.5*D23/3) -> 1 | F29: 1 if >= 7 Sem Cr Hrs
A30: Capstone
A31: Capstone Project (Senior Year) | B31: CSCI 400, 401 | C31: Capstone Experience in DIgital Forensics/Cybersecurity I & II | D31: 3
C33: (Capstone) Scaled Score: | D33: =IF(D31 >= 3, 1, D31/3) -> 1 | F33: 1 if ≥3
C35: Final Compliance Factor: | D35: =ROUND(SUM(D16,D21,D29,D33),2) -> 3.4

Sheet Curry
A1: Curry College
A2: Abbreviation/Category | B2: Desig | C2: Title | D2: Cred Hrs | E2: Compl Fact | F2: How Derived
A3: Essential IT Domains
A4: ITE-CSP (Cybersecurity) | B4: IT 2215 | C4: Information Technology Security | D4: 4 | E4: =IF(D4 >= 6, 1, D4/6) -> 0.6666666667 | F4: .5 if ≈3; 1 if ≈6
A5: ITE-IMA (Information Management) | B5: AC 2020 | C5: Database Concepts | D5: 3 | E5: 0.5 | F5: .5 if ≈3; 1 if ≈6
A6: ITE-NET (Networking) | B6: IT 2210 | C6: Networking | D6: 4 | E6: 0.6666666667 | F6: .5 if ≈3; 1 if ≈6
A7: ITE-SPA (System Paradigms) | B7: IT 1010 | C7: Intro to IT | D7: 3 | E7: 0.5 | F7: .5 if ≈3; 1 if ≈6
A8: ITE-UXD (User Experience) | E8: =IF(D8 >=3, 1, D8/3) -> 0 | F8: 1 if ≈3
A9: ITE-GPP (Global Professional Practice) | B9: IT 3805, 3100 | C9: Technology Seminar, Project Management | D9: 6 | E9: 1 | F9: 1 if ≈3
A10: ITE-IST (Integrated Systems Technology) | E10: 0 | F10: 1 if ≈3
A11: ITE-PFT (Platform Technologies) | B11: IT 1100, 2300 | C11: Foundations of Hardware, Operating Systems | D11: 7 | E11: =IF(D11 >=2, 1, D11/2) -> 1 | F11: 1 if ≈2
A12: ITE-SWF (Software Fundamentals) | B12: IT 2100, 2789, 3500 | C12: Programming Logic, Structure Programming, Object Oriented Programming | D12: 11 | E12: =IF(D12 >=5, 1, D12/5) -> 1 | F12: 1 if ≈5
A13: ITE-WMS (Web and Mobile Systems) | B13: EXP 2350 | C13: HTML and Design | D13: 3 | E13: =IF(D13 >=3, 1, D13/3) -> 1 | F13: 1 if ≈3
C16: (Essential) Scaled Score: | D16: =SUM(E4:E13)/10*2 -> 1.266666667 | F16: (2 maximum)
A17: Supplemental IT Domains
C18: Total Hours: | D18: 15 | F18: Required Hrs/24
A19: Additional Notes: | B19: Essential IT Domains: Software Fundamentals (3), Platform Technologies (3), Global Professional Practice (3). Supplemental Electives: 2 electives (2000/3000 level) (6)
C21: (Supplemental) Scaled Score: | D21: =IF(D18/24 >= 1, 1, D18/24) -> 0.625
A22: Related IT Essential Mathematics
A23: ITM-DSC (Discrete Structures)
A25: Related IT Supplemental Mathematics
A26: ITM-SUP (Stats, Lin Alg, Calculus, etc) | B26: MATH | C26: GE Quantitative Literacy Requirement | D26: 3
C29: (Math) Scaled Score: | D29: =IF(SUM(D23,D26,D27,D28) > 6, 0.5, 0.5 * SUM(D23,D26,D27,D28)/7) + IF(SUM(D23,D24) > 2, 0.5, 0.5*D23/3) -> 0.2142857143 | F29: 1 if >= 7 Sem Cr Hrs
A30: Capstone
A31: Capstone Project (Senior Year) | B31: IT 3900 | C31: Senior Seminar: This is IT! | D31: 3
C33: (Capstone) Scaled Score: | D33: =IF(D31 >= 3, 1, D31/3) -> 1 | F33: 1 if ≥3
C35: Final Compliance Factor: | D35: =ROUND(SUM(D16,D21,D29,D33),2) -> 3.11

Sheet Dakota St.
A1: Dakota State University
A2: Abbreviation/Category | B2: Desig | C2: Title | D2: Cred Hrs | E2: Compl Fact | F2: How Derived
A3: Essential IT Domains
A4: ITE-CSP (Cybersecurity) | B4: CSC 134, 234, 321 | C4: Intro to Cyber Operations, Software Security, Information Security Management | D4: 9 | E4: =IF(D4 >= 6, 1, D4/6) -> 1 | F4: .5 if ≈3; 1 if ≈6
A5: ITE-IMA (Information Management) | E5: 0 | F5: .5 if ≈3; 1 if ≈6
A6: ITE-NET (Networking) | B6: CSC 383, 385 | C6: Networking I & II | D6: 6 | E6: 1 | F6: .5 if ≈3; 1 if ≈6
A7: ITE-SPA (System Paradigms) | E7: 0 | F7: .5 if ≈3; 1 if ≈6
A8: ITE-UXD (User Experience) | E8: =IF(D8 >=3, 1, D8/3) -> 0 | F8: 1 if ≈3
A9: ITE-GPP (Global Professional Practice) | E9: 0 | F9: 1 if ≈3
A10: ITE-IST (Integrated Systems Technology) | E10: 0 | F10: 1 if ≈3
A11: ITE-PFT (Platform Technologies) | B11: CSC 314, 328, 363, 456 | C11: Assembly Language, Operating Environments, Hardware Virtualization and Data Communication, Operating Systems | D11: 12 | E11: =IF(D11 >=2, 1, D11/2) -> 1 | F11: 1 if ≈2
A12: ITE-SWF (Software Fundamentals) | B12: CSC 150, 250, 300 | C12: Computer Science I & II, Data Structures | D12: 9 | E12: =IF(D12 >=5, 1, D12/5) -> 1 | F12: 1 if ≈5
A13: ITE-WMS (Web and Mobile Systems) | B13: CIS 275, 375 | C13: Web Application Programming I & II | D13: 6 | E13: =IF(D13 >=3, 1, D13/3) -> 1 | F13: 1 if ≈3
C16: (Essential) Scaled Score: | D16: =SUM(E4:E13)/10*2 -> 1 | F16: (2 maximum)
A17: Supplemental IT Domains
C18: Total Hours: | D18: 24 | F18: Required Hrs/24
A19: Additional Notes: | B19: Required Supplemental Courses: CSC 420 Cellular and Mobile Communications (3), CSC 432 Malware Analysis (3), CSC 437 Survey of Enterprise Systems (3), CSC 438 Defensive Network Security (3) + Supplemental CIS/CSC courses (9) + Essential IT Domains: Cybersecurity (3), Platform Technologies (3), Software Fundamentals (3)
C21: (Supplemental) Scaled Score: | D21: =IF(D18/24 >= 1, 1, D18/24) -> 1
A22: Related IT Essential Mathematics
A23: ITM-DSC (Discrete Structures) | B23: MATH 201 | C23: Intro to Discrete Mathematics | D23: 3
A25: Related IT Supplemental Mathematics
A26: ITM-SUP (Stats, Lin Alg, Calculus, etc)
C29: (Math) Scaled Score: | D29: =IF(SUM(D23,D26,D27,D28) > 6, 0.5, 0.5 * SUM(D23,D26,D27,D28)/7) + IF(SUM(D23,D24) > 2, 0.5, 0.5*D23/3) -> 0.7142857143 | F29: 1 if >= 7 Sem Cr Hrs
A30: Capstone
A31: Capstone Project (Senior Year)
C33: (Capstone) Scaled Score: | D33: =IF(D31 >= 3, 1, D31/3) -> 0 | F33: 1 if ≥3
C35: Final Compliance Factor: | D35: =ROUND(SUM(D16,D21,D29,D33),2) -> 2.71

Sheet Dallas Bap.
A1: Dallas Baptist University
A2: Abbreviation/Category | B2: Desig | C2: Title | D2: Cred Hrs | E2: Compl Fact | F2: How Derived
A3: Essential IT Domains
A4: ITE-CSP (Cybersecurity) | B4: COSC 3312, 3313, 4315, 4316, 4317, 4318 | C4: Information Assurance, Intro to Cryptography, Network Security, Ethical Hacking and system Defense, Digital Forensics, Software Security | D4: 18 | E4: =IF(D4 >= 6, 1, D4/6) -> 1 | F4: .5 if ≈3; 1 if ≈6
A5: ITE-IMA (Information Management) | B5: COSC 3301 | C5: Database Management Systems | D5: 3 | E5: 0.5 | F5: .5 if ≈3; 1 if ≈6
A6: ITE-NET (Networking) | B6: COSC 3306 | C6: Networks and Telecommunication | D6: 3 | E6: 0.5 | F6: .5 if ≈3; 1 if ≈6
A7: ITE-SPA (System Paradigms) | E7: 0 | F7: .5 if ≈3; 1 if ≈6
A8: ITE-UXD (User Experience) | E8: =IF(D8 >=3, 1, D8/3) -> 0 | F8: 1 if ≈3
A9: ITE-GPP (Global Professional Practice) | E9: 0 | F9: 1 if ≈3
A10: ITE-IST (Integrated Systems Technology) | E10: 0 | F10: 1 if ≈3
A11: ITE-PFT (Platform Technologies) | B11: COSC 3305, 4401 | C11: Computer Organization and Architecture, Operating Systems | D11: 6 | E11: =IF(D11 >=2, 1, D11/2) -> 1 | F11: 1 if ≈2
A12: ITE-SWF (Software Fundamentals) | B12: COSC 1302, 1405, 1408, 2306 | C12: Intro to Computer Science and Programming, Foundations of Computer Science I & II, Data Structures and Intro to Algorithms, Object-Oriented Analysis and Design | D12: 15 | E12: =IF(D12 >=5, 1, D12/5) -> 1 | F12: 1 if ≈5
A13: ITE-WMS (Web and Mobile Systems) | E13: =IF(D13 >=3, 1, D13/3) -> 0 | F13: 1 if ≈3
C16: (Essential) Scaled Score: | D16: =SUM(E4:E13)/10*2 -> 0.8 | F16: (2 maximum)
A17: Supplemental IT Domains
C18: Total Hours: | D18: 18 | F18: Required Hrs/24
A19: Additional Notes: | B19: Essential IT Domains: Software Fundamentals (3), Platform Technologies (3), Cybersecurity (12)
C21: (Supplemental) Scaled Score: | D21: =IF(D18/24 >= 1, 1, D18/24) -> 0.75
A22: Related IT Essential Mathematics
A23: ITM-DSC (Discrete Structures) | B23: MATH 3302 | C23: Discrete Mathematics | D23: 3
A25: Related IT Supplemental Mathematics
A26: ITM-SUP (Stats, Lin Alg, Calculus, etc) | B26: MATH 1405 | C26: Calculus and Analytical Geometry I | D26: 4
C29: (Math) Scaled Score: | D29: =IF(SUM(D23,D26,D27,D28) > 6, 0.5, 0.5 * SUM(D23,D26,D27,D28)/7) + IF(SUM(D23,D24) > 2, 0.5, 0.5*D23/3) -> 1 | F29: 1 if >= 7 Sem Cr Hrs
A30: Capstone
A31: Capstone Project (Senior Year) | B31: CPSC 4308 | C31: Senior Project in Computer Science | D31: 3
C33: (Capstone) Scaled Score: | D33: =IF(D31 >= 3, 1, D31/3) -> 1 | F33: 1 if ≥3
C35: Final Compliance Factor: | D35: =ROUND(SUM(D16,D21,D29,D33),2) -> 3.55

Sheet Davenport
A1: Davenport University
A2: Abbreviation/Category | B2: Desig | C2: Title | D2: Cred Hrs | E2: Compl Fact | F2: How Derived
A3: Essential IT Domains
A4: ITE-CSP (Cybersecurity) | B4: IAAS221, 481, 245, 332, 491, NETW325 | C4: Security Foundations, Information Security and Assurance, Legal and Ethical Issues in Information Assurance, Disaster Recovery, Authentication and Audits, Cryptography, Wireless Networking and Security | D4: 21 | E4: =IF(D4 >= 6, 1, D4/6) -> 1 | F4: .5 if ≈3; 1 if ≈6
A5: ITE-IMA (Information Management) | B5: CISP247 | C5: Database Design | D5: 3 | E5: 0.5 | F5: .5 if ≈3; 1 if ≈6
A6: ITE-NET (Networking) | B6: NETW141 or 220, 241 | C6: Cisco Networking Fundamentals or Data Communications and Networks, MS Implement Network Infrastructure | D6: 6 | E6: 1 | F6: .5 if ≈3; 1 if ≈6
A7: ITE-SPA (System Paradigms) | E7: 0 | F7: .5 if ≈3; 1 if ≈6
A8: ITE-UXD (User Experience) | E8: =IF(D8 >=3, 1, D8/3) -> 0 | F8: 1 if ≈3
A9: ITE-GPP (Global Professional Practice) | B9: GPMT287 | C9: Principles of Project Management | D9: 3 | E9: 1 | F9: 1 if ≈3
A10: ITE-IST (Integrated Systems Technology) | B10: CISP253 | C10: Perl/Python Scripting | D10: 3 | E10: 1 | F10: 1 if ≈3
A11: ITE-PFT (Platform Technologies) | B11: NETW101, 141, 217 | C11: PC Operating Systems, MS Client and Server OS, UNIX Operating Systems | D11: 9 | E11: =IF(D11 >=2, 1, D11/2) -> 1 | F11: 1 if ≈2
A12: ITE-SWF (Software Fundamentals) | E12: =IF(D12 >=5, 1, D12/5) -> 0 | F12: 1 if ≈5
A13: ITE-WMS (Web and Mobile Systems) | E13: =IF(D13 >=3, 1, D13/3) -> 0 | F13: 1 if ≈3
C16: (Essential) Scaled Score: | D16: =SUM(E4:E13)/10*2 -> 1.1 | F16: (2 maximum)
A17: Supplemental IT Domains
C18: Total Hours: | D18: 21 | F18: Required Hrs/24
A19: Additional Notes: | B19: Required Supplemental Courses: IAAS256 Windows Digital Forensics (3) + Essential IT Domains: Cybersecurity (15), Platform Technologies (3)
C21: (Supplemental) Scaled Score: | D21: =IF(D18/24 >= 1, 1, D18/24) -> 0.875
A22: Related IT Essential Mathematics
A23: ITM-DSC (Discrete Structures)
A25: Related IT Supplemental Mathematics
A26: ITM-SUP (Stats, Lin Alg, Calculus, etc) | B26: MATH 215 | C26: Calculus I | D26: 4
B27: STAT 220 | C27: Intro to Statistics | D27: 3
C29: (Math) Scaled Score: | D29: =IF(SUM(D23,D26,D27,D28) > 6, 0.5, 0.5 * SUM(D23,D26,D27,D28)/7) + IF(SUM(D23,D24) > 2, 0.5, 0.5*D23/3) -> 0.5 | F29: 1 if >= 7 Sem Cr Hrs
A30: Capstone
A31: Capstone Project (Senior Year) | B31: TECH497 | C31: College of Technology Capstone (no teamwork) | D31: 1.5
C33: (Capstone) Scaled Score: | D33: =IF(D31 >= 3, 1, D31/3) -> 0.5 | F33: 1 if ≥3
C35: Final Compliance Factor: | D35: =ROUND(SUM(D16,D21,D29,D33),2) -> 2.98

Sheet Daytona St
A1: Daytona State University
A2: Abbreviation/Category | B2: Desig | C2: Title | D2: Cred Hrs | E2: Compl Fact | F2: How Derived
A3: Essential IT Domains
A4: ITE-CSP (Cybersecurity) | B4: CIS4360 | C4: Applied Cybersecurity | D4: 3 | E4: =IF(D4 >= 6, 1, D4/6) -> 0.5 | F4: .5 if ≈3; 1 if ≈6
A5: ITE-IMA (Information Management) | B5: COP4708 | C5: Applied Database I | D5: 3 | E5: 0.5 | F5: .5 if ≈3; 1 if ≈6
A6: ITE-NET (Networking) | B6: CNT3104, 4007 | C6: Intro to Telecommunications, Data and Computer Communications | D6: 5 | E6: 0.8333333333 | F6: .5 if ≈3; 1 if ≈6
A7: ITE-SPA (System Paradigms) | E7: 0 | F7: .5 if ≈3; 1 if ≈6
A8: ITE-UXD (User Experience) | B8: CEN3722 | C8: Human Computer Interfaces | D8: 3 | E8: =IF(D8 >=3, 1, D8/3) -> 1 | F8: 1 if ≈3
A9: ITE-GPP (Global Professional Practice) | B9: CIS4250 | C9: Ethical Issues in IT | D9: 1 | E9: 0.3333333333 | F9: 1 if ≈3
A10: ITE-IST (Integrated Systems Technology) | B10: CEN4801 | C10: Systems Integration | D10: 3 | E10: 1 | F10: 1 if ≈3
A11: ITE-PFT (Platform Technologies) | B11: COP4610, CDA 4101 | C11: Operating Systems, Computer Organization and Design | D11: 6 | E11: =IF(D11 >=2, 1, D11/2) -> 1 | F11: 1 if ≈2
A12: ITE-SWF (Software Fundamentals) | B12: COP3530 | C12: Data Structures | D12: 3 | E12: =IF(D12 >=5, 1, D12/5) -> 0.6 | F12: 1 if ≈5
A13: ITE-WMS (Web and Mobile Systems) | B13: COP4813 | C13: Web Systems I | D13: 3 | E13: =IF(D13 >=3, 1, D13/3) -> 1 | F13: 1 if ≈3
C16: (Essential) Scaled Score: | D16: =SUM(E4:E13)/10*2 -> 1.353333333 | F16: (2 maximum)
A17: Supplemental IT Domains
C18: Total Hours: | D18: 24 | F18: Required Hrs/24
A19: Additional Notes: | B19: Supplemental Required Courses: CNT 4703 Voice and Data Network Design (3) + Supplemental Electives (9) + Supplemental Option (9) + Essential IT Domains: Platform Technologies (3)
C21: (Supplemental) Scaled Score: | D21: =IF(D18/24 >= 1, 1, D18/24) -> 1
A22: Related IT Essential Mathematics
A23: ITM-DSC (Discrete Structures)
A25: Related IT Supplemental Mathematics
A26: ITM-SUP (Stats, Lin Alg, Calculus, etc) | B26: MAC1114 | C26: College Trigonometry | D26: 3
B27: MAC2311C | C27: Calculus I and Lab | D27: 4
C29: (Math) Scaled Score: | D29: =IF(SUM(D23,D26,D27,D28) > 6, 0.5, 0.5 * SUM(D23,D26,D27,D28)/7) + IF(SUM(D23,D24) > 2, 0.5, 0.5*D23/3) -> 0.5 | F29: 1 if >= 7 Sem Cr Hrs
A30: Capstone
A31: Capstone Project (Senior Year)
C33: (Capstone) Scaled Score: | D33: =IF(D31 >= 3, 1, D31/3) -> 0 | F33: 1 if ≥3
C35: Final Compliance Factor: | D35: =ROUND(SUM(D16,D21,D29,D33),2) -> 2.85

Sheet Defiance
A1: Defiance College
A2: Abbreviation/Category | B2: Desig | C2: Title | D2: Cred Hrs | E2: Compl Fact | F2: How Derived
A3: Essential IT Domains
A4: ITE-CSP (Cybersecurity) | B4: DFS 205, 215 | C4: Computer Security Fundamentals, Comp Forensic & Security Ethics | D4: 6 | E4: =IF(D4 >= 6, 1, D4/6) -> 1 | F4: .5 if ≈3; 1 if ≈6
A5: ITE-IMA (Information Management) | E5: 0 | F5: .5 if ≈3; 1 if ≈6
A6: ITE-NET (Networking) | B6: DFS 315 | C6: Fundamental of Computer Networks | D6: 3 | E6: 0.5 | F6: .5 if ≈3; 1 if ≈6
A7: ITE-SPA (System Paradigms) | E7: 0 | F7: .5 if ≈3; 1 if ≈6
A8: ITE-UXD (User Experience) | E8: =IF(D8 >=3, 1, D8/3) -> 0 | F8: 1 if ≈3
A9: ITE-GPP (Global Professional Practice) | E9: 0 | F9: 1 if ≈3
A10: ITE-IST (Integrated Systems Technology) | B10: DFS 113 | C10: Intro to Python Scripting | D10: 3 | E10: 1 | F10: 1 if ≈3
A11: ITE-PFT (Platform Technologies) | B11: CSCI 305, 320, DFS 310 | C11: Information System and Architecture, Programming in Assembly Language, Operating Systems | D11: 9 | E11: =IF(D11 >=2, 1, D11/2) -> 1 | F11: 1 if ≈2
A12: ITE-SWF (Software Fundamentals) | B12: CSCI 105, 205, 210, 315 | C12: Introductory and Intermediate Programming, Design and Analysis of Computer Algorithms, Object Oriented and Concurrent Programming | D12: 12 | E12: =IF(D12 >=5, 1, D12/5) -> 1 | F12: 1 if ≈5
A13: ITE-WMS (Web and Mobile Systems) | E13: =IF(D13 >=3, 1, D13/3) -> 0 | F13: 1 if ≈3
C16: (Essential) Scaled Score: | D16: =SUM(E4:E13)/10*2 -> 0.9 | F16: (2 maximum)
A17: Supplemental IT Domains
C18: Total Hours: | D18: 6 | F18: Required Hrs/24
A19: Additional Notes: | B19: Essential IT Domains: Software Fundamentals (3), Platform Technologies (3)
C21: (Supplemental) Scaled Score: | D21: =IF(D18/24 >= 1, 1, D18/24) -> 0.25
A22: Related IT Essential Mathematics
A23: ITM-DSC (Discrete Structures) | B23: CSCI 310 | C23: Discrete Data Structures and Analysis | D23: 3
A25: Related IT Supplemental Mathematics
A26: ITM-SUP (Stats, Lin Alg, Calculus, etc) | C26: Quantitative Reasoning GE | D26: 3
C29: (Math) Scaled Score: | D29: =IF(SUM(D23,D26,D27,D28) > 6, 0.5, 0.5 * SUM(D23,D26,D27,D28)/7) + IF(SUM(D23,D24) > 2, 0.5, 0.5*D23/3) -> 0.9285714286 | F29: 1 if >= 7 Sem Cr Hrs
A30: Capstone
A31: Capstone Project (Senior Year)
C33: (Capstone) Scaled Score: | D33: =IF(D31 >= 3, 1, D31/3) -> 0 | F33: 1 if ≥3
C35: Final Compliance Factor: | D35: =ROUND(SUM(D16,D21,D29,D33),2) -> 2.08

Sheet DePaul
A1: DePaul University
A2: Abbreviation/Category | B2: Desig | C2: Title | D2: Qtr Hrs | E2: Cred Hrs | F2: Compl Fact | G2: How Derived
A3: Essential IT Domains
A4: ITE-CSP (Cybersecurity) | E4: =D4*(2/3) -> 0 | F4: =IF(E4 >= 6, 1, E4/6) -> 0 | G4: .5 if ≈3; 1 if ≈6
A5: ITE-IMA (Information Management) | B5: IT 240 | C5: Intro to Databases | D5: 4 | E5: 2.666666667 | F5: 0.4444444444 | G5: .5 if ≈3; 1 if ≈6
A6: ITE-NET (Networking) | B6: IT 263 | C6: Applied Networks and Security | D6: 4 | E6: 2.666666667 | F6: 0.4444444444 | G6: .5 if ≈3; 1 if ≈6
A7: ITE-SPA (System Paradigms) | E7: 0 | F7: 0 | G7: .5 if ≈3; 1 if ≈6
A8: ITE-UXD (User Experience) | B8: ISM 210, IT 330 | C8: Introduction to Human-Computer Interaction, User Interface Development for Interactive Systems | D8: 8 | E8: 5.333333333 | F8: =IF(E8 >=3, 1, E8/3) -> 1 | G8: 1 if ≈3
A9: ITE-GPP (Global Professional Practice) | B9: IT 280, ORGC 201 | C9: Team Project Development with Agile, Business and Professional Communication | D9: 8 | E9: 5.333333333 | F9: 1 | G9: 1 if ≈3
A10: ITE-IST (Integrated Systems Technology) | B10: IT 238 | C10: Interactive Web Scripting | D10: 4 | E10: 2.666666667 | F10: 0.8888888889 | G10: 1 if ≈3
A11: ITE-PFT (Platform Technologies) | B11: IT 373 | C11: System Concepts | D11: 4 | E11: 2.666666667 | F11: =IF(E11 >=2, 1, E11/2) -> 1 | G11: 1 if ≈2
A12: ITE-SWF (Software Fundamentals) | B12: IT 211, 212, 313 | C12: Intro to Applied Programming, Applied OO Programming, Advanced Application Development | D12: 12 | E12: 8 | F12: =IF(E12 >=5, 1, E12/5) -> 1 | G12: 1 if ≈5
A13: ITE-WMS (Web and Mobile Systems) | B13: IT 130, 231 | C13: Intro Computing for the Web, Web Development | D13: 8 | E13: 5.333333333 | F13: =IF(E13 >=3, 1, E13/3) -> 1 | G13: 1 if ≈3
C16: (Essential) Scaled Score: | E16: =SUM(F4:F13)/10*2 -> 1.355555556 | G16: (2 maximum)
A17: Supplemental IT Domains
C18: Total Hours: | D18: 36 | E18: =D18*(2/3) -> 24 | G18: Required Hrs/24
A19: Additional Notes: | B19: Required Supplemental Courses: IT 223 Data Analysis (4) + Supplemental Concentration: 2 options, Standard or Web Development, both requiring (32) quarter hours + Essential IT Domains: Software Fundamentals (3 sem), Web and Mobile Systems (2 sem), Global Professional Practice (2 sem), Human Computer Interaction (2 sem)
C21: (Supplemental) Scaled Score: | E21: =IF(E18/24 >= 1, 1, E18/24) -> 1
A22: Related IT Essential Mathematics
A23: ITM-DSC (Discrete Structures)
A25: Related IT Supplemental Mathematics
A26: ITM-SUP (Stats, Lin Alg, Calculus, etc)
C29: (Math) Scaled Score: | E29: =IF(SUM(E23,E26,E27,E28) > 6, 0.5, 0.5 * SUM(E23,E26,E27,E28)/7) + IF(SUM(E23,E24) > 2, 0.5, 0.5*E23/3) -> 0 | G29: 1 if >= 7 Sem Cr Hrs
A30: Capstone
A31: Capstone Project (Senior Year) | B31: IT 394, 395 | C31: Software Projects for Community Clients I & II | D31: 8 | E31: =D31*(2/3) -> 5.333333333
C33: (Capstone) Scaled Score: | E33: =IF(E31 >= 3, 1, E31/3) -> 1 | G33: 1 if ≥3
C35: Final Compliance Factor: | E35: =ROUND(SUM(E16,E21,E29,E33),2) -> 3.36

Sheet DeSales
A1: DeSales University
A2: Abbreviation/Category | B2: Desig | C2: Title | D2: Cred Hrs | E2: Compl Fact | F2: How Derived
A3: Essential IT Domains
A4: ITE-CSP (Cybersecurity) | B4: CS 416 | C4: Security | D4: 3 | E4: =IF(D4 >= 6, 1, D4/6) -> 0.5 | F4: .5 if ≈3; 1 if ≈6
A5: ITE-IMA (Information Management) | B5: CS 360 | C5: Database Analysis and Design | D5: 3 | E5: 0.5 | F5: .5 if ≈3; 1 if ≈6
A6: ITE-NET (Networking) | B6: CS 321 | C6: Communications and Networking | D6: 3 | E6: 0.5 | F6: .5 if ≈3; 1 if ≈6
A7: ITE-SPA (System Paradigms) | E7: 0 | F7: .5 if ≈3; 1 if ≈6
A8: ITE-UXD (User Experience) | E8: =IF(D8 >=3, 1, D8/3) -> 0 | F8: 1 if ≈3
A9: ITE-GPP (Global Professional Practice) | E9: 0 | F9: 1 if ≈3
A10: ITE-IST (Integrated Systems Technology) | E10: 0 | F10: 1 if ≈3
A11: ITE-PFT (Platform Technologies) | B11: CS 230, 314 | C11: Computer Architecture and Hardware, Operating Systems | D11: 6 | E11: =IF(D11 >=2, 1, D11/2) -> 1 | F11: 1 if ≈2
A12: ITE-SWF (Software Fundamentals) | B12: CS 121, 122, 211 | C12: Intro to Computer Programming, Object-Oriented Programming, Application Development | D12: 9 | E12: =IF(D12 >=5, 1, D12/5) -> 1 | F12: 1 if ≈5
A13: ITE-WMS (Web and Mobile Systems) | E13: =IF(D13 >=3, 1, D13/3) -> 0 | F13: 1 if ≈3
C16: (Essential) Scaled Score: | D16: =SUM(E4:E13)/10*2 -> 0.7 | F16: (2 maximum)
A17: Supplemental IT Domains
C18: Total Hours: | D18: 12 | F18: Required Hrs/24
A19: Additional Notes: | B19: Supplemental Courses (0-6) + Essential IT Domains: Software Fundamentals (3), Platform Technologies (3)
C21: (Supplemental) Scaled Score: | D21: =IF(D18/24 >= 1, 1, D18/24) -> 0.5
A22: Related IT Essential Mathematics
A23: ITM-DSC (Discrete Structures) | B23: MA 231 | C23: Discrete Mathematics | D23: 3
A25: Related IT Supplemental Mathematics
A26: ITM-SUP (Stats, Lin Alg, Calculus, etc) | B26: MA 121, 122 | C26: Calculus I & II | D26: 6
C29: (Math) Scaled Score: | D29: =IF(SUM(D23,D26,D27,D28) > 6, 0.5, 0.5 * SUM(D23,D26,D27,D28)/7) + IF(SUM(D23,D24) > 2, 0.5, 0.5*D23/3) -> 1 | F29: 1 if >= 7 Sem Cr Hrs
A30: Capstone
A31: Capstone Project (Senior Year)
C33: (Capstone) Scaled Score: | D33: =IF(D31 >= 3, 1, D31/3) -> 0 | F33: 1 if ≥3
C35: Final Compliance Factor: | D35: =ROUND(SUM(D16,D21,D29,D33),2) -> 2.2

Sheet DeVry
A1: DeVry University
A2: Abbreviation/Category | B2: Desig | C2: Title | D2: Cred Hrs | E2: Compl Fact | F2: How Derived
A3: Essential IT Domains
A4: ITE-CSP (Cybersecurity) | B4: SEC285, 290 | C4: Fundamentals of Information Security, Fundamentals of Infrastructure Security | D4: 6 | E4: =IF(D4 >= 6, 1, D4/6) -> 1 | F4: .5 if ≈3; 1 if ≈6
A5: ITE-IMA (Information Management) | B5: CEIS236 | C5: Database Systems and Programming Fundamentals | D5: 3 | E5: 0.5 | F5: .5 if ≈3; 1 if ≈6
A6: ITE-NET (Networking) | B6: NETW190, 200, 260, 270 | C6: Fundamentals of IT and Networking I & II, Intermediate IT and Networking I & II | D6: 12 | E6: 1 | F6: .5 if ≈3; 1 if ≈6
A7: ITE-SPA (System Paradigms) | B7: CEIS101 | C7: Intro to Technology and Information Systems | D7: 3 | E7: 0.5 | F7: .5 if ≈3; 1 if ≈6
A8: ITE-UXD (User Experience) | E8: =IF(D8 >=3, 1, D8/3) -> 0 | F8: 1 if ≈3
A9: ITE-GPP (Global Professional Practice) | B9: ETHC232, CARD405 | C9: Ethical and Legal Issues in the Professions, Career Development | D9: 6 | E9: 1 | F9: 1 if ≈3
A10: ITE-IST (Integrated Systems Technology) | E10: 0 | F10: 1 if ≈3
A11: ITE-PFT (Platform Technologies) | B11: CEIS106, 305 | C11: Intro to Operating Systems, Operating Systems | D11: 6 | E11: =IF(D11 >=2, 1, D11/2) -> 1 | F11: 1 if ≈2
A12: ITE-SWF (Software Fundamentals) | B12: CEIS110, CIS 170C | C12: Intro to Programming, Programming with Lab | D12: 6 | E12: =IF(D12 >=5, 1, D12/5) -> 1 | F12: 1 if ≈5
A13: ITE-WMS (Web and Mobile Systems) | E13: =IF(D13 >=3, 1, D13/3) -> 0 | F13: 1 if ≈3
C16: (Essential) Scaled Score: | D16: =SUM(E4:E13)/10*2 -> 1.2 | F16: (2 maximum)
A17: Supplemental IT Domains
C18: Total Hours: | D18: 24 | F18: Required Hrs/24
A19: Additional Notes: | B19: Required Supplemental Courses: LAS432 Technology, Society, and Culture (3), NETW 315, 320: Wireless Technologies, Converged Networks with Lab (6), NETW 310 Wired Optical and Wireless Communications with Lab, SEC311 Ethical Hacking (3), SEC321 Network Security Testing with Lab (3), SEC 440, Information Systems Security Planning and Audit (3) + Essential IT Domains: Software Fundamentals (1), Platform Technologies (3), Global Profressional Practice (3), Networking (6)
C21: (Supplemental) Scaled Score: | D21: =IF(D18/24 >= 1, 1, D18/24) -> 1
A22: Related IT Essential Mathematics
A23: ITM-DSC (Discrete Structures)
A25: Related IT Supplemental Mathematics
A26: ITM-SUP (Stats, Lin Alg, Calculus, etc) | B26: MATH114 | C26: Algebra for College Students | D26: 3
B27: MATH190 | C27: Pre-Calculus | D27: 3
B28: MATH221 | C28: Statistics for Decision Making | D28: 3
C29: (Math) Scaled Score: | D29: =IF(SUM(D23,D26,D27,D28) >= 7, 0.5, 0.5 * SUM(D23,D26,D27,D28)/7) + IF(SUM(D23,D24) >= 3, 0.5, 0.5*D23/3) -> 0.5 | F29: 1 if >= 7 Sem Cr Hrs
A30: Capstone
A31: Capstone Project (Senior Year) | B31: CEIS494,496 | C31: Senior Project I & II | D31: 6
C33: (Capstone) Scaled Score: | D33: =IF(D31 >= 3, 1, D31/3) -> 1 | F33: 1 if ≥3
C35: Final Compliance Factor: | D35: =ROUND(SUM(D16,D21,D29,D33),2) -> 3.7

Sheet ECU
A1: East Carolina University
A2: Abbreviation/Category | B2: Desig | C2: Title | D2: Cred Hrs | E2: Compl Fact | F2: How Derived
A3: Essential IT Domains
A4: ITE-CSP (Cybersecurity) | B4: ICTN 2900 | C4: Fundamental Network Security | D4: 3 | E4: =IF(D4 >= 6, 1, D4/6) -> 0.5 | F4: .5 if ≈3; 1 if ≈6
A5: ITE-IMA (Information Management) | E5: 0 | F5: .5 if ≈3; 1 if ≈6
A6: ITE-NET (Networking) | B6: ICTN 2150, 2154, 2158 | C6: Network Fundamentals, Digital Communication Systems, Computer Networking Technology | D6: 9 | E6: 1 | F6: .5 if ≈3; 1 if ≈6
A7: ITE-SPA (System Paradigms) | B7: ICTN 1500, 1501, 4040 | C7: Information and Computer Technology Fundamentals, Enterprise Information Security | D7: 6 | E7: 1 | F7: .5 if ≈3; 1 if ≈6
A8: ITE-UXD (User Experience) | E8: =IF(D8 >=3, 1, D8/3) -> 0 | F8: 1 if ≈3
A9: ITE-GPP (Global Professional Practice) | B9: ITEC 3300 | C9: Technology Project Management | D9: 3 | E9: 1 | F9: 1 if ≈3
A10: ITE-IST (Integrated Systems Technology) | B10: ICTN 2732 | C10: Scriptin for Information Technology | D10: 3 | E10: 1 | F10: 1 if ≈3
A11: ITE-PFT (Platform Technologies) | E11: =IF(D11 >=2, 1, D11/2) -> 0 | F11: 1 if ≈2
A12: ITE-SWF (Software Fundamentals) | E12: =IF(D12 >=5, 1, D12/5) -> 0 | F12: 1 if ≈5
A13: ITE-WMS (Web and Mobile Systems) | E13: =IF(D13 >=3, 1, D13/3) -> 0 | F13: 1 if ≈3
C16: (Essential) Scaled Score: | D16: =SUM(E4:E13)/10*2 -> 0.9 | F16: (2 maximum)
A17: Supplemental IT Domains
C18: Total Hours: | D18: 24 | F18: Required Hrs/24
A19: Additional Notes: | B19: Required Supplemental Courses: Network Environment I & II & III (9), ITEC 2000 or 3000 (3) + Supplemental Concentration (12) + Essential IT Domains: Networking (3)
C21: (Supplemental) Scaled Score: | D21: =IF(D18/24 >= 1, 1, D18/24) -> 1
A22: Related IT Essential Mathematics
A23: ITM-DSC (Discrete Structures)
A25: Related IT Supplemental Mathematics
A26: ITM-SUP (Stats, Lin Alg, Calculus, etc) | B26: MATH 1065 | C26: College Algebra | D26: 3
B27: ITEC 3200 or MATH 2283 | C27: Intro to Statistical Process Control or Statistics in Business | D27: 3
C29: (Math) Scaled Score: | D29: =IF(SUM(D23,D26,D27,D28) > 6, 0.5, 0.5 * SUM(D23,D26,D27,D28)/7) + IF(SUM(D23,D24) > 2, 0.5, 0.5*D23/3) -> 0.4285714286 | F29: 1 if >= 7 Sem Cr Hrs
A30: Capstone
A31: Capstone Project (Senior Year) | B31: ICTN 4020, 4022 | C31: Senior Information and Computer Technology Capstone Design Project I & II | D31: 3
C33: (Capstone) Scaled Score: | D33: =IF(D31 >= 3, 1, D31/3) -> 1 | F33: 1 if ≥3
C35: Final Compliance Factor: | D35: =ROUND(SUM(D16,D21,D29,D33),2) -> 3.33

Sheet E. Stroudsburg
A1: East Stroudsburg University
A2: Abbreviation/Category | B2: Desig | C2: Title | D2: Cred Hrs | E2: Compl Fact | F2: How Derived
A3: Essential IT Domains
A4: ITE-CSP (Cybersecurity) | B4: CPSC 270, 370, 470 | C4: Computer Security I & II, Intro to Computer Cryptology, Computer Security Administration and Policy | D4: 16 | E4: =IF(D4 >= 6, 1, D4/6) -> 1 | F4: .5 if ≈3; 1 if ≈6
A5: ITE-IMA (Information Management) | B5: CPSC 453 | C5: Database Systems | D5: 3 | E5: 0.5 | F5: .5 if ≈3; 1 if ≈6
A6: ITE-NET (Networking) | B6: CPSC 445 | C6: Networking and Data Communications | D6: 3 | E6: 0.5 | F6: .5 if ≈3; 1 if ≈6
A7: ITE-SPA (System Paradigms) | E7: 0 | F7: .5 if ≈3; 1 if ≈6
A8: ITE-UXD (User Experience) | E8: =IF(D8 >=3, 1, D8/3) -> 0 | F8: 1 if ≈3
A9: ITE-GPP (Global Professional Practice) | B9: CMST 111 | C9: Intro to Communication | D9: 3 | E9: 1 | F9: 1 if ≈3
A10: ITE-IST (Integrated Systems Technology) | E10: 0 | F10: 1 if ≈3
A11: ITE-PFT (Platform Technologies) | B11: CPSC 141, 232, 340 | C11: Intro to Computer Organization , Intro to Assembler Programming, Operating Systems Concepts and Design | D11: 9 | E11: =IF(D11 >=2, 1, D11/2) -> 1 | F11: 1 if ≈2
A12: ITE-SWF (Software Fundamentals) | B12: CPSC 130, 131, 230, 250 | C12: Intro to Computer Programmin I & II, Programming Principles and Practice, Data Structures and Algorithms | D12: 12 | E12: =IF(D12 >=5, 1, D12/5) -> 1 | F12: 1 if ≈5
A13: ITE-WMS (Web and Mobile Systems) | E13: =IF(D13 >=3, 1, D13/3) -> 0 | F13: 1 if ≈3
C16: (Essential) Scaled Score: | D16: =SUM(E4:E13)/10*2 -> 1 | F16: (2 maximum)
A17: Supplemental IT Domains
C18: Total Hours: | D18: 19 | F18: Required Hrs/24
A19: Additional Notes: | B19: Supplemental Electives (3), Essential IT Domains: Cybersecurity (10), Platform Technologies (3), Software Fundamentals (3)
C21: (Supplemental) Scaled Score: | D21: =IF(D18/24 >= 1, 1, D18/24) -> 0.7916666667
A22: Related IT Essential Mathematics
A23: ITM-DSC (Discrete Structures) | B23: MATH 220 | C23: Discrete Mathematical Structures | D23: 3
A25: Related IT Supplemental Mathematics
A26: ITM-SUP (Stats, Lin Alg, Calculus, etc) | B26: MATH 140, 141 | C26: Calculus I & II | D26: 8
B27: MATH 311 | C27: Statistics I | D27: 3
C29: (Math) Scaled Score: | D29: =IF(SUM(D23,D26,D27,D28) >= 7, 0.5, 0.5 * SUM(D23,D26,D27,D28)/7) + IF(SUM(D23,D24) >= 3, 0.5, 0.5*D23/3) -> 1 | F29: 1 if >= 7 Sem Cr Hrs
A30: Capstone
A31: Capstone Project (Senior Year)
C33: (Capstone) Scaled Score: | D33: =IF(D31 >= 3, 1, D31/3) -> 0 | F33: 1 if ≥3
C35: Final Compliance Factor: | D35: =ROUND(SUM(D16,D21,D29,D33),2) -> 2.79

Sheet East Tenn
A1: East Tennessee State University
A2: Abbreviation/Category | B2: Desig | C2: Title | D2: Cred Hrs | E2: Compl Fact | F2: How Derived
A3: Essential IT Domains
A4: ITE-CSP (Cybersecurity) | B4: CSCI 3500 | C4: Information Security Assurance | D4: 3 | E4: =IF(D4 >= 6, 1, D4/6) -> 0.5 | F4: .5 if ≈3; 1 if ≈6
A5: ITE-IMA (Information Management) | B5: CSCI 2020, 4127, 4227 | C5: Fundamentals of Database, Database Adv. Topics, Database Administration | D5: 9 | E5: 1 | F5: .5 if ≈3; 1 if ≈6
A6: ITE-NET (Networking) | B6: CSCI 3400 | C6: Networking Fundamentals | D6: 3 | E6: 0.5 | F6: .5 if ≈3; 1 if ≈6
A7: ITE-SPA (System Paradigms) | B7: CSCI 4417, 3720 | C7: Intro to System Administration, Fundamentals of Business Information Systems | D7: 6 | E7: 1 | F7: .5 if ≈3; 1 if ≈6
A8: ITE-UXD (User Experience) | B8: CSCI 4927 | C8: Human Computer Interaction | D8: 3 | E8: =IF(D8 >=3, 1, D8/3) -> 1 | F8: 1 if ≈3
A9: ITE-GPP (Global Professional Practice) | B9: CSCI 3250, 3350 | C9: Software Engineering I & II | D9: 6 | E9: 1 | F9: 1 if ≈3
A10: ITE-IST (Integrated Systems Technology) | B10: CSCI 2200 | C10: UNIX Fundamentals | D10: 3 | E10: 1 | F10: 1 if ≈3
A11: ITE-PFT (Platform Technologies) | B11: CSCI 2150 | C11: Computer Organization | D11: 3 | E11: =IF(D11 >=2, 1, D11/2) -> 1 | F11: 1 if ≈2
A12: ITE-SWF (Software Fundamentals) | B12: CSCI 1250, 1260 | C12: Intro to Computer Science I & II | D12: 8 | E12: =IF(D12 >=5, 1, D12/5) -> 1 | F12: 1 if ≈5
A13: ITE-WMS (Web and Mobile Systems) | B13: CSCI 1710, 2910, 3110 | C13: Essentials of Web Development, Server-Side Web Programming, Adv. Topics in Web Dev | D13: 10 | E13: =IF(D13 >=3, 1, D13/3) -> 1 | F13: 1 if ≈3
C16: (Essential) Scaled Score: | D16: =SUM(E4:E13)/10*2 -> 1.8 | F16: (2 maximum)
A17: Supplemental IT Domains
C18: Total Hours: | D18: 24 | F18: Required Hrs/24
A19: Additional Notes: | B19: Essential Domains: Information Management (3), Global Professional Practice (3), Software Fundamentals (3), Web and Mobile Systems (7)+Supplemental (9)
C21: (Supplemental) Scaled Score: | D21: =IF(D18/24 >= 1, 1, D18/24) -> 1
A22: Related IT Essential Mathematics
A23: ITM-DSC (Discrete Structures) | B23: CSCI 1900 | C23: Math for Computer Science | D23: 3
A25: Related IT Supplemental Mathematics
A26: ITM-SUP (Stats, Lin Alg, Calculus, etc) | B26: MATH 1530 | C26: Probability and Statistics | D26: 3
C29: (Math) Scaled Score: | D29: =IF(SUM(D23,D26,D27,D28) > 6, 0.5, 0.5 * SUM(D23,D26,D27,D28)/7) + IF(SUM(D23,D24) > 2, 0.5, 0.5*D23/3) -> 0.9285714286 | F29: 1 if >= 7 Sem Cr Hrs
A30: Capstone
A31: Capstone Project (Senior Year) | B31: CSCI 4800 | C31: Senior IT Project | D31: 3
C33: (Capstone) Scaled Score: | D33: =IF(D31 >= 3, 1, D31/3) -> 1 | F33: 1 if ≥3
C35: Final Compliance Factor: | D35: =ROUND(SUM(D16,D21,D29,D33),2) -> 4.73

Sheet EKU
A1: East Kentucky University
A2: Abbreviation/Category | B2: Desig | C2: Title | D2: Cred Hrs | E2: Compl Fact | F2: How Derived
A3: Essential IT Domains
A4: ITE-CSP (Cybersecurity) | E4: =IF(D4 >= 6, 1, D4/6) -> 0 | F4: .5 if ≈3; 1 if ≈6
A5: ITE-IMA (Information Management) | B5: CSC 313, 545 | C5: Database Systems, Theory of Database Systems | D5: 6 | E5: 1 | F5: .5 if ≈3; 1 if ≈6
A6: ITE-NET (Networking) | B6: CSC 460, CSC 330 | C6: Computer Network and System Administration, System Environments and Networks | D6: 6 | E6: 1 | F6: .5 if ≈3; 1 if ≈6
A7: ITE-SPA (System Paradigms) | E7: 0 | F7: .5 if ≈3; 1 if ≈6
A8: ITE-UXD (User Experience) | E8: =IF(D8 >=3, 1, D8/3) -> 0 | F8: 1 if ≈3
A9: ITE-GPP (Global Professional Practice) | B9: CSC 340 | C9: Ethics & Software Engineering | D9: 3 | E9: 1 | F9: 1 if ≈3
A10: ITE-IST (Integrated Systems Technology) | E10: 0 | F10: 1 if ≈3
A11: ITE-PFT (Platform Technologies) | B11: CSC 360 | C11: Computer Organization & Architecture | D11: 3 | E11: =IF(D11 >=2, 1, D11/2) -> 1 | F11: 1 if ≈2
A12: ITE-SWF (Software Fundamentals) | B12: CSC 190,191,310 | C12: Object-Oriented Programming I & II, Data Structures | D12: 9 | E12: =IF(D12 >=5, 1, D12/5) -> 1 | F12: 1 if ≈5
A13: ITE-WMS (Web and Mobile Systems) | B13: CSC 308 | C13: Mobile App Dev for iOS | D13: 3 | E13: =IF(D13 >=3, 1, D13/3) -> 1 | F13: 1 if ≈3
C16: (Essential) Scaled Score: | D16: =SUM(E4:E13)/10*2 -> 1.2 | F16: (2 maximum)
A17: Supplemental IT Domains
C18: Total Hours: | D18: 24 | F18: Required Hrs/24
A19: Additional Notes: | B19: Supplemental Concentration (24)
C21: (Supplemental) Scaled Score: | D21: =IF(D18/24 >= 1, 1, D18/24) -> 1
A22: Related IT Essential Mathematics
A23: ITM-DSC (Discrete Structures) | B23: CSC 195 | C23: Intro to Discrete Structures | D23: 3
A25: Related IT Supplemental Mathematics
A26: ITM-SUP (Stats, Lin Alg, Calculus, etc) | B26: MAT 234 | C26: Calculus I | D26: 3.5
C29: (Math) Scaled Score: | D29: =IF(SUM(D23,D26,D27,D28) >= 7, 0.5, 0.5 * SUM(D23,D26,D27,D28)/7) + IF(SUM(D23,D24) >= 3, 0.5, 0.5*D23/3) -> 0.9642857143 | F29: 1 if >= 7 Sem Cr Hrs
A30: Capstone
A31: Capstone Project (Senior Year)
C33: (Capstone) Scaled Score: | D33: =IF(D31 >= 3, 1, D31/3) -> 0 | F33: 1 if ≥3
C35: Final Compliance Factor: | D35: =ROUND(SUM(D16,D21,D29,D33),2) -> 3.16

Sheet EMich
A1: Eastern Michigan University
A2: Abbreviation/Category | B2: Desig | C2: Title | D2: Cred Hrs | E2: Compl Fact | F2: How Derived
A3: Essential IT Domains
A4: ITE-CSP (Cybersecurity) | B4: COSC 274, IA 103 | C4: Introduction to Applied Cryptography, Information Security Overview | D4: 6 | E4: =IF(D4 >= 6, 1, D4/6) -> 1 | F4: .5 if ≈3; 1 if ≈6
A5: ITE-IMA (Information Management) | B5: IA 385 | C5: Database Management & Security | D5: 3 | E5: 0.5 | F5: .5 if ≈3; 1 if ≈6
A6: ITE-NET (Networking) | B6: IA 150, 212, 354 | C6: Networking I & II, Open Systems Platform and Network Administration | D6: 9 | E6: 1 | F6: .5 if ≈3; 1 if ≈6
A7: ITE-SPA (System Paradigms) | B7: IA 110, 244 | C7: Concepts of Network and Business Technology, Administration of Computer Systems | D7: 6 | E7: 1 | F7: .5 if ≈3; 1 if ≈6
A8: ITE-UXD (User Experience) | E8: =IF(D8 >=3, 1, D8/3) -> 0 | F8: 1 if ≈3
A9: ITE-GPP (Global Professional Practice) | B9: IA 322 | C9: Managing Security Projects | D9: 3 | E9: 1 | F9: 1 if ≈3
A10: ITE-IST (Integrated Systems Technology) | B10: COSC 146 | C10: Applied Programming and Scripting | D10: 3 | E10: 1 | F10: 1 if ≈3
A11: ITE-PFT (Platform Technologies) | B11: IA 462 | C11: Advanced Operating Systems Security and Administration | D11: 3 | E11: =IF(D11 >=2, 1, D11/2) -> 1 | F11: 1 if ≈2
A12: ITE-SWF (Software Fundamentals) | E12: =IF(D12 >=5, 1, D12/5) -> 0 | F12: 1 if ≈5
A13: ITE-WMS (Web and Mobile Systems) | E13: =IF(D13 >=3, 1, D13/3) -> 0 | F13: 1 if ≈3
C16: (Essential) Scaled Score: | D16: =SUM(E4:E13)/10*2 -> 1.3 | F16: (2 maximum)
A17: Supplemental IT Domains
C18: Total Hours: | D18: 24 | F18: Required Hrs/24
A19: Additional Notes: | B19: Supplemental Electives (21) + Required Supplemental Courses: IA 202L4 Risk-Vulnerability Analysis (3), IA 445 Ethical Hacking and Offensive Security (3), IA 473 Network Forensics and Analytics (3) + Essential IT Domains: Platform Technologies (1), Networking (3)
C21: (Supplemental) Scaled Score: | D21: =IF(D18/24 >= 1, 1, D18/24) -> 1
A22: Related IT Essential Mathematics
A23: ITM-DSC (Discrete Structures)
A25: Related IT Supplemental Mathematics
A26: ITM-SUP (Stats, Lin Alg, Calculus, etc) | B26: STAT 170 | C26: Elementary Statistics | D26: 3
C29: (Math) Scaled Score: | D29: =IF(SUM(D23,D26,D27,D28) >= 7, 0.5, 0.5 * SUM(D23,D26,D27,D28)/7) + IF(SUM(D23,D24) >= 3, 0.5, 0.5*D23/3) -> 0.2142857143 | F29: 1 if >= 7 Sem Cr Hrs
A30: Capstone
A31: Capstone Project (Senior Year) | B31: IA 495 | C31: Capstone | D31: 3
C33: (Capstone) Scaled Score: | D33: =IF(D31 >= 3, 1, D31/3) -> 1 | F33: 1 if ≥3
C35: Final Compliance Factor: | D35: =ROUND(SUM(D16,D21,D29,D33),2) -> 3.51

Sheet East-West
A1: East-West University
A2: Abbreviation/Category | B2: Desig | C2: Title | D2: Qtr Hrs | E2: Cred Hrs | F2: Compl Fact | G2: How Derived
A3: Essential IT Domains
A4: ITE-CSP (Cybersecurity) | B4: CI307, 309, 433, 434 | C4: Cyber Security, Forensics and Incident Response, Cryptography, Network Security | D4: 16 | E4: =D4*(2/3) -> 10.66666667 | F4: =IF(E4 >= 6, 1, E4/6) -> 1 | G4: .5 if ≈3; 1 if ≈6
A5: ITE-IMA (Information Management) | B5: CI310, 354 | C5: Principles of Database, SQL Server Database Programming | D5: 8 | E5: 5.333333333 | F5: 0.8888888889 | G5: .5 if ≈3; 1 if ≈6
A6: ITE-NET (Networking) | B6: CI301 | C6: Data Communications | D6: 4 | E6: 2.666666667 | F6: 0.4444444444 | G6: .5 if ≈3; 1 if ≈6
A7: ITE-SPA (System Paradigms) | B7: CI101 | C7: Computer Technology and Application | D7: 4 | E7: 2.666666667 | F7: 0.4444444444 | G7: .5 if ≈3; 1 if ≈6
A8: ITE-UXD (User Experience) | E8: 0 | F8: =IF(E8 >=3, 1, E8/3) -> 0 | G8: 1 if ≈3
A9: ITE-GPP (Global Professional Practice) | B9: CI220 | C9: Cyber Ethics | D9: 4 | E9: 2.666666667 | F9: 0.8888888889 | G9: 1 if ≈3
A10: ITE-IST (Integrated Systems Technology) | E10: 0 | F10: 0 | G10: 1 if ≈3
A11: ITE-PFT (Platform Technologies) | B11: CI275, 321 | C11: Computer Organization and Architecture, Computer Operating Systems | D11: 8 | E11: 5.333333333 | F11: =IF(E11 >=2, 1, E11/2) -> 1 | G11: 1 if ≈2
A12: ITE-SWF (Software Fundamentals) | B12: CI 215,216,245,246 | C12: Java I &II, Python I & II | D12: 16 | E12: 10.66666667 | F12: =IF(E12 >=5, 1, E12/5) -> 1 | G12: 1 if ≈5
A13: ITE-WMS (Web and Mobile Systems) | B13: CI256 | C13: HTML5 | D13: 4 | E13: 2.666666667 | F13: =IF(E13 >=3, 1, E13/3) -> 0.8888888889 | G13: 1 if ≈3
C16: (Essential) Scaled Score: | E16: =SUM(F4:F13)/10*2 -> 1.311111111 | G16: (2 maximum)
A17: Supplemental IT Domains
C18: Total Hours: | D18: 28 | E18: =D18*(2/3) -> 18.66666667 | G18: Required Hrs/24
A19: Additional Notes: | B19: Required Supplemental Courses: CI 425 Cloud Computing (4) + Supplemental Electives (8) + Essential IT Domains: Platform Technologies (4.5), Software Fundamentals (4.5), Cybersecurity (7)
C21: (Supplemental) Scaled Score: | E21: =IF(E18/24 >= 1, 1, E18/24) -> 0.7777777778
A22: Related IT Essential Mathematics
A23: ITM-DSC (Discrete Structures)
A25: Related IT Supplemental Mathematics
A26: ITM-SUP (Stats, Lin Alg, Calculus, etc) | B26: MT 201 | C26: Calculus I | D26: 4 | E26: =D26*(2/3) -> 2.666666667
B27: MT 155 | C27: Intermediate Algebra | D27: 4 | E27: 2.666666667
B28: MT 158 | C28: College Algebra | D28: 4 | E28: 2.666666667
C29: (Math) Scaled Score: | E29: =IF(SUM(E23,E26,E27,E28) >= 7, 0.5, 0.5 * SUM(E23,E26,E27,E28)/7) + IF(SUM(E23,E24) >= 3, 0.5, 0.5*E23/3) -> 0.5 | G29: 1 if >= 7 Sem Cr Hrs
A30: Capstone
A31: Capstone Project (Senior Year) | C31: Senior Project isn't a capstone experience | E31: =D31*(2/3) -> 0
C33: (Capstone) Scaled Score: | E33: =IF(E31 >= 3, 1, E31/3) -> 0 | G33: 1 if ≥3
C35: Final Compliance Factor: | E35: =ROUND(SUM(E16,E21,E29,E33),2) -> 2.59

Sheet ECPI
A1: ECPI University
A2: Abbreviation/Category | B2: Desig | C2: Title | D2: Cred Hrs | E2: Compl Fact | F2: How Derived
A3: Essential IT Domains
A4: ITE-CSP (Cybersecurity) | B4: CIS212, 403, 425 | C4: Principles of Cybersecurity, Ethical Hacking, Advancded Defense and Countermeasures | D4: 9 | E4: =IF(D4 >= 6, 1, D4/6) -> 1 | F4: .5 if ≈3; 1 if ≈6
A5: ITE-IMA (Information Management) | B5: CIS223 | C5: Intro to Databases | D5: 3 | E5: 0.5 | F5: .5 if ≈3; 1 if ≈6
A6: ITE-NET (Networking) | B6: CIS150, 202, 204, 207L, 225 | C6: Intro to Networking, Intro to Routing and Switching, Intermediate Routing and Switching, Network Protocols and Services | D6: 14 | E6: 1 | F6: .5 if ≈3; 1 if ≈6
A7: ITE-SPA (System Paradigms) | E7: 0 | F7: .5 if ≈3; 1 if ≈6
A8: ITE-UXD (User Experience) | E8: =IF(D8 >=3, 1, D8/3) -> 0 | F8: 1 if ≈3
A9: ITE-GPP (Global Professional Practice) | B9: BUS472 | C9: Applied Project Management + Lab | D9: 4 | E9: 1 | F9: 1 if ≈3
A10: ITE-IST (Integrated Systems Technology) | B10: CIS123, 321 | C10: Intro to Scripting (choose between this and CIS 228), Network Scripting | D10: 4.5 | E10: 1 | F10: 1 if ≈3
A11: ITE-PFT (Platform Technologies) | B11: CIS206, 106 | C11: Linux Administration, Intro to Operating Systems | D11: 6 | E11: =IF(D11 >=2, 1, D11/2) -> 1 | F11: 1 if ≈2
A12: ITE-SWF (Software Fundamentals) | B12: CIS126 | C12: Intro to Programming | D12: 3 | E12: =IF(D12 >=5, 1, D12/5) -> 0.6 | F12: 1 if ≈5
A13: ITE-WMS (Web and Mobile Systems) | E13: =IF(D13 >=3, 1, D13/3) -> 0 | F13: 1 if ≈3
C16: (Essential) Scaled Score: | D16: =SUM(E4:E13)/10*2 -> 1.22 | F16: (2 maximum)
A17: Supplemental IT Domains
C18: Total Hours: | D18: 24 | F18: Required Hrs/24
A19: Additional Notes: | B19: Required Supplemental Courses: Intro to Cloud Solutions (3) + Supplemental Cybersecurity Track (15) + Essential IT Domains: Platform Technologies (3), Integrated Systems (1.5), Global Professional Practice (1), Networking (8), Cybersecurity(3)
